PublisherLabel,PublisherURI,"Body name","Body","Service area","Service division","Responsible unit","Expenses type","Date","Transaction","Amount","Supplier name"
"Bracknell Forest Council","http://opendatacommunities.org/id/unitary-authority/bracknell-forest","Bracknell Forest Council","00MA","Business Support","Premises Development","Easthampstead Park Centre - Catering","Cost of Goods Sold",30/06/2013 00:00:00,"6523435",874.15,"3663"
"Bracknell Forest Council","http://opendatacommunities.org/id/unitary-authority/bracknell-forest","Bracknell Forest Council","00MA","Business Support","Premises Development","Easthampstead Park Centre - Catering","Cost of Goods Sold",30/06/2013 00:00:00,"6523435",4258.71,"3663"
"Bracknell Forest Council","http://opendatacommunities.org/id/unitary-authority/bracknell-forest","Bracknell Forest Council","00MA","Recreation, Sports and Leisure","Indoor Sports & Recreation Facilities","Leisure Centre - Catering General","Cost of Goods Sold",30/06/2013 00:00:00,"6523799",2337.13,"3663"
"Bracknell Forest Council","http://opendatacommunities.org/id/unitary-authority/bracknell-forest","Bracknell Forest Council","00MA","Older People (Aged 65 or Over)","Residential Care Home Placements","Heathlands EPH","Catering Consumables",30/06/2013 00:00:00,"6524012",2585.2,"3663"
"Bracknell Forest Council","http://opendatacommunities.org/id/unitary-authority/bracknell-forest","Bracknell Forest Council","00MA","Recreation, Sports and Leisure","Golf Courses","Leisure DSO - Downshire Catering","Cost of Goods Sold",03/07/2013 00:00:00,"30223355",-7.98,"3663"
"Bracknell Forest Council","http://opendatacommunities.org/id/unitary-authority/bracknell-forest","Bracknell Forest Council","00MA","Older People (Aged 65 or Over)","Residential Care Home Placements","Bridgewell Unit","Cost of Goods Sold",04/07/2013 00:00:00,"30223355",-7.01,"3663"
"Bracknell Forest Council","http://opendatacommunities.org/id/unitary-authority/bracknell-forest","Bracknell Forest Council","00MA","Recreation, Sports and Leisure","Golf Courses","Leisure DSO - Downshire Catering","Cost of Goods Sold",09/07/2013 00:00:00,"30223355",-5.66,"3663"
"Bracknell Forest Council","http://opendatacommunities.org/id/unitary-authority/bracknell-forest","Bracknell Forest Council","00MA","Recreation, Sports and Leisure","Indoor Sports & Recreation Facilities","Leisure Centre - Catering General","Cost of Goods Sold",10/07/2013 00:00:00,"30223355",-4.1,"3663"
"Bracknell Forest Council","http://opendatacommunities.org/id/unitary-authority/bracknell-forest","Bracknell Forest Council","00MA","Older People (Aged 65 or Over)","Residential Care Home Placements","Bridgewell Unit","Cost of Goods Sold",15/07/2013 00:00:00,"30223355",4.78,"3663"
"Bracknell Forest Council","http://opendatacommunities.org/id/unitary-authority/bracknell-forest","Bracknell Forest Council","00MA","Older People (Aged 65 or Over)","Residential Care Home Placements","Bridgewell Unit","Cost of Goods Sold",01/07/2013 00:00:00,"30223355",4.92,"3663"
"Bracknell Forest Council","http://opendatacommunities.org/id/unitary-authority/bracknell-forest","Bracknell Forest Council","00MA","Older People (Aged 65 or Over)","Residential Care Home Placements","Bridgewell Unit","Cost of Goods Sold",10/07/2013 00:00:00,"30223355",4.92,"3663"
"Bracknell Forest Council","http://opendatacommunities.org/id/unitary-authority/bracknell-forest","Bracknell Forest Council","00MA","Business Support","Premises Development","Easthampstead Park Centre - Catering","Cost of Goods Sold",11/07/2013 00:00:00,"30223355",12.02,"3663"
"Bracknell Forest Council","http://opendatacommunities.org/id/unitary-authority/bracknell-forest","Bracknell Forest Council","00MA","Business Support","Premises Development","Easthampstead Park Centre - Catering","Cost of Goods Sold",18/07/2013 00:00:00,"30223355",12.02,"3663"
"Bracknell Forest Council","http://opendatacommunities.org/id/unitary-authority/bracknell-forest","Bracknell Forest Council","00MA","Recreation, Sports and Leisure","Golf Courses","Leisure DSO - Downshire Catering","Cost of Goods Sold",11/07/2013 00:00:00,"30223355",13.61,"3663"
"Bracknell Forest Council","http://opendatacommunities.org/id/unitary-authority/bracknell-forest","Bracknell Forest Council","00MA","Recreation, Sports and Leisure","Golf Courses","Leisure DSO - Downshire Catering","Cost of Goods Sold",12/07/2013 00:00:00,"30223355",14.48,"3663"
"Bracknell Forest Council","http://opendatacommunities.org/id/unitary-authority/bracknell-forest","Bracknell Forest Council","00MA","Older People (Aged 65 or Over)","Other Services To Older People","Winter Pressures 12/13","Agency",10/07/2013 00:00:00,"30222671",1056.75,"COMMENSURA LTD"
"Bracknell Forest Council","http://opendatacommunities.org/id/unitary-authority/bracknell-forest","Bracknell Forest Council","00MA","Older People (Aged 65 or Over)","Other Services To Older People","Winter Pressures 12/13","Agency",10/07/2013 00:00:00,"30222671",3.6,"COMMENSURA LTD"
"Bracknell Forest Council","http://opendatacommunities.org/id/unitary-authority/bracknell-forest","Bracknell Forest Council","00MA","Older People (Aged 65 or Over)","Other Services To Older People","Winter Pressures 12/13","Agency",10/07/2013 00:00:00,"30222671",1267.9,"COMMENSURA LTD"
"Bracknell Forest Council","http://opendatacommunities.org/id/unitary-authority/bracknell-forest","Bracknell Forest Council","00MA","Older People (Aged 65 or Over)","Other Services To Older People","Winter Pressures 12/13","Agency",10/07/2013 00:00:00,"30222671",31.95,"COMMENSURA LTD"
"Bracknell Forest Council","http://opendatacommunities.org/id/unitary-authority/bracknell-forest","Bracknell Forest Council","00MA","Older People (Aged 65 or Over)","Other Services To Older People","Winter Pressures 12/13","Agency",10/07/2013 00:00:00,"30222671",1044.75,"COMMENSURA LTD"
"Bracknell Forest Council","http://opendatacommunities.org/id/unitary-authority/bracknell-forest","Bracknell Forest Council","00MA","Older People (Aged 65 or Over)","Residential Care Home Placements","Bridgewell Unit","Agency",10/07/2013 00:00:00,"30222671",55.82,"COMMENSURA LTD"
"Bracknell Forest Council","http://opendatacommunities.org/id/unitary-authority/bracknell-forest","Bracknell Forest Council","00MA","Older People (Aged 65 or Over)","Residential Care Home Placements","Bridgewell Unit","Agency",10/07/2013 00:00:00,"30222671",174.42,"COMMENSURA LTD"
"Bracknell Forest Council","http://opendatacommunities.org/id/unitary-authority/bracknell-forest","Bracknell Forest Council","00MA","Older People (Aged 65 or Over)","Residential Care Home Placements","Bridgewell Unit","Agency",10/07/2013 00:00:00,"30222671",258.9,"COMMENSURA LTD"
"Bracknell Forest Council","http://opendatacommunities.org/id/unitary-authority/bracknell-forest","Bracknell Forest Council","00MA","Older People (Aged 65 or Over)","Residential Care Home Placements","Bridgewell Unit","Agency",10/07/2013 00:00:00,"30222671",187.78,"COMMENSURA LTD"
"Bracknell Forest Council","http://opendatacommunities.org/id/unitary-authority/bracknell-forest","Bracknell Forest Council","00MA","Older People (Aged 65 or Over)","Residential Care Home Placements","Bridgewell Unit","Agency",10/07/2013 00:00:00,"30222671",60.9,"COMMENSURA LTD"
"Bracknell Forest Council","http://opendatacommunities.org/id/unitary-authority/bracknell-forest","Bracknell Forest Council","00MA","Older People (Aged 65 or Over)","Residential Care Home Placements","Bridgewell Unit","Agency",10/07/2013 00:00:00,"30222671",76.12,"COMMENSURA LTD"
"Bracknell Forest Council","http://opendatacommunities.org/id/unitary-authority/bracknell-forest","Bracknell Forest Council","00MA","Central Support Services - COF","Policy Unit","Chief Executive's Office","Agency",10/07/2013 00:00:00,"30222671",198.49,"COMMENSURA LTD"
"Bracknell Forest Council","http://opendatacommunities.org/id/unitary-authority/bracknell-forest","Bracknell Forest Council","00MA","Commissioning and Social Work","Commissioning and Social Work","Children Aged Under 11","Agency",10/07/2013 00:00:00,"30222671",1389.35,"COMMENSURA LTD"
"Bracknell Forest Council","http://opendatacommunities.org/id/unitary-authority/bracknell-forest","Bracknell Forest Council","00MA","Support Services & Management Costs","Management and Administration","Head of Service -Adults","Agency",10/07/2013 00:00:00,"30222671",182.75,"COMMENSURA LTD"
"Bracknell Forest Council","http://opendatacommunities.org/id/unitary-authority/bracknell-forest","Bracknell Forest Council","00MA","Mental Health Needs (Under 65)","Assessment & Care Management","CMHT","Agency",10/07/2013 00:00:00,"30222671",15.75,"COMMENSURA LTD"
"Bracknell Forest Council","http://opendatacommunities.org/id/unitary-authority/bracknell-forest","Bracknell Forest Council","00MA","Business Support","Premises Development","Easthampstead Park Centre - Catering","Cost of Goods Sold",02/07/2013 00:00:00,"30223355",16.68,"3663"
"Bracknell Forest Council","http://opendatacommunities.org/id/unitary-authority/bracknell-forest","Bracknell Forest Council","00MA","Recreation, Sports and Leisure","Indoor Sports & Recreation Facilities","Leisure Centre - Catering General","Cost of Goods Sold",03/07/2013 00:00:00,"30223355",17.64,"3663"
"Bracknell Forest Council","http://opendatacommunities.org/id/unitary-authority/bracknell-forest","Bracknell Forest Council","00MA","Business Support","Premises Development","Easthampstead Park Centre - Catering","Cost of Goods Sold",03/07/2013 00:00:00,"30223355",18.72,"3663"
"Bracknell Forest Council","http://opendatacommunities.org/id/unitary-authority/bracknell-forest","Bracknell Forest Council","00MA","Business Support","Premises Development","Easthampstead Park Centre - Catering","Cost of Goods Sold",05/07/2013 00:00:00,"30223355",22.04,"3663"
"Bracknell Forest Council","http://opendatacommunities.org/id/unitary-authority/bracknell-forest","Bracknell Forest Council","00MA","Business Support","Premises Development","Easthampstead Park Centre - Catering","Cost of Goods Sold",12/07/2013 00:00:00,"30223355",22.97,"3663"
"Bracknell Forest Council","http://opendatacommunities.org/id/unitary-authority/bracknell-forest","Bracknell Forest Council","00MA","Business Support","Premises Development","Easthampstead Park Centre - Catering","Cost of Goods Sold",16/07/2013 00:00:00,"30223355",23.07,"3663"
"Bracknell Forest Council","http://opendatacommunities.org/id/unitary-authority/bracknell-forest","Bracknell Forest Council","00MA","Recreation, Sports and Leisure","Golf Courses","Leisure DSO - Downshire Catering","Cost of Goods Sold",17/07/2013 00:00:00,"30223355",23.83,"3663"
"Bracknell Forest Council","http://opendatacommunities.org/id/unitary-authority/bracknell-forest","Bracknell Forest Council","00MA","Business Support","Premises Development","Easthampstead Park Centre - Catering","Cost of Goods Sold",01/07/2013 00:00:00,"30223355",24.08,"3663"
"Bracknell Forest Council","http://opendatacommunities.org/id/unitary-authority/bracknell-forest","Bracknell Forest Council","00MA","Older People (Aged 65 or Over)","Residential Care Home Placements","Bridgewell Unit","Cost of Goods Sold",10/07/2013 00:00:00,"30223355",25.51,"3663"
"Bracknell Forest Council","http://opendatacommunities.org/id/unitary-authority/bracknell-forest","Bracknell Forest Council","00MA","Older People (Aged 65 or Over)","Residential Care Home Placements","Heathlands EPH","Cost of Goods Sold",15/07/2013 00:00:00,"30223355",26.58,"3663"
"Bracknell Forest Council","http://opendatacommunities.org/id/unitary-authority/bracknell-forest","Bracknell Forest Council","00MA","Business Support","Premises Development","Easthampstead Park Centre - Catering","Cost of Goods Sold",02/07/2013 00:00:00,"30223355",26.69,"3663"
"Bracknell Forest Council","http://opendatacommunities.org/id/unitary-authority/bracknell-forest","Bracknell Forest Council","00MA","Recreation, Sports and Leisure","Golf Courses","Leisure DSO - Downshire Catering","Cost of Goods Sold",02/07/2013 00:00:00,"30223355",27.57,"3663"
"Bracknell Forest Council","http://opendatacommunities.org/id/unitary-authority/bracknell-forest","Bracknell Forest Council","00MA","Business Support","Premises Development","Easthampstead Park Centre - Catering","Cost of Goods Sold",15/07/2013 00:00:00,"30223355",29.36,"3663"
"Bracknell Forest Council","http://opendatacommunities.org/id/unitary-authority/bracknell-forest","Bracknell Forest Council","00MA","Recreation, Sports and Leisure","Golf Courses","Leisure DSO - Downshire Catering","Cost of Goods Sold",16/07/2013 00:00:00,"30223355",32.65,"3663"
"Bracknell Forest Council","http://opendatacommunities.org/id/unitary-authority/bracknell-forest","Bracknell Forest Council","00MA","Business Support","Premises Development","Easthampstead Park Centre - Catering","Cost of Goods Sold",13/07/2013 00:00:00,"30223355",36.48,"3663"
"Bracknell Forest Council","http://opendatacommunities.org/id/unitary-authority/bracknell-forest","Bracknell Forest Council","00MA","Mental Health Needs (Under 65)","Assessment & Care Management","CMHT","Agency",10/07/2013 00:00:00,"30222671",1513.72,"COMMENSURA LTD"
"Bracknell Forest Council","http://opendatacommunities.org/id/unitary-authority/bracknell-forest","Bracknell Forest Council","00MA","Mental Health Needs (Under 65)","Assessment & Care Management","CMHT","Agency",10/07/2013 00:00:00,"30222671",7.65,"COMMENSURA LTD"
"Bracknell Forest Council","http://opendatacommunities.org/id/unitary-authority/bracknell-forest","Bracknell Forest Council","00MA","Mental Health Needs (Under 65)","Assessment & Care Management","CMHT","Agency",10/07/2013 00:00:00,"30222671",684.08,"COMMENSURA LTD"
"Bracknell Forest Council","http://opendatacommunities.org/id/unitary-authority/bracknell-forest","Bracknell Forest Council","00MA","Mental Health Needs (Under 65)","Assessment & Care Management","CMHT","Agency",10/07/2013 00:00:00,"30222671",15.75,"COMMENSURA LTD"
"Bracknell Forest Council","http://opendatacommunities.org/id/unitary-authority/bracknell-forest","Bracknell Forest Council","00MA","Mental Health Needs (Under 65)","Assessment & Care Management","CMHT","Agency",10/07/2013 00:00:00,"30222671",1077.05,"COMMENSURA LTD"
"Bracknell Forest Council","http://opendatacommunities.org/id/unitary-authority/bracknell-forest","Bracknell Forest Council","00MA","Commissioning and Social Work","Commissioning and Social Work","Access to Records","Agency",10/07/2013 00:00:00,"30222671",30.15,"COMMENSURA LTD"
"Bracknell Forest Council","http://opendatacommunities.org/id/unitary-authority/bracknell-forest","Bracknell Forest Council","00MA","Commissioning and Social Work","Commissioning and Social Work","Access to Records","Agency",10/07/2013 00:00:00,"30222671",1462.24,"COMMENSURA LTD"
"Bracknell Forest Council","http://opendatacommunities.org/id/unitary-authority/bracknell-forest","Bracknell Forest Council","00MA","Older People (Aged 65 or Over)","Assessment & Care Management","Short Term Services - Social Work","Agency",10/07/2013 00:00:00,"30222671",475.84,"COMMENSURA LTD"
"Bracknell Forest Council","http://opendatacommunities.org/id/unitary-authority/bracknell-forest","Bracknell Forest Council","00MA","Older People (Aged 65 or Over)","Assessment & Care Management","Short Term Services - Social Work","Agency",10/07/2013 00:00:00,"30222671",1387.9,"COMMENSURA LTD"
"Bracknell Forest Council","http://opendatacommunities.org/id/unitary-authority/bracknell-forest","Bracknell Forest Council","00MA","Other Adult Services","Substance Abuse (Addictions)","Drugs Action Team Partnership Grant","Agency",17/07/2013 00:00:00,"30223070",374.85,"COMMENSURA LTD"
"Bracknell Forest Council","http://opendatacommunities.org/id/unitary-authority/bracknell-forest","Bracknell Forest Council","00MA","Other Adult Services","Substance Abuse (Addictions)","Drugs Action Team Partnership Grant","Agency",17/07/2013 00:00:00,"30223070",374.85,"COMMENSURA LTD"
"Bracknell Forest Council","http://opendatacommunities.org/id/unitary-authority/bracknell-forest","Bracknell Forest Council","00MA","Support Services & Management Costs","Quality Assurance","Contracts Team","Agency",17/07/2013 00:00:00,"30223070",792.62,"COMMENSURA LTD"
"Bracknell Forest Council","http://opendatacommunities.org/id/unitary-authority/bracknell-forest","Bracknell Forest Council","00MA","Children Looked After","Other children looked after services","Larchwood","Agency",17/07/2013 00:00:00,"30223070",117.9,"COMMENSURA LTD"
"Bracknell Forest Council","http://opendatacommunities.org/id/unitary-authority/bracknell-forest","Bracknell Forest Council","00MA","Regulatory Services","Food Safety","Food Safety","Agency",17/07/2013 00:00:00,"30223070",75.04,"COMMENSURA LTD"
"Bracknell Forest Council","http://opendatacommunities.org/id/unitary-authority/bracknell-forest","Bracknell Forest Council","00MA","Community Development","Community Development","EIF Project","Agency",17/07/2013 00:00:00,"30223070",952.98,"COMMENSURA LTD"
"Bracknell Forest Council","http://opendatacommunities.org/id/unitary-authority/bracknell-forest","Bracknell Forest Council","00MA","Community Development","Community Development","EIF Project","Agency",17/07/2013 00:00:00,"30223070",952.98,"COMMENSURA LTD"
"Bracknell Forest Council","http://opendatacommunities.org/id/unitary-authority/bracknell-forest","Bracknell Forest Council","00MA","Business Support","Premises Development","Easthampstead Park Centre - Catering","Cost of Goods Sold",17/07/2013 00:00:00,"30223355",39.85,"3663"
"Bracknell Forest Council","http://opendatacommunities.org/id/unitary-authority/bracknell-forest","Bracknell Forest Council","00MA","Business Support","Premises Development","Easthampstead Park Centre - Catering","Cost of Goods Sold",06/07/2013 00:00:00,"30223355",44.92,"3663"
"Bracknell Forest Council","http://opendatacommunities.org/id/unitary-authority/bracknell-forest","Bracknell Forest Council","00MA","Business Support","Premises Development","Easthampstead Park Centre - Catering","Cost of Goods Sold",04/07/2013 00:00:00,"30223355",50.68,"3663"
"Bracknell Forest Council","http://opendatacommunities.org/id/unitary-authority/bracknell-forest","Bracknell Forest Council","00MA","Older People (Aged 65 or Over)","Residential Care Home Placements","Bridgewell Unit","Cost of Goods Sold",11/07/2013 00:00:00,"30223355",53.28,"3663"
"Bracknell Forest Council","http://opendatacommunities.org/id/unitary-authority/bracknell-forest","Bracknell Forest Council","00MA","Business Support","Premises Development","Easthampstead Park Centre - Catering","Catering Consumables",05/07/2013 00:00:00,"30223355",61.67,"3663"
"Bracknell Forest Council","http://opendatacommunities.org/id/unitary-authority/bracknell-forest","Bracknell Forest Council","00MA","Recreation, Sports and Leisure","Golf Courses","Leisure DSO - Downshire Catering","Catering Consumables",16/07/2013 00:00:00,"30223355",61.9,"3663"
"Bracknell Forest Council","http://opendatacommunities.org/id/unitary-authority/bracknell-forest","Bracknell Forest Council","00MA","Older People (Aged 65 or Over)","Residential Care Home Placements","Heathlands EPH","Cost of Goods Sold",08/07/2013 00:00:00,"30223355",66.94,"3663"
"Bracknell Forest Council","http://opendatacommunities.org/id/unitary-authority/bracknell-forest","Bracknell Forest Council","00MA","Business Support","Premises Development","Easthampstead Park Centre - Catering","Cost of Goods Sold",05/07/2013 00:00:00,"30223355",91.34,"3663"
"Bracknell Forest Council","http://opendatacommunities.org/id/unitary-authority/bracknell-forest","Bracknell Forest Council","00MA","Business Support","Premises Development","Easthampstead Park Centre - Catering","Cost of Goods Sold",12/07/2013 00:00:00,"30223355",121.08,"3663"
"Bracknell Forest Council","http://opendatacommunities.org/id/unitary-authority/bracknell-forest","Bracknell Forest Council","00MA","Business Support","Premises Development","Easthampstead Park Centre - Catering","Cost of Goods Sold",02/07/2013 00:00:00,"30223355",123.42,"3663"
"Bracknell Forest Council","http://opendatacommunities.org/id/unitary-authority/bracknell-forest","Bracknell Forest Council","00MA","Business Support","Premises Development","Easthampstead Park Centre - Catering","Cost of Goods Sold",11/07/2013 00:00:00,"30223355",158.47,"3663"
"Bracknell Forest Council","http://opendatacommunities.org/id/unitary-authority/bracknell-forest","Bracknell Forest Council","00MA","Recreation, Sports and Leisure","Indoor Sports & Recreation Facilities","Coral Reef - Catering & Bar","Cost of Goods Sold",11/07/2013 00:00:00,"30223355",161.42,"3663"
"Bracknell Forest Council","http://opendatacommunities.org/id/unitary-authority/bracknell-forest","Bracknell Forest Council","00MA","Recreation, Sports and Leisure","Indoor Sports & Recreation Facilities","Coral Reef - Catering & Bar","Cost of Goods Sold",04/07/2013 00:00:00,"30223355",163.32,"3663"
"Bracknell Forest Council","http://opendatacommunities.org/id/unitary-authority/bracknell-forest","Bracknell Forest Council","00MA","Older People (Aged 65 or Over)","Residential Care Home Placements","Heathlands EPH","Cost of Goods Sold",16/07/2013 00:00:00,"30223355",170.78,"3663"
"Bracknell Forest Council","http://opendatacommunities.org/id/unitary-authority/bracknell-forest","Bracknell Forest Council","00MA","Recreation, Sports and Leisure","Indoor Sports & Recreation Facilities","Coral Reef - Catering & Bar","Cost of Goods Sold",16/07/2013 00:00:00,"30223355",172.12,"3663"
"Bracknell Forest Council","http://opendatacommunities.org/id/unitary-authority/bracknell-forest","Bracknell Forest Council","00MA","Community Development","Community Development","EIF Project","Agency",17/07/2013 00:00:00,"30223070",952.98,"COMMENSURA LTD"
"Bracknell Forest Council","http://opendatacommunities.org/id/unitary-authority/bracknell-forest","Bracknell Forest Council","00MA","Community Development","Community Development","EIF Project","Agency",17/07/2013 00:00:00,"30223070",952.98,"COMMENSURA LTD"
"Bracknell Forest Council","http://opendatacommunities.org/id/unitary-authority/bracknell-forest","Bracknell Forest Council","00MA","Housing Benefits Administration","Housing Benefits Administration","Benefits Administration","Agency",17/07/2013 00:00:00,"30223070",335.72,"COMMENSURA LTD"
"Bracknell Forest Council","http://opendatacommunities.org/id/unitary-authority/bracknell-forest","Bracknell Forest Council","00MA","Open Spaces","Countryside Recreation & Management","Countryside Sites General","Agency",17/07/2013 00:00:00,"30223070",235.69,"COMMENSURA LTD"
"Bracknell Forest Council","http://opendatacommunities.org/id/unitary-authority/bracknell-forest","Bracknell Forest Council","00MA","Older People (Aged 65 or Over)","Residential Care Home Placements","Heathlands EPH","Agency",17/07/2013 00:00:00,"30223070",654.73,"COMMENSURA LTD"
"Bracknell Forest Council","http://opendatacommunities.org/id/unitary-authority/bracknell-forest","Bracknell Forest Council","00MA","Older People (Aged 65 or Over)","Residential Care Home Placements","Heathlands EPH","Agency",17/07/2013 00:00:00,"30223070",419.42,"COMMENSURA LTD"
"Bracknell Forest Council","http://opendatacommunities.org/id/unitary-authority/bracknell-forest","Bracknell Forest Council","00MA","Older People (Aged 65 or Over)","Residential Care Home Placements","Heathlands EPH","Agency",17/07/2013 00:00:00,"30223070",508.36,"COMMENSURA LTD"
"Bracknell Forest Council","http://opendatacommunities.org/id/unitary-authority/bracknell-forest","Bracknell Forest Council","00MA","Older People (Aged 65 or Over)","Residential Care Home Placements","Heathlands EPH","Agency",17/07/2013 00:00:00,"30223070",174.42,"COMMENSURA LTD"
"Bracknell Forest Council","http://opendatacommunities.org/id/unitary-authority/bracknell-forest","Bracknell Forest Council","00MA","Older People (Aged 65 or Over)","Residential Care Home Placements","Heathlands EPH","Agency",17/07/2013 00:00:00,"30223070",209.89,"COMMENSURA LTD"
"Bracknell Forest Council","http://opendatacommunities.org/id/unitary-authority/bracknell-forest","Bracknell Forest Council","00MA","Older People (Aged 65 or Over)","Residential Care Home Placements","Heathlands EPH","Agency",17/07/2013 00:00:00,"30223070",76.95,"COMMENSURA LTD"
"Bracknell Forest Council","http://opendatacommunities.org/id/unitary-authority/bracknell-forest","Bracknell Forest Council","00MA","Older People (Aged 65 or Over)","Residential Care Home Placements","Heathlands EPH","Agency",17/07/2013 00:00:00,"30223070",171.02,"COMMENSURA LTD"
"Bracknell Forest Council","http://opendatacommunities.org/id/unitary-authority/bracknell-forest","Bracknell Forest Council","00MA","Older People (Aged 65 or Over)","Residential Care Home Placements","Bridgewell Unit","Agency",17/07/2013 00:00:00,"30223070",235.98,"COMMENSURA LTD"
"Bracknell Forest Council","http://opendatacommunities.org/id/unitary-authority/bracknell-forest","Bracknell Forest Council","00MA","Older People (Aged 65 or Over)","Residential Care Home Placements","Bridgewell Unit","Agency",17/07/2013 00:00:00,"30223070",65.98,"COMMENSURA LTD"
"Bracknell Forest Council","http://opendatacommunities.org/id/unitary-authority/bracknell-forest","Bracknell Forest Council","00MA","Older People (Aged 65 or Over)","Residential Care Home Placements","Bridgewell Unit","Agency",17/07/2013 00:00:00,"30223070",288.78,"COMMENSURA LTD"
"Bracknell Forest Council","http://opendatacommunities.org/id/unitary-authority/bracknell-forest","Bracknell Forest Council","00MA","Older People (Aged 65 or Over)","Residential Care Home Placements","Bridgewell Unit","Agency",17/07/2013 00:00:00,"30223070",98.41,"COMMENSURA LTD"
"Bracknell Forest Council","http://opendatacommunities.org/id/unitary-authority/bracknell-forest","Bracknell Forest Council","00MA","Older People (Aged 65 or Over)","Residential Care Home Placements","Bridgewell Unit","Agency",17/07/2013 00:00:00,"30223070",1163.76,"COMMENSURA LTD"
"Bracknell Forest Council","http://opendatacommunities.org/id/unitary-authority/bracknell-forest","Bracknell Forest Council","00MA","Older People (Aged 65 or Over)","Other Services To Older People","Winter Pressures 12/13","Agency",17/07/2013 00:00:00,"30223070",8.1,"COMMENSURA LTD"
"Bracknell Forest Council","http://opendatacommunities.org/id/unitary-authority/bracknell-forest","Bracknell Forest Council","00MA","Older People (Aged 65 or Over)","Other Services To Older People","Winter Pressures 12/13","Agency",17/07/2013 00:00:00,"30223070",1267.9,"COMMENSURA LTD"
"Bracknell Forest Council","http://opendatacommunities.org/id/unitary-authority/bracknell-forest","Bracknell Forest Council","00MA","Older People (Aged 65 or Over)","Other Services To Older People","Winter Pressures 12/13","Agency",17/07/2013 00:00:00,"30223070",1056.75,"COMMENSURA LTD"
"Bracknell Forest Council","http://opendatacommunities.org/id/unitary-authority/bracknell-forest","Bracknell Forest Council","00MA","Older People (Aged 65 or Over)","Residential Care Home Placements","Bridgewell Unit","Agency",17/07/2013 00:00:00,"30223070",2.25,"COMMENSURA LTD"
"Bracknell Forest Council","http://opendatacommunities.org/id/unitary-authority/bracknell-forest","Bracknell Forest Council","00MA","Older People (Aged 65 or Over)","Residential Care Home Placements","Bridgewell Unit","Agency",17/07/2013 00:00:00,"30223070",1156.35,"COMMENSURA LTD"
"Bracknell Forest Council","http://opendatacommunities.org/id/unitary-authority/bracknell-forest","Bracknell Forest Council","00MA","Learning Disability (under 65)","Day Care","Bracknell Day Services","Agency",17/07/2013 00:00:00,"30223070",271.89,"COMMENSURA LTD"
"Bracknell Forest Council","http://opendatacommunities.org/id/unitary-authority/bracknell-forest","Bracknell Forest Council","00MA","Learning Disability (under 65)","Day Care","Bracknell Day Services","Agency",17/07/2013 00:00:00,"30223070",207.26,"COMMENSURA LTD"
"Bracknell Forest Council","http://opendatacommunities.org/id/unitary-authority/bracknell-forest","Bracknell Forest Council","00MA","Learning Disability (under 65)","Day Care","Bracknell Day Services","Agency",17/07/2013 00:00:00,"30223070",97.47,"COMMENSURA LTD"
"Bracknell Forest Council","http://opendatacommunities.org/id/unitary-authority/bracknell-forest","Bracknell Forest Council","00MA","Learning Disability (under 65)","Day Care","Bracknell Day Services","Agency",17/07/2013 00:00:00,"30223070",232.71,"COMMENSURA LTD"
"Bracknell Forest Council","http://opendatacommunities.org/id/unitary-authority/bracknell-forest","Bracknell Forest Council","00MA","Learning Disability (under 65)","Day Care","Bracknell Day Services","Agency",17/07/2013 00:00:00,"30223070",222.35,"COMMENSURA LTD"
"Bracknell Forest Council","http://opendatacommunities.org/id/unitary-authority/bracknell-forest","Bracknell Forest Council","00MA","Learning Disability (under 65)","Day Care","Bracknell Day Services","Agency",17/07/2013 00:00:00,"30223070",71.82,"COMMENSURA LTD"
"Bracknell Forest Council","http://opendatacommunities.org/id/unitary-authority/bracknell-forest","Bracknell Forest Council","00MA","Learning Disability (under 65)","Day Care","Bracknell Day Services","Agency",17/07/2013 00:00:00,"30223070",387.09,"COMMENSURA LTD"
"Bracknell Forest Council","http://opendatacommunities.org/id/unitary-authority/bracknell-forest","Bracknell Forest Council","00MA","Learning Disability (under 65)","Day Care","Bracknell Day Services","Agency",17/07/2013 00:00:00,"30223070",308.25,"COMMENSURA LTD"
"Bracknell Forest Council","http://opendatacommunities.org/id/unitary-authority/bracknell-forest","Bracknell Forest Council","00MA","Learning Disability (under 65)","Day Care","Bracknell Day Services","Agency",17/07/2013 00:00:00,"30223070",113.62,"COMMENSURA LTD"
"Bracknell Forest Council","http://opendatacommunities.org/id/unitary-authority/bracknell-forest","Bracknell Forest Council","00MA","Learning Disability (under 65)","Day Care","Bracknell Day Services","Agency",17/07/2013 00:00:00,"30223070",228.25,"COMMENSURA LTD"
"Bracknell Forest Council","http://opendatacommunities.org/id/unitary-authority/bracknell-forest","Bracknell Forest Council","00MA","Learning Disability (under 65)","Day Care","Bracknell Day Services","Agency",17/07/2013 00:00:00,"30223070",150.9,"COMMENSURA LTD"
"Bracknell Forest Council","http://opendatacommunities.org/id/unitary-authority/bracknell-forest","Bracknell Forest Council","00MA","Older People (Aged 65 or Over)","Assessment & Care Management","Short Term Services - Social Work","Agency",17/07/2013 00:00:00,"30223070",19.8,"COMMENSURA LTD"
"Bracknell Forest Council","http://opendatacommunities.org/id/unitary-authority/bracknell-forest","Bracknell Forest Council","00MA","Older People (Aged 65 or Over)","Assessment & Care Management","Short Term Services - Social Work","Agency",17/07/2013 00:00:00,"30223070",1044.16,"COMMENSURA LTD"
"Bracknell Forest Council","http://opendatacommunities.org/id/unitary-authority/bracknell-forest","Bracknell Forest Council","00MA","Older People (Aged 65 or Over)","Assessment & Care Management","Short Term Services - Social Work","Agency",17/07/2013 00:00:00,"30223070",19.8,"COMMENSURA LTD"
"Bracknell Forest Council","http://opendatacommunities.org/id/unitary-authority/bracknell-forest","Bracknell Forest Council","00MA","Older People (Aged 65 or Over)","Assessment & Care Management","Short Term Services - Social Work","Agency",17/07/2013 00:00:00,"30223070",1044.16,"COMMENSURA LTD"
"Bracknell Forest Council","http://opendatacommunities.org/id/unitary-authority/bracknell-forest","Bracknell Forest Council","00MA","Mental Health Needs (Under 65)","Assessment & Care Management","CMHT","Agency",17/07/2013 00:00:00,"30223070",1076.4,"COMMENSURA LTD"
"Bracknell Forest Council","http://opendatacommunities.org/id/unitary-authority/bracknell-forest","Bracknell Forest Council","00MA","Mental Health Needs (Under 65)","Assessment & Care Management","CMHT","Agency",17/07/2013 00:00:00,"30223070",13.05,"COMMENSURA LTD"
"Bracknell Forest Council","http://opendatacommunities.org/id/unitary-authority/bracknell-forest","Bracknell Forest Council","00MA","Mental Health Needs (Under 65)","Assessment & Care Management","CMHT","Agency",17/07/2013 00:00:00,"30223070",1345.5,"COMMENSURA LTD"
"Bracknell Forest Council","http://opendatacommunities.org/id/unitary-authority/bracknell-forest","Bracknell Forest Council","00MA","Older People (Aged 65 or Over)","Assessment & Care Management","Enhanced Intermediate Care","Agency",17/07/2013 00:00:00,"30223070",13.95,"COMMENSURA LTD"
"Bracknell Forest Council","http://opendatacommunities.org/id/unitary-authority/bracknell-forest","Bracknell Forest Council","00MA","Older People (Aged 65 or Over)","Assessment & Care Management","Enhanced Intermediate Care","Agency",17/07/2013 00:00:00,"30223070",843.48,"COMMENSURA LTD"
"Bracknell Forest Council","http://opendatacommunities.org/id/unitary-authority/bracknell-forest","Bracknell Forest Council","00MA","Older People (Aged 65 or Over)","Assessment & Care Management","Enhanced Intermediate Care","Agency",17/07/2013 00:00:00,"30223070",11.7,"COMMENSURA LTD"
"Bracknell Forest Council","http://opendatacommunities.org/id/unitary-authority/bracknell-forest","Bracknell Forest Council","00MA","Older People (Aged 65 or Over)","Assessment & Care Management","Enhanced Intermediate Care","Agency",17/07/2013 00:00:00,"30223070",843.48,"COMMENSURA LTD"
"Bracknell Forest Council","http://opendatacommunities.org/id/unitary-authority/bracknell-forest","Bracknell Forest Council","00MA","Older People (Aged 65 or Over)","Assessment & Care Management","Short Term Services (S75 Funded)","Agency",17/07/2013 00:00:00,"30223070",5.4,"COMMENSURA LTD"
"Bracknell Forest Council","http://opendatacommunities.org/id/unitary-authority/bracknell-forest","Bracknell Forest Council","00MA","Older People (Aged 65 or Over)","Assessment & Care Management","Short Term Services (S75 Funded)","Agency",17/07/2013 00:00:00,"30223070",655.44,"COMMENSURA LTD"
"Bracknell Forest Council","http://opendatacommunities.org/id/unitary-authority/bracknell-forest","Bracknell Forest Council","00MA","Older People (Aged 65 or Over)","Assessment & Care Management","Short Term Services (S75 Funded)","Agency",17/07/2013 00:00:00,"30223070",9.45,"COMMENSURA LTD"
"Bracknell Forest Council","http://opendatacommunities.org/id/unitary-authority/bracknell-forest","Bracknell Forest Council","00MA","Older People (Aged 65 or Over)","Assessment & Care Management","Short Term Services (S75 Funded)","Agency",17/07/2013 00:00:00,"30223070",655.44,"COMMENSURA LTD"
"Bracknell Forest Council","http://opendatacommunities.org/id/unitary-authority/bracknell-forest","Bracknell Forest Council","00MA","Older People (Aged 65 or Over)","Assessment & Care Management","Short Term Services (S75 Funded)","Agency",17/07/2013 00:00:00,"30223070",1.8,"COMMENSURA LTD"
"Bracknell Forest Council","http://opendatacommunities.org/id/unitary-authority/bracknell-forest","Bracknell Forest Council","00MA","Older People (Aged 65 or Over)","Assessment & Care Management","Short Term Services (S75 Funded)","Agency",17/07/2013 00:00:00,"30223070",429.16,"COMMENSURA LTD"
"Bracknell Forest Council","http://opendatacommunities.org/id/unitary-authority/bracknell-forest","Bracknell Forest Council","00MA","Older People (Aged 65 or Over)","Assessment & Care Management","Short Term Services (S75 Funded)","Agency",17/07/2013 00:00:00,"30223070",793.27,"COMMENSURA LTD"
"Bracknell Forest Council","http://opendatacommunities.org/id/unitary-authority/bracknell-forest","Bracknell Forest Council","00MA","Commissioning and Social Work","Commissioning and Social Work","Children Aged Under 11","Agency",17/07/2013 00:00:00,"30223070",28.35,"COMMENSURA LTD"
"Bracknell Forest Council","http://opendatacommunities.org/id/unitary-authority/bracknell-forest","Bracknell Forest Council","00MA","Commissioning and Social Work","Commissioning and Social Work","Children Aged Under 11","Agency",17/07/2013 00:00:00,"30223070",1462.24,"COMMENSURA LTD"
"Bracknell Forest Council","http://opendatacommunities.org/id/unitary-authority/bracknell-forest","Bracknell Forest Council","00MA","Older People (Aged 65 or Over)","Assessment & Care Management","Short Term Services - Social Work","Agency",17/07/2013 00:00:00,"30223070",1532.91,"COMMENSURA LTD"
"Bracknell Forest Council","http://opendatacommunities.org/id/unitary-authority/bracknell-forest","Bracknell Forest Council","00MA","Older People (Aged 65 or Over)","Assessment & Care Management","Short Term Services - Social Work","Agency",17/07/2013 00:00:00,"30223070",557.6,"COMMENSURA LTD"
"Bracknell Forest Council","http://opendatacommunities.org/id/unitary-authority/bracknell-forest","Bracknell Forest Council","00MA","Central Support Services - COF","Policy Unit","Chief Executive's Office","Agency",17/07/2013 00:00:00,"30223070",198.49,"COMMENSURA LTD"
"Bracknell Forest Council","http://opendatacommunities.org/id/unitary-authority/bracknell-forest","Bracknell Forest Council","00MA","Housing Benefits Administration","Housing Benefits Administration","Benefits Administration","Agency",21/07/2013 00:00:00,"30223417",335.72,"COMMENSURA LTD"
"Bracknell Forest Council","http://opendatacommunities.org/id/unitary-authority/bracknell-forest","Bracknell Forest Council","00MA","Housing Benefits Administration","Housing Benefits Administration","Benefits Administration","Agency",21/07/2013 00:00:00,"30223417",772.87,"COMMENSURA LTD"
"Bracknell Forest Council","http://opendatacommunities.org/id/unitary-authority/bracknell-forest","Bracknell Forest Council","00MA","Open Spaces","Countryside Recreation & Management","Countryside Sites General","Agency",21/07/2013 00:00:00,"30223417",235.69,"COMMENSURA LTD"
"Bracknell Forest Council","http://opendatacommunities.org/id/unitary-authority/bracknell-forest","Bracknell Forest Council","00MA","Children Looked After","Other children looked after services","Larchwood","Agency",21/07/2013 00:00:00,"30223417",70.74,"COMMENSURA LTD"
"Bracknell Forest Council","http://opendatacommunities.org/id/unitary-authority/bracknell-forest","Bracknell Forest Council","00MA","Children Looked After","Other children looked after services","Larchwood","Agency",21/07/2013 00:00:00,"30223417",70.74,"COMMENSURA LTD"
"Bracknell Forest Council","http://opendatacommunities.org/id/unitary-authority/bracknell-forest","Bracknell Forest Council","00MA","Older People (Aged 65 or Over)","Assessment & Care Management","Short Term Services - Social Work","Agency",21/07/2013 00:00:00,"30223417",550.17,"COMMENSURA LTD"
"Bracknell Forest Council","http://opendatacommunities.org/id/unitary-authority/bracknell-forest","Bracknell Forest Council","00MA","Older People (Aged 65 or Over)","Assessment & Care Management","Short Term Services (S75 Funded)","Agency",21/07/2013 00:00:00,"30223417",9,"COMMENSURA LTD"
"Bracknell Forest Council","http://opendatacommunities.org/id/unitary-authority/bracknell-forest","Bracknell Forest Council","00MA","Older People (Aged 65 or Over)","Assessment & Care Management","Short Term Services (S75 Funded)","Agency",21/07/2013 00:00:00,"30223417",655.44,"COMMENSURA LTD"
"Bracknell Forest Council","http://opendatacommunities.org/id/unitary-authority/bracknell-forest","Bracknell Forest Council","00MA","Older People (Aged 65 or Over)","Assessment & Care Management","Short Term Services (S75 Funded)","Agency",21/07/2013 00:00:00,"30223417",10.8,"COMMENSURA LTD"
"Bracknell Forest Council","http://opendatacommunities.org/id/unitary-authority/bracknell-forest","Bracknell Forest Council","00MA","Older People (Aged 65 or Over)","Assessment & Care Management","Short Term Services (S75 Funded)","Agency",21/07/2013 00:00:00,"30223417",1058.59,"COMMENSURA LTD"
"Bracknell Forest Council","http://opendatacommunities.org/id/unitary-authority/bracknell-forest","Bracknell Forest Council","00MA","Older People (Aged 65 or Over)","Assessment & Care Management","Short Term Services - Social Work","Agency",21/07/2013 00:00:00,"30223417",1470.75,"COMMENSURA LTD"
"Bracknell Forest Council","http://opendatacommunities.org/id/unitary-authority/bracknell-forest","Bracknell Forest Council","00MA","Older People (Aged 65 or Over)","Assessment & Care Management","Short Term Services - Social Work","Agency",21/07/2013 00:00:00,"30223417",261.04,"COMMENSURA LTD"
"Bracknell Forest Council","http://opendatacommunities.org/id/unitary-authority/bracknell-forest","Bracknell Forest Council","00MA","Support Services & Management Costs","Management and Administration","Head of Service -Adults","Agency",21/07/2013 00:00:00,"30223417",270.47,"COMMENSURA LTD"
"Bracknell Forest Council","http://opendatacommunities.org/id/unitary-authority/bracknell-forest","Bracknell Forest Council","00MA","Mental Health Needs (Under 65)","Assessment & Care Management","CMHT","Agency",21/07/2013 00:00:00,"30223417",1106.65,"COMMENSURA LTD"
"Bracknell Forest Council","http://opendatacommunities.org/id/unitary-authority/bracknell-forest","Bracknell Forest Council","00MA","Mental Health Needs (Under 65)","Assessment & Care Management","CMHT","Agency",21/07/2013 00:00:00,"30223417",304.59,"COMMENSURA LTD"
"Bracknell Forest Council","http://opendatacommunities.org/id/unitary-authority/bracknell-forest","Bracknell Forest Council","00MA","Mental Health Needs (Under 65)","Assessment & Care Management","CMHT","Agency",21/07/2013 00:00:00,"30223417",18.45,"COMMENSURA LTD"
"Bracknell Forest Council","http://opendatacommunities.org/id/unitary-authority/bracknell-forest","Bracknell Forest Council","00MA","Mental Health Needs (Under 65)","Assessment & Care Management","CMHT","Agency",21/07/2013 00:00:00,"30223417",807.3,"COMMENSURA LTD"
"Bracknell Forest Council","http://opendatacommunities.org/id/unitary-authority/bracknell-forest","Bracknell Forest Council","00MA","Mental Health Needs (Under 65)","Assessment & Care Management","CMHT","Agency",21/07/2013 00:00:00,"30223417",13.95,"COMMENSURA LTD"
"Bracknell Forest Council","http://opendatacommunities.org/id/unitary-authority/bracknell-forest","Bracknell Forest Council","00MA","Mental Health Needs (Under 65)","Assessment & Care Management","CMHT","Agency",21/07/2013 00:00:00,"30223417",1513.72,"COMMENSURA LTD"
"Bracknell Forest Council","http://opendatacommunities.org/id/unitary-authority/bracknell-forest","Bracknell Forest Council","00MA","Commissioning and Social Work","Commissioning and Social Work","Access to Records","Agency",21/07/2013 00:00:00,"30223417",5.4,"COMMENSURA LTD"
"Bracknell Forest Council","http://opendatacommunities.org/id/unitary-authority/bracknell-forest","Bracknell Forest Council","00MA","Commissioning and Social Work","Commissioning and Social Work","Access to Records","Agency",21/07/2013 00:00:00,"30223417",1462.24,"COMMENSURA LTD"
"Bracknell Forest Council","http://opendatacommunities.org/id/unitary-authority/bracknell-forest","Bracknell Forest Council","00MA","Commissioning and Social Work","Commissioning and Social Work","Children Aged Under 11","Agency",21/07/2013 00:00:00,"30223417",27.9,"COMMENSURA LTD"
"Bracknell Forest Council","http://opendatacommunities.org/id/unitary-authority/bracknell-forest","Bracknell Forest Council","00MA","Commissioning and Social Work","Commissioning and Social Work","Children Aged Under 11","Agency",21/07/2013 00:00:00,"30223417",1462.24,"COMMENSURA LTD"
"Bracknell Forest Council","http://opendatacommunities.org/id/unitary-authority/bracknell-forest","Bracknell Forest Council","00MA","Commissioning and Social Work","Commissioning and Social Work","Children Aged Under 11","Agency",21/07/2013 00:00:00,"30223417",35.1,"COMMENSURA LTD"
"Bracknell Forest Council","http://opendatacommunities.org/id/unitary-authority/bracknell-forest","Bracknell Forest Council","00MA","Commissioning and Social Work","Commissioning and Social Work","Children Aged Under 11","Agency",21/07/2013 00:00:00,"30223417",1337.99,"COMMENSURA LTD"
"Bracknell Forest Council","http://opendatacommunities.org/id/unitary-authority/bracknell-forest","Bracknell Forest Council","00MA","Management and Support Services - CYPL","Holding Codes - net nil","Education Library Service","Agency",21/07/2013 00:00:00,"30223417",257.76,"COMMENSURA LTD"
"Bracknell Forest Council","http://opendatacommunities.org/id/unitary-authority/bracknell-forest","Bracknell Forest Council","00MA","Central Support Services - COF","Policy Unit","Chief Executive's Office","Agency",21/07/2013 00:00:00,"30223417",198.49,"COMMENSURA LTD"
"Bracknell Forest Council","http://opendatacommunities.org/id/unitary-authority/bracknell-forest","Bracknell Forest Council","00MA","Support Services & Management Costs","Management and Administration","Head of Service -Adults","Agency",21/07/2013 00:00:00,"30223417",270.47,"COMMENSURA LTD"
"Bracknell Forest Council","http://opendatacommunities.org/id/unitary-authority/bracknell-forest","Bracknell Forest Council","00MA","Older People (Aged 65 or Over)","Residential Care Home Placements","Bridgewell Unit","Agency",21/07/2013 00:00:00,"30223417",1097.07,"COMMENSURA LTD"
"Bracknell Forest Council","http://opendatacommunities.org/id/unitary-authority/bracknell-forest","Bracknell Forest Council","00MA","Older People (Aged 65 or Over)","Residential Care Home Placements","Bridgewell Unit","Agency",21/07/2013 00:00:00,"30223417",148.77,"COMMENSURA LTD"
"Bracknell Forest Council","http://opendatacommunities.org/id/unitary-authority/bracknell-forest","Bracknell Forest Council","00MA","Older People (Aged 65 or Over)","Residential Care Home Placements","Bridgewell Unit","Agency",21/07/2013 00:00:00,"30223417",65.98,"COMMENSURA LTD"
"Bracknell Forest Council","http://opendatacommunities.org/id/unitary-authority/bracknell-forest","Bracknell Forest Council","00MA","Older People (Aged 65 or Over)","Residential Care Home Placements","Bridgewell Unit","Agency",21/07/2013 00:00:00,"30223417",90.84,"COMMENSURA LTD"
"Bracknell Forest Council","http://opendatacommunities.org/id/unitary-authority/bracknell-forest","Bracknell Forest Council","00MA","Older People (Aged 65 or Over)","Other Services To Older People","Winter Pressures 12/13","Agency",21/07/2013 00:00:00,"30223417",1056.75,"COMMENSURA LTD"
"Bracknell Forest Council","http://opendatacommunities.org/id/unitary-authority/bracknell-forest","Bracknell Forest Council","00MA","Older People (Aged 65 or Over)","Other Services To Older People","Winter Pressures 12/13","Agency",21/07/2013 00:00:00,"30223417",3.15,"COMMENSURA LTD"
"Bracknell Forest Council","http://opendatacommunities.org/id/unitary-authority/bracknell-forest","Bracknell Forest Council","00MA","Older People (Aged 65 or Over)","Other Services To Older People","Winter Pressures 12/13","Agency",21/07/2013 00:00:00,"30223417",1267.9,"COMMENSURA LTD"
"Bracknell Forest Council","http://opendatacommunities.org/id/unitary-authority/bracknell-forest","Bracknell Forest Council","00MA","Older People (Aged 65 or Over)","Other Services To Older People","Winter Pressures 12/13","Agency",21/07/2013 00:00:00,"30223417",1056.75,"COMMENSURA LTD"
"Bracknell Forest Council","http://opendatacommunities.org/id/unitary-authority/bracknell-forest","Bracknell Forest Council","00MA","Older People (Aged 65 or Over)","Other Services To Older People","Winter Pressures 12/13","Agency",21/07/2013 00:00:00,"30223417",44.1,"COMMENSURA LTD"
"Bracknell Forest Council","http://opendatacommunities.org/id/unitary-authority/bracknell-forest","Bracknell Forest Council","00MA","Older People (Aged 65 or Over)","Other Services To Older People","Winter Pressures 12/13","Agency",21/07/2013 00:00:00,"30223417",845.4,"COMMENSURA LTD"
"Bracknell Forest Council","http://opendatacommunities.org/id/unitary-authority/bracknell-forest","Bracknell Forest Council","00MA","Learning Disability (under 65)","Day Care","Bracknell Day Services","Agency",21/07/2013 00:00:00,"30223417",288.04,"COMMENSURA LTD"
"Bracknell Forest Council","http://opendatacommunities.org/id/unitary-authority/bracknell-forest","Bracknell Forest Council","00MA","Learning Disability (under 65)","Day Care","Bracknell Day Services","Agency",21/07/2013 00:00:00,"30223417",287.43,"COMMENSURA LTD"
"Bracknell Forest Council","http://opendatacommunities.org/id/unitary-authority/bracknell-forest","Bracknell Forest Council","00MA","Learning Disability (under 65)","Day Care","Bracknell Day Services","Agency",21/07/2013 00:00:00,"30223417",183,"COMMENSURA LTD"
"Bracknell Forest Council","http://opendatacommunities.org/id/unitary-authority/bracknell-forest","Bracknell Forest Council","00MA","Older People (Aged 65 or Over)","Residential Care Home Placements","Heathlands EPH","Agency",21/07/2013 00:00:00,"30223417",351.97,"COMMENSURA LTD"
"Bracknell Forest Council","http://opendatacommunities.org/id/unitary-authority/bracknell-forest","Bracknell Forest Council","00MA","Older People (Aged 65 or Over)","Residential Care Home Placements","Heathlands EPH","Agency",21/07/2013 00:00:00,"30223417",627.92,"COMMENSURA LTD"
"Bracknell Forest Council","http://opendatacommunities.org/id/unitary-authority/bracknell-forest","Bracknell Forest Council","00MA","Older People (Aged 65 or Over)","Residential Care Home Placements","Heathlands EPH","Agency",21/07/2013 00:00:00,"30223417",520.26,"COMMENSURA LTD"
"Bracknell Forest Council","http://opendatacommunities.org/id/unitary-authority/bracknell-forest","Bracknell Forest Council","00MA","Older People (Aged 65 or Over)","Residential Care Home Placements","Heathlands EPH","Agency",21/07/2013 00:00:00,"30223417",577.22,"COMMENSURA LTD"
"Bracknell Forest Council","http://opendatacommunities.org/id/unitary-authority/bracknell-forest","Bracknell Forest Council","00MA","Older People (Aged 65 or Over)","Residential Care Home Placements","Heathlands EPH","Agency",21/07/2013 00:00:00,"30223417",502.7,"COMMENSURA LTD"
"Bracknell Forest Council","http://opendatacommunities.org/id/unitary-authority/bracknell-forest","Bracknell Forest Council","00MA","Older People (Aged 65 or Over)","Residential Care Home Placements","Heathlands EPH","Agency",21/07/2013 00:00:00,"30223417",60.9,"COMMENSURA LTD"
"Bracknell Forest Council","http://opendatacommunities.org/id/unitary-authority/bracknell-forest","Bracknell Forest Council","00MA","Older People (Aged 65 or Over)","Residential Care Home Placements","Heathlands EPH","Agency",21/07/2013 00:00:00,"30223417",275.95,"COMMENSURA LTD"
"Bracknell Forest Council","http://opendatacommunities.org/id/unitary-authority/bracknell-forest","Bracknell Forest Council","00MA","Older People (Aged 65 or Over)","Residential Care Home Placements","Heathlands EPH","Agency",21/07/2013 00:00:00,"30223417",644.91,"COMMENSURA LTD"
"Bracknell Forest Council","http://opendatacommunities.org/id/unitary-authority/bracknell-forest","Bracknell Forest Council","00MA","Older People (Aged 65 or Over)","Residential Care Home Placements","Heathlands EPH","Agency",21/07/2013 00:00:00,"30223417",772.08,"COMMENSURA LTD"
"Bracknell Forest Council","http://opendatacommunities.org/id/unitary-authority/bracknell-forest","Bracknell Forest Council","00MA","Older People (Aged 65 or Over)","Residential Care Home Placements","Heathlands EPH","Agency",21/07/2013 00:00:00,"30223417",410.4,"COMMENSURA LTD"
"Bracknell Forest Council","http://opendatacommunities.org/id/unitary-authority/bracknell-forest","Bracknell Forest Council","00MA","Older People (Aged 65 or Over)","Residential Care Home Placements","Heathlands EPH","Agency",21/07/2013 00:00:00,"30223417",596.57,"COMMENSURA LTD"
"Bracknell Forest Council","http://opendatacommunities.org/id/unitary-authority/bracknell-forest","Bracknell Forest Council","00MA","Older People (Aged 65 or Over)","Residential Care Home Placements","Heathlands EPH","Agency",21/07/2013 00:00:00,"30223417",584.78,"COMMENSURA LTD"
"Bracknell Forest Council","http://opendatacommunities.org/id/unitary-authority/bracknell-forest","Bracknell Forest Council","00MA","Older People (Aged 65 or Over)","Residential Care Home Placements","Heathlands EPH","Agency",21/07/2013 00:00:00,"30223417",467.48,"COMMENSURA LTD"
"Bracknell Forest Council","http://opendatacommunities.org/id/unitary-authority/bracknell-forest","Bracknell Forest Council","00MA","Older People (Aged 65 or Over)","Residential Care Home Placements","Heathlands EPH","Agency",21/07/2013 00:00:00,"30223417",542.01,"COMMENSURA LTD"
"Bracknell Forest Council","http://opendatacommunities.org/id/unitary-authority/bracknell-forest","Bracknell Forest Council","00MA","Older People (Aged 65 or Over)","Residential Care Home Placements","Heathlands EPH","Agency",21/07/2013 00:00:00,"30223417",171.02,"COMMENSURA LTD"
"Bracknell Forest Council","http://opendatacommunities.org/id/unitary-authority/bracknell-forest","Bracknell Forest Council","00MA","Early Years","Centrally managed Expenditure - Early Years","Early Years and Childcare","Grants and Donations",18/07/2013 00:00:00,"30223209",1217.88,"COMMUNITY CENTRE PRE SCHOOL"
"Bracknell Forest Council","http://opendatacommunities.org/id/unitary-authority/bracknell-forest","Bracknell Forest Council","00MA","Mental Health Needs (Under 65)","Residential Care Home Placements","Residential Placements-Mental Illness","Contracted Services",02/07/2013 00:00:00,"30222011",3700,"COMMUNITY HOUSING & THERAPY"
"Bracknell Forest Council","http://opendatacommunities.org/id/unitary-authority/bracknell-forest","Bracknell Forest Council","00MA","Mental Health Needs (Under 65)","Residential Care Home Placements","Residential Placements-Mental Illness","Contracted Services",30/07/2013 00:00:00,"30223723",3700,"COMMUNITY HOUSING & THERAPY"
"Bracknell Forest Council","http://opendatacommunities.org/id/unitary-authority/bracknell-forest","Bracknell Forest Council","00MA","Recreation, Sports and Leisure","Indoor Sports & Recreation Facilities","Leisure DSO - Coral Reef","Publicity & Marketing",25/07/2013 00:00:00,"6525140",520,"COMPLETE SIGN SOLUTIONS LTD"
"Bracknell Forest Council","http://opendatacommunities.org/id/unitary-authority/bracknell-forest","Bracknell Forest Council","00MA","Older People (Aged 65 or Over)","Nursing Home Placements","Nursing Home Placements-Elderly","Contracted Services",02/07/2013 00:00:00,"30222011",2100.64,"CONEWOOD MANOR LIMITED"
"Bracknell Forest Council","http://opendatacommunities.org/id/unitary-authority/bracknell-forest","Bracknell Forest Council","00MA","Older People (Aged 65 or Over)","Nursing Home Placements","Nursing Home Placements-Elderly","Contracted Services",30/07/2013 00:00:00,"30223722",2100.64,"CONEWOOD MANOR LIMITED"
"Bracknell Forest Council","http://opendatacommunities.org/id/unitary-authority/bracknell-forest","Bracknell Forest Council","00MA","Children's and Young People's Safety","Local safeguarding children board","Safeguarding Childrens Board","Occasional Hire of Premises",01/07/2013 00:00:00,"6523462",6701.5,"COPPID BEECH HOTEL"
"Bracknell Forest Council","http://opendatacommunities.org/id/unitary-authority/bracknell-forest","Bracknell Forest Council","00MA","Secondary Schools","Delegated Secondary Schools Budgets","Easthampstead Park Community - Secondary","Gas",02/08/2013 00:00:00,"30224162",2445.11,"CORONA ENERGY RETAIL 4 LTD"
"Bracknell Forest Council","http://opendatacommunities.org/id/unitary-authority/bracknell-forest","Bracknell Forest Council","00MA","Primary Schools","Delegated Primary School Budgets","Wildridings - Primary","Gas",02/08/2013 00:00:00,"30224162",129.43,"CORONA ENERGY RETAIL 4 LTD"
"Bracknell Forest Council","http://opendatacommunities.org/id/unitary-authority/bracknell-forest","Bracknell Forest Council","00MA","Primary Schools","Delegated Primary School Budgets","Wooden Hill - Primary","Gas",02/08/2013 00:00:00,"30224162",196.85,"CORONA ENERGY RETAIL 4 LTD"
"Bracknell Forest Council","http://opendatacommunities.org/id/unitary-authority/bracknell-forest","Bracknell Forest Council","00MA","Secondary Schools","Delegated Secondary Schools Budgets","Garth Hill - Secondary","Gas",02/08/2013 00:00:00,"30224162",826.12,"CORONA ENERGY RETAIL 4 LTD"
"Bracknell Forest Council","http://opendatacommunities.org/id/unitary-authority/bracknell-forest","Bracknell Forest Council","00MA","Management and Support Services - CYPL","Holding Codes - net nil","Ranelagh Academy","Gas",02/08/2013 00:00:00,"30224162",188.86,"CORONA ENERGY RETAIL 4 LTD"
"Bracknell Forest Council","http://opendatacommunities.org/id/unitary-authority/bracknell-forest","Bracknell Forest Council","00MA","Management and Support Services - CYPL","Holding Codes - net nil","Ranelagh Academy","Gas",02/08/2013 00:00:00,"30224162",540.22,"CORONA ENERGY RETAIL 4 LTD"
"Bracknell Forest Council","http://opendatacommunities.org/id/unitary-authority/bracknell-forest","Bracknell Forest Council","00MA","Management and Support Services - CYPL","Holding Codes - net nil","Ranelagh Academy","Gas",02/08/2013 00:00:00,"30224162",227.05,"CORONA ENERGY RETAIL 4 LTD"
"Bracknell Forest Council","http://opendatacommunities.org/id/unitary-authority/bracknell-forest","Bracknell Forest Council","00MA","Management and Support Services - CYPL","Holding Codes - net nil","Ranelagh Academy","Gas",02/08/2013 00:00:00,"30224162",291.54,"CORONA ENERGY RETAIL 4 LTD"
"Bracknell Forest Council","http://opendatacommunities.org/id/unitary-authority/bracknell-forest","Bracknell Forest Council","00MA","Primary Schools","Delegated Primary School Budgets","St Joseph's - Catholic Primary","Gas",02/08/2013 00:00:00,"30224162",48.86,"CORONA ENERGY RETAIL 4 LTD"
"Bracknell Forest Council","http://opendatacommunities.org/id/unitary-authority/bracknell-forest","Bracknell Forest Council","00MA","Primary Schools","Delegated Primary School Budgets","Whitegrove - Primary","Gas",02/08/2013 00:00:00,"30224162",278.1,"CORONA ENERGY RETAIL 4 LTD"
"Bracknell Forest Council","http://opendatacommunities.org/id/unitary-authority/bracknell-forest","Bracknell Forest Council","00MA","Primary Schools","Delegated Primary School Budgets","Owlsmoor - Primary","Gas",02/08/2013 00:00:00,"30224162",302.07,"CORONA ENERGY RETAIL 4 LTD"
"Bracknell Forest Council","http://opendatacommunities.org/id/unitary-authority/bracknell-forest","Bracknell Forest Council","00MA","Primary Schools","Delegated Primary School Budgets","The Pines School","Gas",02/08/2013 00:00:00,"30224162",170.92,"CORONA ENERGY RETAIL 4 LTD"
"Bracknell Forest Council","http://opendatacommunities.org/id/unitary-authority/bracknell-forest","Bracknell Forest Council","00MA","Primary Schools","Delegated Primary School Budgets","Holly Spring - Junior","Gas",02/08/2013 00:00:00,"30224162",73.58,"CORONA ENERGY RETAIL 4 LTD"
"Bracknell Forest Council","http://opendatacommunities.org/id/unitary-authority/bracknell-forest","Bracknell Forest Council","00MA","Primary Schools","Delegated Primary School Budgets","Holly Spring - Junior","Gas",02/08/2013 00:00:00,"30224162",-1951.63,"CORONA ENERGY RETAIL 4 LTD"
"Bracknell Forest Council","http://opendatacommunities.org/id/unitary-authority/bracknell-forest","Bracknell Forest Council","00MA","Primary Schools","Delegated Primary School Budgets","Holly Spring - Junior","Gas",02/08/2013 00:00:00,"30224162",1674.08,"CORONA ENERGY RETAIL 4 LTD"
"Bracknell Forest Council","http://opendatacommunities.org/id/unitary-authority/bracknell-forest","Bracknell Forest Council","00MA","Primary Schools","Delegated Primary School Budgets","Holly Spring - Junior","Gas",02/08/2013 00:00:00,"30224162",-675.34,"CORONA ENERGY RETAIL 4 LTD"
"Bracknell Forest Council","http://opendatacommunities.org/id/unitary-authority/bracknell-forest","Bracknell Forest Council","00MA","Primary Schools","Delegated Primary School Budgets","Holly Spring - Junior","Gas",02/08/2013 00:00:00,"30224162",675.34,"CORONA ENERGY RETAIL 4 LTD"
"Bracknell Forest Council","http://opendatacommunities.org/id/unitary-authority/bracknell-forest","Bracknell Forest Council","00MA","Primary Schools","Delegated Primary School Budgets","Holly Spring - Junior","Gas",02/08/2013 00:00:00,"30224162",-239.4,"CORONA ENERGY RETAIL 4 LTD"
"Bracknell Forest Council","http://opendatacommunities.org/id/unitary-authority/bracknell-forest","Bracknell Forest Council","00MA","Primary Schools","Delegated Primary School Budgets","Holly Spring - Junior","Gas",02/08/2013 00:00:00,"30224162",90.92,"CORONA ENERGY RETAIL 4 LTD"
"Bracknell Forest Council","http://opendatacommunities.org/id/unitary-authority/bracknell-forest","Bracknell Forest Council","00MA","Primary Schools","Delegated Primary School Budgets","Holly Spring - Junior","Gas",02/08/2013 00:00:00,"30224162",-128.7,"CORONA ENERGY RETAIL 4 LTD"
"Bracknell Forest Council","http://opendatacommunities.org/id/unitary-authority/bracknell-forest","Bracknell Forest Council","00MA","Primary Schools","Delegated Primary School Budgets","Holly Spring - Junior","Gas",02/08/2013 00:00:00,"30224162",582.26,"CORONA ENERGY RETAIL 4 LTD"
"Bracknell Forest Council","http://opendatacommunities.org/id/unitary-authority/bracknell-forest","Bracknell Forest Council","00MA","Primary Schools","Delegated Primary School Budgets","Holly Spring - Junior","Gas",02/08/2013 00:00:00,"30224162",75.21,"CORONA ENERGY RETAIL 4 LTD"
"Bracknell Forest Council","http://opendatacommunities.org/id/unitary-authority/bracknell-forest","Bracknell Forest Council","00MA","Primary Schools","Delegated Primary School Budgets","Holly Spring - Junior","Gas",02/08/2013 00:00:00,"30224162",-675.34,"CORONA ENERGY RETAIL 4 LTD"
"Bracknell Forest Council","http://opendatacommunities.org/id/unitary-authority/bracknell-forest","Bracknell Forest Council","00MA","Primary Schools","Delegated Primary School Budgets","Holly Spring - Junior","Gas",02/08/2013 00:00:00,"30224162",540.71,"CORONA ENERGY RETAIL 4 LTD"
"Bracknell Forest Council","http://opendatacommunities.org/id/unitary-authority/bracknell-forest","Bracknell Forest Council","00MA","Primary Schools","Delegated Primary School Budgets","Meadow Vale - Primary","Gas",02/08/2013 00:00:00,"30224162",155.23,"CORONA ENERGY RETAIL 4 LTD"
"Bracknell Forest Council","http://opendatacommunities.org/id/unitary-authority/bracknell-forest","Bracknell Forest Council","00MA","Primary Schools","Delegated Primary School Budgets","Fox Hill - Primary","Gas",02/08/2013 00:00:00,"30224162",135.6,"CORONA ENERGY RETAIL 4 LTD"
"Bracknell Forest Council","http://opendatacommunities.org/id/unitary-authority/bracknell-forest","Bracknell Forest Council","00MA","Primary Schools","Delegated Primary School Budgets","Great Hollands Primary School","Gas",02/08/2013 00:00:00,"30224162",467.64,"CORONA ENERGY RETAIL 4 LTD"
"Bracknell Forest Council","http://opendatacommunities.org/id/unitary-authority/bracknell-forest","Bracknell Forest Council","00MA","Business Support","Premises Development","Easthampstead Park Conference Centre","Gas",02/08/2013 00:00:00,"30224162",1608.12,"CORONA ENERGY RETAIL 4 LTD"
"Bracknell Forest Council","http://opendatacommunities.org/id/unitary-authority/bracknell-forest","Bracknell Forest Council","00MA","Open Spaces","Community Parks & Open Spaces","Urban Parks  - Maintenance","Gas",02/08/2013 00:00:00,"30224162",98.98,"CORONA ENERGY RETAIL 4 LTD"
"Bracknell Forest Council","http://opendatacommunities.org/id/unitary-authority/bracknell-forest","Bracknell Forest Council","00MA","Early Years","Children's Centres","The Willows Children's Centre","Gas",02/08/2013 00:00:00,"30224162",128.79,"CORONA ENERGY RETAIL 4 LTD"
"Bracknell Forest Council","http://opendatacommunities.org/id/unitary-authority/bracknell-forest","Bracknell Forest Council","00MA","Libraries","Branch Libraries","Sandhurst Library","Gas",02/08/2013 00:00:00,"30224162",41.53,"CORONA ENERGY RETAIL 4 LTD"
"Bracknell Forest Council","http://opendatacommunities.org/id/unitary-authority/bracknell-forest","Bracknell Forest Council","00MA","Central Support Services - COF","Construction and Property","Time Square Office","Gas",02/08/2013 00:00:00,"30224162",392.85,"CORONA ENERGY RETAIL 4 LTD"
"Bracknell Forest Council","http://opendatacommunities.org/id/unitary-authority/bracknell-forest","Bracknell Forest Council","00MA","Central Support Services - COF","Construction and Property","Easthampstead House","Gas",02/08/2013 00:00:00,"30224162",118.8,"CORONA ENERGY RETAIL 4 LTD"
"Bracknell Forest Council","http://opendatacommunities.org/id/unitary-authority/bracknell-forest","Bracknell Forest Council","00MA","Central Support Services - COF","Construction and Property","Easthampstead House","Gas",02/08/2013 00:00:00,"30224162",586.65,"CORONA ENERGY RETAIL 4 LTD"
"Bracknell Forest Council","http://opendatacommunities.org/id/unitary-authority/bracknell-forest","Bracknell Forest Council","00MA","Holding Accounts","Landscape Services","Landscape Services Operational","Gas",02/08/2013 00:00:00,"30224162",6.9,"CORONA ENERGY RETAIL 4 LTD"
"Bracknell Forest Council","http://opendatacommunities.org/id/unitary-authority/bracknell-forest","Bracknell Forest Council","00MA","Environmental Initiatives","Sustainable Development Strategies","South Hill Park Energy","Gas",02/08/2013 00:00:00,"30224162",191.18,"CORONA ENERGY RETAIL 4 LTD"
"Bracknell Forest Council","http://opendatacommunities.org/id/unitary-authority/bracknell-forest","Bracknell Forest Council","00MA","Family Support Services","Other family support services","Family Centre Running Costs","Gas",02/08/2013 00:00:00,"30224162",71.78,"CORONA ENERGY RETAIL 4 LTD"
"Bracknell Forest Council","http://opendatacommunities.org/id/unitary-authority/bracknell-forest","Bracknell Forest Council","00MA","Services to Young People","Other Services to Young People","Great Hollands Youth Centre","Gas",02/08/2013 00:00:00,"30224162",65.81,"CORONA ENERGY RETAIL 4 LTD"
"Bracknell Forest Council","http://opendatacommunities.org/id/unitary-authority/bracknell-forest","Bracknell Forest Council","00MA","Recreation, Sports and Leisure","Indoor Sports & Recreation Facilities","Leisure DSO - Leisure Centre","Gas",02/08/2013 00:00:00,"30224162",10926.69,"CORONA ENERGY RETAIL 4 LTD"
"Bracknell Forest Council","http://opendatacommunities.org/id/unitary-authority/bracknell-forest","Bracknell Forest Council","00MA","Services to Young People","Other Services to Young People","The Wayz","Gas",02/08/2013 00:00:00,"30224162",85.13,"CORONA ENERGY RETAIL 4 LTD"
"Bracknell Forest Council","http://opendatacommunities.org/id/unitary-authority/bracknell-forest","Bracknell Forest Council","00MA","Services to Young People","Other Services to Young People","Coopers Hill Youth Centre","Gas",02/08/2013 00:00:00,"30224162",116.51,"CORONA ENERGY RETAIL 4 LTD"
"Bracknell Forest Council","http://opendatacommunities.org/id/unitary-authority/bracknell-forest","Bracknell Forest Council","00MA","Open Spaces","Community Parks & Open Spaces","Lily Hill Park Maintenance","Gas",02/08/2013 00:00:00,"30224162",31,"CORONA ENERGY RETAIL 4 LTD"
"Bracknell Forest Council","http://opendatacommunities.org/id/unitary-authority/bracknell-forest","Bracknell Forest Council","00MA","Recreation, Sports and Leisure","Indoor Sports & Recreation Facilities","Leisure DSO - Coral Reef","Gas",02/08/2013 00:00:00,"30224162",14496.64,"CORONA ENERGY RETAIL 4 LTD"
"Bracknell Forest Council","http://opendatacommunities.org/id/unitary-authority/bracknell-forest","Bracknell Forest Council","00MA","Cemeteries, Crematoria & Mortuary Services","Cemeteries & Crematorium","Easthampstead Park Cemetery & Crematorium","Gas",02/08/2013 00:00:00,"30224162",1746.42,"CORONA ENERGY RETAIL 4 LTD"
"Bracknell Forest Council","http://opendatacommunities.org/id/unitary-authority/bracknell-forest","Bracknell Forest Council","00MA","Central Support Services - COF","Construction and Property","Depot Facilities","Gas",02/08/2013 00:00:00,"30224162",639.7,"CORONA ENERGY RETAIL 4 LTD"
"Bracknell Forest Council","http://opendatacommunities.org/id/unitary-authority/bracknell-forest","Bracknell Forest Council","00MA","Recreation, Sports and Leisure","Golf Courses","Golf Course Management & Administration","Gas",02/08/2013 00:00:00,"30224162",593.73,"CORONA ENERGY RETAIL 4 LTD"
"Bracknell Forest Council","http://opendatacommunities.org/id/unitary-authority/bracknell-forest","Bracknell Forest Council","00MA","Libraries","Branch Libraries","Great Hollands Library","Gas",02/08/2013 00:00:00,"30224162",18,"CORONA ENERGY RETAIL 4 LTD"
"Bracknell Forest Council","http://opendatacommunities.org/id/unitary-authority/bracknell-forest","Bracknell Forest Council","00MA","Libraries","Branch Libraries","Harmans Water Library","Gas",02/08/2013 00:00:00,"30224162",32.12,"CORONA ENERGY RETAIL 4 LTD"
"Bracknell Forest Council","http://opendatacommunities.org/id/unitary-authority/bracknell-forest","Bracknell Forest Council","00MA","Services to Young People","Other Services to Young People","Whitegrove Youth Centre","Gas",02/08/2013 00:00:00,"30224162",183.01,"CORONA ENERGY RETAIL 4 LTD"
"Bracknell Forest Council","http://opendatacommunities.org/id/unitary-authority/bracknell-forest","Bracknell Forest Council","00MA","Secondary Schools","Delegated Secondary Schools Budgets","Edgbarrow - Secondary","Gas",02/08/2013 00:00:00,"30224162",931.14,"CORONA ENERGY RETAIL 4 LTD"
"Bracknell Forest Council","http://opendatacommunities.org/id/unitary-authority/bracknell-forest","Bracknell Forest Council","00MA","Primary Schools","Delegated Primary School Budgets","Uplands - Primary","Gas",02/08/2013 00:00:00,"30224162",91.87,"CORONA ENERGY RETAIL 4 LTD"
"Bracknell Forest Council","http://opendatacommunities.org/id/unitary-authority/bracknell-forest","Bracknell Forest Council","00MA","Secondary Schools","Delegated Secondary Schools Budgets","Brakenhale - Secondary","Gas",02/08/2013 00:00:00,"30224162",146.92,"CORONA ENERGY RETAIL 4 LTD"
"Bracknell Forest Council","http://opendatacommunities.org/id/unitary-authority/bracknell-forest","Bracknell Forest Council","00MA","Secondary Schools","Delegated Secondary Schools Budgets","Brakenhale - Secondary","Gas",02/08/2013 00:00:00,"30224162",91.45,"CORONA ENERGY RETAIL 4 LTD"
"Bracknell Forest Council","http://opendatacommunities.org/id/unitary-authority/bracknell-forest","Bracknell Forest Council","00MA","Secondary Schools","Delegated Secondary Schools Budgets","Brakenhale - Secondary","Gas",02/08/2013 00:00:00,"30224162",77.23,"CORONA ENERGY RETAIL 4 LTD"
"Bracknell Forest Council","http://opendatacommunities.org/id/unitary-authority/bracknell-forest","Bracknell Forest Council","00MA","Primary Schools","Delegated Primary School Budgets","Warfield CE - Primary","Gas",02/08/2013 00:00:00,"30224162",146.41,"CORONA ENERGY RETAIL 4 LTD"
"Bracknell Forest Council","http://opendatacommunities.org/id/unitary-authority/bracknell-forest","Bracknell Forest Council","00MA","Primary Schools","Delegated Primary School Budgets","Jennets Park Primary School","Gas",02/08/2013 00:00:00,"30224162",786.8,"CORONA ENERGY RETAIL 4 LTD"
"Bracknell Forest Council","http://opendatacommunities.org/id/unitary-authority/bracknell-forest","Bracknell Forest Council","00MA","Primary Schools","Delegated Primary School Budgets","St Michael's (Easthampstead) - Primary","Gas",02/08/2013 00:00:00,"30224162",168.28,"CORONA ENERGY RETAIL 4 LTD"
"Bracknell Forest Council","http://opendatacommunities.org/id/unitary-authority/bracknell-forest","Bracknell Forest Council","00MA","Primary Schools","Delegated Primary School Budgets","St Michael's (Sandhurst) - Primary","Gas",02/08/2013 00:00:00,"30224162",118.21,"CORONA ENERGY RETAIL 4 LTD"
"Bracknell Forest Council","http://opendatacommunities.org/id/unitary-authority/bracknell-forest","Bracknell Forest Council","00MA","Primary Schools","Delegated Primary School Budgets","St Margaret Clitherow - Catholic Primary","Gas",02/08/2013 00:00:00,"30224162",115.76,"CORONA ENERGY RETAIL 4 LTD"
"Bracknell Forest Council","http://opendatacommunities.org/id/unitary-authority/bracknell-forest","Bracknell Forest Council","00MA","Primary Schools","Delegated Primary School Budgets","Winkfield St Mary's - Primary","Gas",02/08/2013 00:00:00,"30224162",356.39,"CORONA ENERGY RETAIL 4 LTD"
"Bracknell Forest Council","http://opendatacommunities.org/id/unitary-authority/bracknell-forest","Bracknell Forest Council","00MA","Primary Schools","Delegated Primary School Budgets","New Scotland Hill - Primary","Gas",02/08/2013 00:00:00,"30224162",100.16,"CORONA ENERGY RETAIL 4 LTD"
"Bracknell Forest Council","http://opendatacommunities.org/id/unitary-authority/bracknell-forest","Bracknell Forest Council","00MA","Primary Schools","Delegated Primary School Budgets","Sandy Lane Primary School","Gas",02/08/2013 00:00:00,"30224162",203.11,"CORONA ENERGY RETAIL 4 LTD"
"Bracknell Forest Council","http://opendatacommunities.org/id/unitary-authority/bracknell-forest","Bracknell Forest Council","00MA","Primary Schools","Delegated Primary School Budgets","Crowthorne - Primary","Gas",02/08/2013 00:00:00,"30224162",36.73,"CORONA ENERGY RETAIL 4 LTD"
"Bracknell Forest Council","http://opendatacommunities.org/id/unitary-authority/bracknell-forest","Bracknell Forest Council","00MA","Primary Schools","Delegated Primary School Budgets","Crowthorne - Primary","Gas",02/08/2013 00:00:00,"30224162",190.77,"CORONA ENERGY RETAIL 4 LTD"
"Bracknell Forest Council","http://opendatacommunities.org/id/unitary-authority/bracknell-forest","Bracknell Forest Council","00MA","Older People (Aged 65 or Over)","Residential Care Home Placements","Bridgewell Unit","Cost of Goods Sold",09/07/2013 00:00:00,"30223355",188.61,"3663"
"Bracknell Forest Council","http://opendatacommunities.org/id/unitary-authority/bracknell-forest","Bracknell Forest Council","00MA","Business Support","Premises Development","Easthampstead Park Centre - Catering","Cost of Goods Sold",03/07/2013 00:00:00,"30223355",197.61,"3663"
"Bracknell Forest Council","http://opendatacommunities.org/id/unitary-authority/bracknell-forest","Bracknell Forest Council","00MA","Recreation, Sports and Leisure","Golf Courses","Leisure DSO - Downshire Catering","Cost of Goods Sold",10/07/2013 00:00:00,"30223355",207.01,"3663"
"Bracknell Forest Council","http://opendatacommunities.org/id/unitary-authority/bracknell-forest","Bracknell Forest Council","00MA","Business Support","Premises Development","Easthampstead Park Centre - Catering","Cost of Goods Sold",04/07/2013 00:00:00,"30223355",254.52,"3663"
"Bracknell Forest Council","http://opendatacommunities.org/id/unitary-authority/bracknell-forest","Bracknell Forest Council","00MA","Business Support","Premises Development","Easthampstead Park Centre - Catering","Cost of Goods Sold",15/07/2013 00:00:00,"30223355",266.78,"3663"
"Bracknell Forest Council","http://opendatacommunities.org/id/unitary-authority/bracknell-forest","Bracknell Forest Council","00MA","Older People (Aged 65 or Over)","Residential Care Home Placements","Bridgewell Unit","Catering Consumables",03/07/2013 00:00:00,"30223355",314.21,"3663"
"Bracknell Forest Council","http://opendatacommunities.org/id/unitary-authority/bracknell-forest","Bracknell Forest Council","00MA","Business Support","Premises Development","Easthampstead Park Centre - Catering","Catering Consumables",17/07/2013 00:00:00,"30223355",335.12,"3663"
"Bracknell Forest Council","http://opendatacommunities.org/id/unitary-authority/bracknell-forest","Bracknell Forest Council","00MA","Business Support","Premises Development","Easthampstead Park Centre - Catering","Cost of Goods Sold",11/07/2013 00:00:00,"30223355",376.34,"3663"
"Bracknell Forest Council","http://opendatacommunities.org/id/unitary-authority/bracknell-forest","Bracknell Forest Council","00MA","Business Support","Premises Development","Easthampstead Park Centre - Catering","Cost of Goods Sold",17/07/2013 00:00:00,"30223355",476.96,"3663"
"Bracknell Forest Council","http://opendatacommunities.org/id/unitary-authority/bracknell-forest","Bracknell Forest Council","00MA","Recreation, Sports and Leisure","Indoor Sports & Recreation Facilities","Leisure Centre - Catering General","Cost of Goods Sold",03/07/2013 00:00:00,"30223355",481.21,"3663"
"Bracknell Forest Council","http://opendatacommunities.org/id/unitary-authority/bracknell-forest","Bracknell Forest Council","00MA","Recreation, Sports and Leisure","Indoor Sports & Recreation Facilities","Leisure Centre - Catering General","Cost of Goods Sold",10/07/2013 00:00:00,"30223355",487.3,"3663"
"Bracknell Forest Council","http://opendatacommunities.org/id/unitary-authority/bracknell-forest","Bracknell Forest Council","00MA","Business Support","Premises Development","Easthampstead Park Centre - Catering","Cost of Goods Sold",08/07/2013 00:00:00,"30223355",503.76,"3663"
"Bracknell Forest Council","http://opendatacommunities.org/id/unitary-authority/bracknell-forest","Bracknell Forest Council","00MA","Older People (Aged 65 or Over)","Residential Care Home Placements","Heathlands EPH","Cost of Goods Sold",17/07/2013 00:00:00,"30223355",531.03,"3663"
"Bracknell Forest Council","http://opendatacommunities.org/id/unitary-authority/bracknell-forest","Bracknell Forest Council","00MA","Older People (Aged 65 or Over)","Residential Care Home Placements","Bridgewell Unit","Cost of Goods Sold",18/07/2013 00:00:00,"30223355",573.35,"3663"
"Bracknell Forest Council","http://opendatacommunities.org/id/unitary-authority/bracknell-forest","Bracknell Forest Council","00MA","Older People (Aged 65 or Over)","Residential Care Home Placements","Heathlands EPH","Cost of Goods Sold",12/07/2013 00:00:00,"30223355",612.6,"3663"
"Bracknell Forest Council","http://opendatacommunities.org/id/unitary-authority/bracknell-forest","Bracknell Forest Council","00MA","Primary Schools","Delegated Primary School Budgets","Harmans Water - Primary","Gas",02/08/2013 00:00:00,"30224162",158.04,"CORONA ENERGY RETAIL 4 LTD"
"Bracknell Forest Council","http://opendatacommunities.org/id/unitary-authority/bracknell-forest","Bracknell Forest Council","00MA","Primary Schools","Delegated Primary School Budgets","Cranbourne - Primary","Gas",02/08/2013 00:00:00,"30224162",570.77,"CORONA ENERGY RETAIL 4 LTD"
"Bracknell Forest Council","http://opendatacommunities.org/id/unitary-authority/bracknell-forest","Bracknell Forest Council","00MA","Primary Schools","Delegated Primary School Budgets","Crown Wood - Primary","Gas",02/08/2013 00:00:00,"30224162",355.99,"CORONA ENERGY RETAIL 4 LTD"
"Bracknell Forest Council","http://opendatacommunities.org/id/unitary-authority/bracknell-forest","Bracknell Forest Council","00MA","Primary Schools","Delegated Primary School Budgets","Wildmoor Heath School","Gas",02/08/2013 00:00:00,"30224162",138.02,"CORONA ENERGY RETAIL 4 LTD"
"Bracknell Forest Council","http://opendatacommunities.org/id/unitary-authority/bracknell-forest","Bracknell Forest Council","00MA","Primary Schools","Delegated Primary School Budgets","College Town - Infant & Nursery","Gas",02/08/2013 00:00:00,"30224162",184.59,"CORONA ENERGY RETAIL 4 LTD"
"Bracknell Forest Council","http://opendatacommunities.org/id/unitary-authority/bracknell-forest","Bracknell Forest Council","00MA","Primary Schools","Delegated Primary School Budgets","Binfield CE - Primary","Gas",02/08/2013 00:00:00,"30224162",252.44,"CORONA ENERGY RETAIL 4 LTD"
"Bracknell Forest Council","http://opendatacommunities.org/id/unitary-authority/bracknell-forest","Bracknell Forest Council","00MA","Primary Schools","Delegated Primary School Budgets","Birch Hill - Primary","Gas",02/08/2013 00:00:00,"30224162",316.1,"CORONA ENERGY RETAIL 4 LTD"
"Bracknell Forest Council","http://opendatacommunities.org/id/unitary-authority/bracknell-forest","Bracknell Forest Council","00MA","Primary Schools","Delegated Primary School Budgets","Ascot Heath - Infant","Gas",02/08/2013 00:00:00,"30224162",94.51,"CORONA ENERGY RETAIL 4 LTD"
"Bracknell Forest Council","http://opendatacommunities.org/id/unitary-authority/bracknell-forest","Bracknell Forest Council","00MA","Primary Schools","Delegated Primary School Budgets","Ascot Heath - Junior","Gas",02/08/2013 00:00:00,"30224162",53.4,"CORONA ENERGY RETAIL 4 LTD"
"Bracknell Forest Council","http://opendatacommunities.org/id/unitary-authority/bracknell-forest","Bracknell Forest Council","00MA","Secondary Schools","Delegated Secondary Schools Budgets","Sandhurst - Secondary","Gas",02/08/2013 00:00:00,"30224162",667.43,"CORONA ENERGY RETAIL 4 LTD"
"Bracknell Forest Council","http://opendatacommunities.org/id/unitary-authority/bracknell-forest","Bracknell Forest Council","00MA","Special Schools","Delegated Special School Budgets","Kennel Lane","Gas",02/08/2013 00:00:00,"30224162",942.55,"CORONA ENERGY RETAIL 4 LTD"
"Bracknell Forest Council","http://opendatacommunities.org/id/unitary-authority/bracknell-forest","Bracknell Forest Council","00MA","Secondary Schools","Centrally Managed Expenditure - Secondary","College Hall PRU","Gas",02/08/2013 00:00:00,"30224162",122.39,"CORONA ENERGY RETAIL 4 LTD"
"Bracknell Forest Council","http://opendatacommunities.org/id/unitary-authority/bracknell-forest","Bracknell Forest Council","00MA","Early Years","Children's Centres","The Alders Children's Centre","Gas",02/08/2013 00:00:00,"30224162",24.65,"CORONA ENERGY RETAIL 4 LTD"
"Bracknell Forest Council","http://opendatacommunities.org/id/unitary-authority/bracknell-forest","Bracknell Forest Council","00MA","Services to Young People","Adult and Community Learning","Open Learning Centre - Brakenhale","Gas",02/08/2013 00:00:00,"30224162",156.12,"CORONA ENERGY RETAIL 4 LTD"
"Bracknell Forest Council","http://opendatacommunities.org/id/unitary-authority/bracknell-forest","Bracknell Forest Council","00MA","Business Support","Premises Development","Great Hollands Shops","Gas",02/08/2013 00:00:00,"30224162",10.29,"CORONA ENERGY RETAIL 4 LTD"
"Bracknell Forest Council","http://opendatacommunities.org/id/unitary-authority/bracknell-forest","Bracknell Forest Council","00MA","Recreation, Sports and Leisure","Golf Courses","Leisure DSO - Downshire Catering","Cost of Goods Sold",03/07/2013 00:00:00,"30223355",705.11,"3663"
"Bracknell Forest Council","http://opendatacommunities.org/id/unitary-authority/bracknell-forest","Bracknell Forest Council","00MA","Recreation, Sports and Leisure","Golf Courses","Leisure DSO - Downshire Catering","Cost of Goods Sold",01/07/2013 00:00:00,"30223355",813.77,"3663"
"Bracknell Forest Council","http://opendatacommunities.org/id/unitary-authority/bracknell-forest","Bracknell Forest Council","00MA","Business Support","Premises Development","Easthampstead Park Centre - Catering","Cost of Goods Sold",22/07/2013 00:00:00,"30223476",-45.88,"3663"
"Bracknell Forest Council","http://opendatacommunities.org/id/unitary-authority/bracknell-forest","Bracknell Forest Council","00MA","Older People (Aged 65 or Over)","Residential Care Home Placements","Heathlands EPH","Cost of Goods Sold",12/07/2013 00:00:00,"30223476",-29.72,"3663"
"Bracknell Forest Council","http://opendatacommunities.org/id/unitary-authority/bracknell-forest","Bracknell Forest Council","00MA","Recreation, Sports and Leisure","Golf Courses","Leisure DSO - Downshire Catering","Catering Consumables",16/07/2013 00:00:00,"30223476",17.2,"3663"
"Bracknell Forest Council","http://opendatacommunities.org/id/unitary-authority/bracknell-forest","Bracknell Forest Council","00MA","Business Support","Premises Development","Easthampstead Park Centre - Catering","Cost of Goods Sold",18/07/2013 00:00:00,"30223476",26.17,"3663"
"Bracknell Forest Council","http://opendatacommunities.org/id/unitary-authority/bracknell-forest","Bracknell Forest Council","00MA","Business Support","Premises Development","Easthampstead Park Centre - Catering","Cost of Goods Sold",19/07/2013 00:00:00,"30223476",29.36,"3663"
"Bracknell Forest Council","http://opendatacommunities.org/id/unitary-authority/bracknell-forest","Bracknell Forest Council","00MA","Recreation, Sports and Leisure","Golf Courses","Leisure DSO - Downshire Catering","Cost of Goods Sold",16/07/2013 00:00:00,"30223476",38.38,"3663"
"Bracknell Forest Council","http://opendatacommunities.org/id/unitary-authority/bracknell-forest","Bracknell Forest Council","00MA","Business Support","Premises Development","Easthampstead Park Centre - Catering","Cost of Goods Sold",19/07/2013 00:00:00,"30223476",45.88,"3663"
"Bracknell Forest Council","http://opendatacommunities.org/id/unitary-authority/bracknell-forest","Bracknell Forest Council","00MA","Recreation, Sports and Leisure","Golf Courses","Leisure DSO - Downshire Catering","Catering Consumables",16/07/2013 00:00:00,"30223476",51.68,"3663"
"Bracknell Forest Council","http://opendatacommunities.org/id/unitary-authority/bracknell-forest","Bracknell Forest Council","00MA","Older People (Aged 65 or Over)","Residential Care Home Placements","Heathlands EPH","Cost of Goods Sold",10/07/2013 00:00:00,"30223476",52.63,"3663"
"Bracknell Forest Council","http://opendatacommunities.org/id/unitary-authority/bracknell-forest","Bracknell Forest Council","00MA","Recreation, Sports and Leisure","Golf Courses","Leisure DSO - Downshire Catering","Cost of Goods Sold",16/07/2013 00:00:00,"30223476",59.6,"3663"
"Bracknell Forest Council","http://opendatacommunities.org/id/unitary-authority/bracknell-forest","Bracknell Forest Council","00MA","Business Support","Premises Development","Easthampstead Park Centre - Catering","Catering Consumables",23/07/2013 00:00:00,"30223476",66.69,"3663"
"Bracknell Forest Council","http://opendatacommunities.org/id/unitary-authority/bracknell-forest","Bracknell Forest Council","00MA","Business Support","Premises Development","Easthampstead Park Centre - Catering","Cost of Goods Sold",19/07/2013 00:00:00,"30223476",81.32,"3663"
"Bracknell Forest Council","http://opendatacommunities.org/id/unitary-authority/bracknell-forest","Bracknell Forest Council","00MA","Business Support","Premises Development","Easthampstead Park Centre - Catering","Cost of Goods Sold",23/07/2013 00:00:00,"30223476",142.02,"3663"
"Bracknell Forest Council","http://opendatacommunities.org/id/unitary-authority/bracknell-forest","Bracknell Forest Council","00MA","Libraries","Branch Libraries","Ascot Library","Gas",02/08/2013 00:00:00,"30224162",18.56,"CORONA ENERGY RETAIL 4 LTD"
"Bracknell Forest Council","http://opendatacommunities.org/id/unitary-authority/bracknell-forest","Bracknell Forest Council","00MA","Libraries","Branch Libraries","Binfield Library","Gas",02/08/2013 00:00:00,"30224162",30.84,"CORONA ENERGY RETAIL 4 LTD"
"Bracknell Forest Council","http://opendatacommunities.org/id/unitary-authority/bracknell-forest","Bracknell Forest Council","00MA","Libraries","Branch Libraries","Birch Hill Library","Gas",02/08/2013 00:00:00,"30224162",-61.56,"CORONA ENERGY RETAIL 4 LTD"
"Bracknell Forest Council","http://opendatacommunities.org/id/unitary-authority/bracknell-forest","Bracknell Forest Council","00MA","Libraries","Branch Libraries","Birch Hill Library","Gas",02/08/2013 00:00:00,"30224162",62.42,"CORONA ENERGY RETAIL 4 LTD"
"Bracknell Forest Council","http://opendatacommunities.org/id/unitary-authority/bracknell-forest","Bracknell Forest Council","00MA","Libraries","Branch Libraries","Birch Hill Library","Gas",02/08/2013 00:00:00,"30224162",30.18,"CORONA ENERGY RETAIL 4 LTD"
"Bracknell Forest Council","http://opendatacommunities.org/id/unitary-authority/bracknell-forest","Bracknell Forest Council","00MA","Libraries","Branch Libraries","Crowthorne Library","Gas",02/08/2013 00:00:00,"30224162",35.74,"CORONA ENERGY RETAIL 4 LTD"
"Bracknell Forest Council","http://opendatacommunities.org/id/unitary-authority/bracknell-forest","Bracknell Forest Council","00MA","Culture and Heritage","Heritage Museums & Galleries","The Look Out","Gas",02/08/2013 00:00:00,"30224162",373.87,"CORONA ENERGY RETAIL 4 LTD"
"Bracknell Forest Council","http://opendatacommunities.org/id/unitary-authority/bracknell-forest","Bracknell Forest Council","00MA","Recreation, Sports and Leisure","Indoor Sports & Recreation Facilities","Recreation Staff Accommodation","Gas",02/08/2013 00:00:00,"30224162",25.39,"CORONA ENERGY RETAIL 4 LTD"
"Bracknell Forest Council","http://opendatacommunities.org/id/unitary-authority/bracknell-forest","Bracknell Forest Council","00MA","Recreation, Sports and Leisure","Indoor Sports & Recreation Facilities","Recreation Staff Accommodation","Gas",02/08/2013 00:00:00,"30224162",57.78,"CORONA ENERGY RETAIL 4 LTD"
"Bracknell Forest Council","http://opendatacommunities.org/id/unitary-authority/bracknell-forest","Bracknell Forest Council","00MA","Services to Young People","Other Services to Young People","Portman Close Running Costs","Gas",02/08/2013 00:00:00,"30224162",136.43,"CORONA ENERGY RETAIL 4 LTD"
"Bracknell Forest Council","http://opendatacommunities.org/id/unitary-authority/bracknell-forest","Bracknell Forest Council","00MA","Children Looked After","Other children looked after services","Larchwood Running Costs","Gas",02/08/2013 00:00:00,"30224162",266.45,"CORONA ENERGY RETAIL 4 LTD"
"Bracknell Forest Council","http://opendatacommunities.org/id/unitary-authority/bracknell-forest","Bracknell Forest Council","00MA","Older People (Aged 65 or Over)","Residential Care Home Placements","Heathlands EPH","Gas",02/08/2013 00:00:00,"30224162",641.34,"CORONA ENERGY RETAIL 4 LTD"
"Bracknell Forest Council","http://opendatacommunities.org/id/unitary-authority/bracknell-forest","Bracknell Forest Council","00MA","Older People (Aged 65 or Over)","Residential Care Home Placements","Bridgewell Unit","Gas",02/08/2013 00:00:00,"30224162",684.25,"CORONA ENERGY RETAIL 4 LTD"
"Bracknell Forest Council","http://opendatacommunities.org/id/unitary-authority/bracknell-forest","Bracknell Forest Council","00MA","Other Adult Services","Substance Abuse (Addictions)","PTB New Hope Running Costs","Gas",02/08/2013 00:00:00,"30224162",37.76,"CORONA ENERGY RETAIL 4 LTD"
"Bracknell Forest Council","http://opendatacommunities.org/id/unitary-authority/bracknell-forest","Bracknell Forest Council","00MA","Learning Disability (under 65)","Residential Care Home Placements","Waymead - Short Stay","Gas",02/08/2013 00:00:00,"30224162",107.16,"CORONA ENERGY RETAIL 4 LTD"
"Bracknell Forest Council","http://opendatacommunities.org/id/unitary-authority/bracknell-forest","Bracknell Forest Council","00MA","Learning Disability (under 65)","Residential Care Home Placements","Waymead - Short Stay","Gas",02/08/2013 00:00:00,"30224162",330.82,"CORONA ENERGY RETAIL 4 LTD"
"Bracknell Forest Council","http://opendatacommunities.org/id/unitary-authority/bracknell-forest","Bracknell Forest Council","00MA","Learning Disability (under 65)","Day Care","Bracknell Day Services","Gas",02/08/2013 00:00:00,"30224162",-488.06,"CORONA ENERGY RETAIL 4 LTD"
"Bracknell Forest Council","http://opendatacommunities.org/id/unitary-authority/bracknell-forest","Bracknell Forest Council","00MA","Learning Disability (under 65)","Day Care","Bracknell Day Services","Gas",02/08/2013 00:00:00,"30224162",332.1,"CORONA ENERGY RETAIL 4 LTD"
"Bracknell Forest Council","http://opendatacommunities.org/id/unitary-authority/bracknell-forest","Bracknell Forest Council","00MA","Learning Disability (under 65)","Day Care","Bracknell Day Services","Gas",02/08/2013 00:00:00,"30224162",282.69,"CORONA ENERGY RETAIL 4 LTD"
"Bracknell Forest Council","http://opendatacommunities.org/id/unitary-authority/bracknell-forest","Bracknell Forest Council","00MA","Public Transport","Support To Operators","Public Transport Subsidy","Contracted Services",26/06/2013 00:00:00,"6522784",1736.14,"COURTNEY COACHES LTD - FACTORED"
"Bracknell Forest Council","http://opendatacommunities.org/id/unitary-authority/bracknell-forest","Bracknell Forest Council","00MA","Public Transport","Concessionary Fares","Concessionary Fares","Contracted Services",05/07/2013 00:00:00,"6522988",5275.25,"COURTNEY COACHES LTD -NOT FACTORED"
"Bracknell Forest Council","http://opendatacommunities.org/id/unitary-authority/bracknell-forest","Bracknell Forest Council","00MA","Special Schools","Centrally managed Expenditure - Special","Elemt 3 SEN top ups non BFC Mainstm pre 16 over 6k","RB of Windsor & Maidenhead",16/07/2013 00:00:00,"6524088",1098.43,"COX GREEN SCHOOL"
"Bracknell Forest Council","http://opendatacommunities.org/id/unitary-authority/bracknell-forest","Bracknell Forest Council","00MA","Mental Health Needs (Under 65)","Supported and Other Accommodation","Supported Living - Mental Health","Contracted Services",25/07/2013 00:00:00,"30223498",1320,"CREATIVE CARE SOLUTIONS"
"Bracknell Forest Council","http://opendatacommunities.org/id/unitary-authority/bracknell-forest","Bracknell Forest Council","00MA","Mental Health Needs (Under 65)","Supported and Other Accommodation","Supported Living - Mental Health","Contracted Services",25/07/2013 00:00:00,"30223498",1320,"CREATIVE CARE SOLUTIONS"
"Bracknell Forest Council","http://opendatacommunities.org/id/unitary-authority/bracknell-forest","Bracknell Forest Council","00MA","Mental Health Needs (Under 65)","Supported and Other Accommodation","Supported Living - Mental Health","Contracted Services",25/07/2013 00:00:00,"30223498",1320,"CREATIVE CARE SOLUTIONS"
"Bracknell Forest Council","http://opendatacommunities.org/id/unitary-authority/bracknell-forest","Bracknell Forest Council","00MA","Mental Health Needs (Under 65)","Supported and Other Accommodation","Supported Living - Mental Health","Contracted Services",25/07/2013 00:00:00,"30223498",2200,"CREATIVE CARE SOLUTIONS"
"Bracknell Forest Council","http://opendatacommunities.org/id/unitary-authority/bracknell-forest","Bracknell Forest Council","00MA","Mental Health Needs (Under 65)","Supported and Other Accommodation","Supported Living - Mental Health","Contracted Services",25/07/2013 00:00:00,"30223498",2200,"CREATIVE CARE SOLUTIONS"
"Bracknell Forest Council","http://opendatacommunities.org/id/unitary-authority/bracknell-forest","Bracknell Forest Council","00MA","Mental Health Needs (Under 65)","Supported and Other Accommodation","Supported Living - Mental Health","Contracted Services",25/07/2013 00:00:00,"30223498",2200,"CREATIVE CARE SOLUTIONS"
"Bracknell Forest Council","http://opendatacommunities.org/id/unitary-authority/bracknell-forest","Bracknell Forest Council","00MA","","","Birch Hill Primary-MTC","Construction - Contract Payments",11/06/2013 00:00:00,"6523343",8850,"CROFT BUILDING CONTRACTORS LIMITED"
"Bracknell Forest Council","http://opendatacommunities.org/id/unitary-authority/bracknell-forest","Bracknell Forest Council","00MA","","","Pines Primary MTC","Construction - Contract Payments",11/06/2013 00:00:00,"6523345",4450,"CROFT BUILDING CONTRACTORS LIMITED"
"Bracknell Forest Council","http://opendatacommunities.org/id/unitary-authority/bracknell-forest","Bracknell Forest Council","00MA","","","Ascot Heath Junior-MTC","Construction - Contract Payments",11/06/2013 00:00:00,"6524595",3350,"CROFT BUILDING CONTRACTORS LIMITED"
"Bracknell Forest Council","http://opendatacommunities.org/id/unitary-authority/bracknell-forest","Bracknell Forest Council","00MA","","","St Mary's Primary-MTC","Construction - Contract Payments",11/06/2013 00:00:00,"6524620",10375,"CROFT BUILDING CONTRACTORS LIMITED"
"Bracknell Forest Council","http://opendatacommunities.org/id/unitary-authority/bracknell-forest","Bracknell Forest Council","00MA","Older People (Aged 65 or Over)","Residential Care Home Placements","Residential EMI Placements - Elderly","Contracted Services",02/07/2013 00:00:00,"30222011",2011.2,"CROSSWAYS RESIDENTIAL HOME"
"Bracknell Forest Council","http://opendatacommunities.org/id/unitary-authority/bracknell-forest","Bracknell Forest Council","00MA","Older People (Aged 65 or Over)","Residential Care Home Placements","Residential EMI Placements - Elderly","Contracted Services",02/07/2013 00:00:00,"30222011",2011.2,"CROSSWAYS RESIDENTIAL HOME"
"Bracknell Forest Council","http://opendatacommunities.org/id/unitary-authority/bracknell-forest","Bracknell Forest Council","00MA","Older People (Aged 65 or Over)","Residential Care Home Placements","Residential EMI Placements - Elderly","Contracted Services",02/07/2013 00:00:00,"30222011",2011.2,"CROSSWAYS RESIDENTIAL HOME"
"Bracknell Forest Council","http://opendatacommunities.org/id/unitary-authority/bracknell-forest","Bracknell Forest Council","00MA","Older People (Aged 65 or Over)","Residential Care Home Placements","Residential Placements-Elderly","Contracted Services",02/07/2013 00:00:00,"30222011",950.94,"CROSSWAYS RESIDENTIAL HOME"
"Bracknell Forest Council","http://opendatacommunities.org/id/unitary-authority/bracknell-forest","Bracknell Forest Council","00MA","Older People (Aged 65 or Over)","Residential Care Home Placements","Residential Placements-Elderly","Contracted Services",02/07/2013 00:00:00,"30222011",1018.86,"CROSSWAYS RESIDENTIAL HOME"
"Bracknell Forest Council","http://opendatacommunities.org/id/unitary-authority/bracknell-forest","Bracknell Forest Council","00MA","Older People (Aged 65 or Over)","Residential Care Home Placements","Residential Placements-Elderly","Contracted Services",02/07/2013 00:00:00,"30222011",1864.6,"CROSSWAYS RESIDENTIAL HOME"
"Bracknell Forest Council","http://opendatacommunities.org/id/unitary-authority/bracknell-forest","Bracknell Forest Council","00MA","Older People (Aged 65 or Over)","Residential Care Home Placements","Residential Placements-Elderly","Contracted Services",30/07/2013 00:00:00,"30223722",3766.48,"CROSSWAYS RESIDENTIAL HOME"
"Bracknell Forest Council","http://opendatacommunities.org/id/unitary-authority/bracknell-forest","Bracknell Forest Council","00MA","Older People (Aged 65 or Over)","Residential Care Home Placements","Residential EMI Placements - Elderly","Contracted Services",30/07/2013 00:00:00,"30223722",2011.2,"CROSSWAYS RESIDENTIAL HOME"
"Bracknell Forest Council","http://opendatacommunities.org/id/unitary-authority/bracknell-forest","Bracknell Forest Council","00MA","Older People (Aged 65 or Over)","Residential Care Home Placements","Residential EMI Placements - Elderly","Contracted Services",30/07/2013 00:00:00,"30223722",2011.2,"CROSSWAYS RESIDENTIAL HOME"
"Bracknell Forest Council","http://opendatacommunities.org/id/unitary-authority/bracknell-forest","Bracknell Forest Council","00MA","Older People (Aged 65 or Over)","Residential Care Home Placements","Residential EMI Placements - Elderly","Contracted Services",30/07/2013 00:00:00,"30223722",2011.2,"CROSSWAYS RESIDENTIAL HOME"
"Bracknell Forest Council","http://opendatacommunities.org/id/unitary-authority/bracknell-forest","Bracknell Forest Council","00MA","Business Support","Premises Development","Easthampstead Park Centre - Catering","Cost of Goods Sold",10/07/2013 00:00:00,"30223355",26,"CROWN WATER & COFFEE LTD"
"Bracknell Forest Council","http://opendatacommunities.org/id/unitary-authority/bracknell-forest","Bracknell Forest Council","00MA","Business Support","Premises Development","Easthampstead Park Centre - Catering","Cost of Goods Sold",01/07/2013 00:00:00,"30223355",73.3,"CROWN WATER & COFFEE LTD"
"Bracknell Forest Council","http://opendatacommunities.org/id/unitary-authority/bracknell-forest","Bracknell Forest Council","00MA","Business Support","Premises Development","Easthampstead Park Centre - Catering","Cost of Goods Sold",09/07/2013 00:00:00,"30223355",88.67,"CROWN WATER & COFFEE LTD"
"Bracknell Forest Council","http://opendatacommunities.org/id/unitary-authority/bracknell-forest","Bracknell Forest Council","00MA","Business Support","Premises Development","Easthampstead Park Centre - Catering","Cost of Goods Sold",18/07/2013 00:00:00,"30223476",89.4,"CROWN WATER & COFFEE LTD"
"Bracknell Forest Council","http://opendatacommunities.org/id/unitary-authority/bracknell-forest","Bracknell Forest Council","00MA","Business Support","Premises Development","Easthampstead Park Centre - Catering","Cost of Goods Sold",18/07/2013 00:00:00,"30223476",446.47,"CROWN WATER & COFFEE LTD"
"Bracknell Forest Council","http://opendatacommunities.org/id/unitary-authority/bracknell-forest","Bracknell Forest Council","00MA","Older People (Aged 65 or Over)","Assessment & Care Management","Short Term Services - Social Work","Agency",31/07/2013 00:00:00,"30223810",19.8,"CROWN WATER & COFFEE LTD"
"Bracknell Forest Council","http://opendatacommunities.org/id/unitary-authority/bracknell-forest","Bracknell Forest Council","00MA","Older People (Aged 65 or Over)","Other Services To Older People","Winter Pressures 12/13","Agency",31/07/2013 00:00:00,"30223810",4.95,"CROWN WATER & COFFEE LTD"
"Bracknell Forest Council","http://opendatacommunities.org/id/unitary-authority/bracknell-forest","Bracknell Forest Council","00MA","Management and Support Services - CYPL","School Related Expenditure","HTS Interim","Taxi Fares - Home/School Transport",01/07/2013 00:00:00,"6523339",13032.44,"CROWN WHEELCHAIR TRAVEL"
"Bracknell Forest Council","http://opendatacommunities.org/id/unitary-authority/bracknell-forest","Bracknell Forest Council","00MA","Management and Support Services - CYPL","School Related Expenditure","HTS Interim","Taxi Fares - Home/School Transport",01/07/2013 00:00:00,"6523447",19245.8,"CROWN WHEELCHAIR TRAVEL"
"Bracknell Forest Council","http://opendatacommunities.org/id/unitary-authority/bracknell-forest","Bracknell Forest Council","00MA","Management and Support Services - CYPL","School Related Expenditure","HTS Interim","Taxi Fares - Home/School Transport",23/07/2013 00:00:00,"6524712",15965.03,"CROWN WHEELCHAIR TRAVEL"
"Bracknell Forest Council","http://opendatacommunities.org/id/unitary-authority/bracknell-forest","Bracknell Forest Council","00MA","Management and Support Services - CYPL","School Related Expenditure","HTS Interim","Taxi Fares - Home/School Transport",23/07/2013 00:00:00,"6524713",10983.95,"CROWN WHEELCHAIR TRAVEL"
"Bracknell Forest Council","http://opendatacommunities.org/id/unitary-authority/bracknell-forest","Bracknell Forest Council","00MA","Other Adult Services","Other Adult Services","Grants and Donations -Adult","Grants and Donations",26/06/2013 00:00:00,"6522878",2500,"CRUSE BEREAVEMENT CARE"
"Bracknell Forest Council","http://opendatacommunities.org/id/unitary-authority/bracknell-forest","Bracknell Forest Council","00MA","","","Snaprails Improvements","Construction - Contract Payments",27/06/2013 00:00:00,"6523340",12975,"CTS LTD"
"Bracknell Forest Council","http://opendatacommunities.org/id/unitary-authority/bracknell-forest","Bracknell Forest Council","00MA","Traffic Management & Road Safety","Road Safety Education","Road Safety","Publicity & Marketing",29/07/2013 00:00:00,"6525068",3240,"CYCLE EXPERIENCE LIMITED"
"Bracknell Forest Council","http://opendatacommunities.org/id/unitary-authority/bracknell-forest","Bracknell Forest Council","00MA","","","Balance Sheet","Flexible Benefits Control Account",22/07/2013 00:00:00,"6524201",665.83,"CYCLESCHEME LTD"
"Bracknell Forest Council","http://opendatacommunities.org/id/unitary-authority/bracknell-forest","Bracknell Forest Council","00MA","Management and Support Services - CYPL","Unallocated Schools Budget Related Expenditure","Free Milk","Free Milk",05/07/2013 00:00:00,"6524017",4727.52,"DAIRY CREST"
"Bracknell Forest Council","http://opendatacommunities.org/id/unitary-authority/bracknell-forest","Bracknell Forest Council","00MA","Central Support Services - COF","Finance","Internal Audit","Contracted Services",30/06/2013 00:00:00,"6522790",5647.9,"DELOITTE LLP"
"Bracknell Forest Council","http://opendatacommunities.org/id/unitary-authority/bracknell-forest","Bracknell Forest Council","00MA","Central Support Services - COF","Finance","Internal Audit","Contracted Services",14/06/2013 00:00:00,"6523236",2125,"DELOITTE LLP"
"Bracknell Forest Council","http://opendatacommunities.org/id/unitary-authority/bracknell-forest","Bracknell Forest Council","00MA","Central Support Services - COF","Finance","Internal Audit","Contracted Services",12/07/2013 00:00:00,"6524339",2020.9,"DELOITTE LLP"
"Bracknell Forest Council","http://opendatacommunities.org/id/unitary-authority/bracknell-forest","Bracknell Forest Council","00MA","Central Support Services - COF","Finance","Internal Audit","Contracted Services",30/06/2013 00:00:00,"6525191",2125,"DELOITTE LLP"
"Bracknell Forest Council","http://opendatacommunities.org/id/unitary-authority/bracknell-forest","Bracknell Forest Council","00MA","Open Spaces","Countryside Recreation & Management","Rights of Way Maintenance","R&M - Planned",11/06/2013 00:00:00,"6521322",780,"DENNIS ARTIS"
"Bracknell Forest Council","http://opendatacommunities.org/id/unitary-authority/bracknell-forest","Bracknell Forest Council","00MA","","","Savernake Park Improvements","Construction - Contract Payments",19/06/2013 00:00:00,"6523750",650,"DENNIS ARTIS"
"Bracknell Forest Council","http://opendatacommunities.org/id/unitary-authority/bracknell-forest","Bracknell Forest Council","00MA","","","Savernake Park Improvements","Construction - Contract Payments",18/06/2013 00:00:00,"6523751",780,"DENNIS ARTIS"
"Bracknell Forest Council","http://opendatacommunities.org/id/unitary-authority/bracknell-forest","Bracknell Forest Council","00MA","","","Savernake Park Improvements","Construction - Contract Payments",14/06/2013 00:00:00,"6523752",550,"DENNIS ARTIS"
"Bracknell Forest Council","http://opendatacommunities.org/id/unitary-authority/bracknell-forest","Bracknell Forest Council","00MA","Open Spaces","Community Parks & Open Spaces","Tree Service","Contracted Services",03/07/2013 00:00:00,"6523904",680,"DENNIS ARTIS"
"Bracknell Forest Council","http://opendatacommunities.org/id/unitary-authority/bracknell-forest","Bracknell Forest Council","00MA","Open Spaces","Community Parks & Open Spaces","Tree Service","Contracted Services",27/06/2013 00:00:00,"6523951",1820,"DENNIS ARTIS"
"Bracknell Forest Council","http://opendatacommunities.org/id/unitary-authority/bracknell-forest","Bracknell Forest Council","00MA","Services to Young People","Other Services to Young People","Youth Centres Building Maintenance","R&M - Reactive",09/07/2013 00:00:00,"6524173",1650,"DENNIS ARTIS"
"Bracknell Forest Council","http://opendatacommunities.org/id/unitary-authority/bracknell-forest","Bracknell Forest Council","00MA","","","Balance Sheet","Flexible Benefits Control Account",02/07/2013 00:00:00,"6523005",920.1,"DENPLAN LIMITED"
"Bracknell Forest Council","http://opendatacommunities.org/id/unitary-authority/bracknell-forest","Bracknell Forest Council","00MA","Support Services & Management Costs","Training","Social Work Education","Training Costs",31/07/2013 00:00:00,"6524956",1244,"DEPARTMENT OF EDUCATION"
"Bracknell Forest Council","http://opendatacommunities.org/id/unitary-authority/bracknell-forest","Bracknell Forest Council","00MA","Autistic Spectrum Condition (Under 65)","Homecare","Supported Living (Homecare) - Autistic Spectrum Condition","Contracted Services",11/07/2013 00:00:00,"30222750",381.99,"DIMENSIONS (NSO) LTD"
"Bracknell Forest Council","http://opendatacommunities.org/id/unitary-authority/bracknell-forest","Bracknell Forest Council","00MA","Autistic Spectrum Condition (Under 65)","Homecare","Supported Living (Homecare) - Autistic Spectrum Condition","Contracted Services",11/07/2013 00:00:00,"30222750",59.92,"DIMENSIONS (NSO) LTD"
"Bracknell Forest Council","http://opendatacommunities.org/id/unitary-authority/bracknell-forest","Bracknell Forest Council","00MA","Older People (Aged 65 or Over)","Home Care","MH Live-In Carers","Contracted Services",23/07/2013 00:00:00,"30223356",3498.4,"DIMENSIONS (NSO) LTD"
"Bracknell Forest Council","http://opendatacommunities.org/id/unitary-authority/bracknell-forest","Bracknell Forest Council","00MA","Older People (Aged 65 or Over)","Home Care","MH Live-In Carers","Contracted Services",23/07/2013 00:00:00,"30223356",3498.4,"DIMENSIONS (NSO) LTD"
"Bracknell Forest Council","http://opendatacommunities.org/id/unitary-authority/bracknell-forest","Bracknell Forest Council","00MA","Older People (Aged 65 or Over)","Home Care","MH Live-In Carers","Contracted Services",23/07/2013 00:00:00,"30223356",3123.5,"DIMENSIONS (NSO) LTD"
"Bracknell Forest Council","http://opendatacommunities.org/id/unitary-authority/bracknell-forest","Bracknell Forest Council","00MA","Learning Disability (under 65)","Day Care","Supported Living (Day Care) LD","Contracted Services",30/07/2013 00:00:00,"30223719",629.16,"DIMENSIONS (NSO) LTD"
"Bracknell Forest Council","http://opendatacommunities.org/id/unitary-authority/bracknell-forest","Bracknell Forest Council","00MA","Learning Disability (under 65)","Day Care","Supported Living (Day Care) LD","Contracted Services",30/07/2013 00:00:00,"30223719",734.02,"DIMENSIONS (NSO) LTD"
"Bracknell Forest Council","http://opendatacommunities.org/id/unitary-authority/bracknell-forest","Bracknell Forest Council","00MA","Learning Disability (under 65)","Day Care","Supported Living (Day Care) LD","Contracted Services",30/07/2013 00:00:00,"30223719",898.8,"DIMENSIONS (NSO) LTD"
"Bracknell Forest Council","http://opendatacommunities.org/id/unitary-authority/bracknell-forest","Bracknell Forest Council","00MA","Learning Disability (under 65)","Day Care","Supported Living (Day Care) LD","Contracted Services",30/07/2013 00:00:00,"30223719",269.64,"DIMENSIONS (NSO) LTD"
"Bracknell Forest Council","http://opendatacommunities.org/id/unitary-authority/bracknell-forest","Bracknell Forest Council","00MA","Learning Disability (under 65)","Day Care","Supported Living (Day Care) LD","Contracted Services",30/07/2013 00:00:00,"30223719",4284.28,"DIMENSIONS (NSO) LTD"
"Bracknell Forest Council","http://opendatacommunities.org/id/unitary-authority/bracknell-forest","Bracknell Forest Council","00MA","Learning Disability (under 65)","Day Care","Supported Living (Day Care) LD","Contracted Services",30/07/2013 00:00:00,"30223719",134.82,"DIMENSIONS (NSO) LTD"
"Bracknell Forest Council","http://opendatacommunities.org/id/unitary-authority/bracknell-forest","Bracknell Forest Council","00MA","Learning Disability (under 65)","Day Care","Supported Living (Day Care) LD","Contracted Services",30/07/2013 00:00:00,"30223719",1827.56,"DIMENSIONS (NSO) LTD"
"Bracknell Forest Council","http://opendatacommunities.org/id/unitary-authority/bracknell-forest","Bracknell Forest Council","00MA","Learning Disability (under 65)","Day Care","Supported Living (Day Care) LD","Contracted Services",30/07/2013 00:00:00,"30223719",179.76,"DIMENSIONS (NSO) LTD"
"Bracknell Forest Council","http://opendatacommunities.org/id/unitary-authority/bracknell-forest","Bracknell Forest Council","00MA","Learning Disability (under 65)","Day Care","Supported Living (Day Care) LD","Contracted Services",30/07/2013 00:00:00,"30223719",59.92,"DIMENSIONS (NSO) LTD"
"Bracknell Forest Council","http://opendatacommunities.org/id/unitary-authority/bracknell-forest","Bracknell Forest Council","00MA","Physical Disability/Sensory Impairment","Supported and Other Accommodation","Supported Living - Physical Disabilities","Contracted Services",30/07/2013 00:00:00,"30223719",1258.32,"DIMENSIONS (NSO) LTD"
"Bracknell Forest Council","http://opendatacommunities.org/id/unitary-authority/bracknell-forest","Bracknell Forest Council","00MA","Learning Disability (under 65)","Homecare","Supported Living (Homecare) LD","Contracted Services",30/07/2013 00:00:00,"30223719",3661,"DIMENSIONS (NSO) LTD"
"Bracknell Forest Council","http://opendatacommunities.org/id/unitary-authority/bracknell-forest","Bracknell Forest Council","00MA","Learning Disability (under 65)","Homecare","Supported Living (Homecare) LD","Contracted Services",30/07/2013 00:00:00,"30223719",4195.52,"DIMENSIONS (NSO) LTD"
"Bracknell Forest Council","http://opendatacommunities.org/id/unitary-authority/bracknell-forest","Bracknell Forest Council","00MA","Learning Disability (under 65)","Homecare","Supported Living (Homecare) LD","Contracted Services",30/07/2013 00:00:00,"30223719",119.84,"DIMENSIONS (NSO) LTD"
"Bracknell Forest Council","http://opendatacommunities.org/id/unitary-authority/bracknell-forest","Bracknell Forest Council","00MA","Learning Disability (under 65)","Homecare","Supported Living (Homecare) LD","Contracted Services",30/07/2013 00:00:00,"30223719",539.28,"DIMENSIONS (NSO) LTD"
"Bracknell Forest Council","http://opendatacommunities.org/id/unitary-authority/bracknell-forest","Bracknell Forest Council","00MA","Learning Disability (under 65)","Homecare","Supported Living (Homecare) LD","Contracted Services",30/07/2013 00:00:00,"30223719",179.76,"DIMENSIONS (NSO) LTD"
"Bracknell Forest Council","http://opendatacommunities.org/id/unitary-authority/bracknell-forest","Bracknell Forest Council","00MA","Learning Disability (under 65)","Homecare","Supported Living (Homecare) LD","Contracted Services",30/07/2013 00:00:00,"30223719",179.76,"DIMENSIONS (NSO) LTD"
"Bracknell Forest Council","http://opendatacommunities.org/id/unitary-authority/bracknell-forest","Bracknell Forest Council","00MA","Learning Disability (under 65)","Homecare","Supported Living (Homecare) LD","Contracted Services",30/07/2013 00:00:00,"30223719",2967.16,"DIMENSIONS (NSO) LTD"
"Bracknell Forest Council","http://opendatacommunities.org/id/unitary-authority/bracknell-forest","Bracknell Forest Council","00MA","Learning Disability (under 65)","Homecare","Supported Living (Homecare) LD","Contracted Services",30/07/2013 00:00:00,"30223719",29.96,"DIMENSIONS (NSO) LTD"
"Bracknell Forest Council","http://opendatacommunities.org/id/unitary-authority/bracknell-forest","Bracknell Forest Council","00MA","Learning Disability (under 65)","Homecare","Supported Living (Homecare) LD","Contracted Services",30/07/2013 00:00:00,"30223719",179.76,"DIMENSIONS (NSO) LTD"
"Bracknell Forest Council","http://opendatacommunities.org/id/unitary-authority/bracknell-forest","Bracknell Forest Council","00MA","Learning Disability (under 65)","Homecare","Supported Living (Homecare) LD","Contracted Services",30/07/2013 00:00:00,"30223719",179.76,"DIMENSIONS (NSO) LTD"
"Bracknell Forest Council","http://opendatacommunities.org/id/unitary-authority/bracknell-forest","Bracknell Forest Council","00MA","Learning Disability (under 65)","Homecare","Supported Living (Homecare) LD","Contracted Services",30/07/2013 00:00:00,"30223719",4499.88,"DIMENSIONS (NSO) LTD"
"Bracknell Forest Council","http://opendatacommunities.org/id/unitary-authority/bracknell-forest","Bracknell Forest Council","00MA","Learning Disability (under 65)","Homecare","Supported Living (Homecare) LD","Contracted Services",30/07/2013 00:00:00,"30223719",5622.32,"DIMENSIONS (NSO) LTD"
"Bracknell Forest Council","http://opendatacommunities.org/id/unitary-authority/bracknell-forest","Bracknell Forest Council","00MA","Learning Disability (under 65)","Homecare","Supported Living (Homecare) LD","Contracted Services",30/07/2013 00:00:00,"30223719",2708.16,"DIMENSIONS (NSO) LTD"
"Bracknell Forest Council","http://opendatacommunities.org/id/unitary-authority/bracknell-forest","Bracknell Forest Council","00MA","Autistic Spectrum Condition (Under 65)","Day Care","Supported Living (Day Care) - Autistic Spectrum Condition","Contracted Services",30/07/2013 00:00:00,"30223719",768.14,"DIMENSIONS (NSO) LTD"
"Bracknell Forest Council","http://opendatacommunities.org/id/unitary-authority/bracknell-forest","Bracknell Forest Council","00MA","Older People (Aged 65 or Over)","Home Care","Supported Living (Homecare) over 65 - Autistic Spectrum Condition","Contracted Services",30/07/2013 00:00:00,"30223719",239.68,"DIMENSIONS (NSO) LTD"
"Bracknell Forest Council","http://opendatacommunities.org/id/unitary-authority/bracknell-forest","Bracknell Forest Council","00MA","Older People (Aged 65 or Over)","Day Care","Supported Living (Day Care) LD Over 65","Contracted Services",30/07/2013 00:00:00,"30223719",224.7,"DIMENSIONS (NSO) LTD"
"Bracknell Forest Council","http://opendatacommunities.org/id/unitary-authority/bracknell-forest","Bracknell Forest Council","00MA","Learning Disability (under 65)","Day Care","Day Centre Placements-Lrng Disab","Contracted Services",29/03/2013 00:00:00,"6524921",583,"DISABILITY INITIATIVE"
"Bracknell Forest Council","http://opendatacommunities.org/id/unitary-authority/bracknell-forest","Bracknell Forest Council","00MA","Older People (Aged 65 or Over)","Nursing Home Placements","Nursing Home Placements-Elderly","Contracted Services",02/07/2013 00:00:00,"30222011",2461.44,"DORMY HOUSE (SUNNINGDALE) LTD"
"Bracknell Forest Council","http://opendatacommunities.org/id/unitary-authority/bracknell-forest","Bracknell Forest Council","00MA","Older People (Aged 65 or Over)","Nursing Home Placements","Nursing Home Placements-Elderly","Contracted Services",02/07/2013 00:00:00,"30222011",2725.16,"DORMY HOUSE (SUNNINGDALE) LTD"
"Bracknell Forest Council","http://opendatacommunities.org/id/unitary-authority/bracknell-forest","Bracknell Forest Council","00MA","Older People (Aged 65 or Over)","Nursing Home Placements","Nursing Home Placements-Elderly","Contracted Services",02/07/2013 00:00:00,"30222011",2754.4,"DORMY HOUSE (SUNNINGDALE) LTD"
"Bracknell Forest Council","http://opendatacommunities.org/id/unitary-authority/bracknell-forest","Bracknell Forest Council","00MA","Older People (Aged 65 or Over)","Nursing Home Placements","Nursing EMI Placements - Elderly","Contracted Services",02/07/2013 00:00:00,"30222011",4039.16,"DORMY HOUSE (SUNNINGDALE) LTD"
"Bracknell Forest Council","http://opendatacommunities.org/id/unitary-authority/bracknell-forest","Bracknell Forest Council","00MA","Older People (Aged 65 or Over)","Nursing Home Placements","Nursing EMI Placements - Elderly","Contracted Services",30/07/2013 00:00:00,"30223722",4039.16,"DORMY HOUSE (SUNNINGDALE) LTD"
"Bracknell Forest Council","http://opendatacommunities.org/id/unitary-authority/bracknell-forest","Bracknell Forest Council","00MA","Older People (Aged 65 or Over)","Nursing Home Placements","Nursing Home Placements-Elderly","Contracted Services",30/07/2013 00:00:00,"30223722",4821.43,"DORMY HOUSE (SUNNINGDALE) LTD"
"Bracknell Forest Council","http://opendatacommunities.org/id/unitary-authority/bracknell-forest","Bracknell Forest Council","00MA","Older People (Aged 65 or Over)","Nursing Home Placements","Nursing Home Placements-Elderly","Contracted Services",30/07/2013 00:00:00,"30223722",5215.84,"DORMY HOUSE (SUNNINGDALE) LTD"
"Bracknell Forest Council","http://opendatacommunities.org/id/unitary-authority/bracknell-forest","Bracknell Forest Council","00MA","Older People (Aged 65 or Over)","Nursing Home Placements","Nursing Home Placements-Elderly","Contracted Services",30/07/2013 00:00:00,"30223722",2461.44,"DORMY HOUSE (SUNNINGDALE) LTD"
"Bracknell Forest Council","http://opendatacommunities.org/id/unitary-authority/bracknell-forest","Bracknell Forest Council","00MA","Older People (Aged 65 or Over)","Residential Care Home Placements","Residential Placements-Elderly","Contracted Services",02/07/2013 00:00:00,"30222011",1901.88,"DRUID STOKE HOME"
"Bracknell Forest Council","http://opendatacommunities.org/id/unitary-authority/bracknell-forest","Bracknell Forest Council","00MA","Older People (Aged 65 or Over)","Residential Care Home Placements","Residential Placements-Elderly","Contracted Services",30/07/2013 00:00:00,"30223722",1901.88,"DRUID STOKE HOME"
"Bracknell Forest Council","http://opendatacommunities.org/id/unitary-authority/bracknell-forest","Bracknell Forest Council","00MA","Business Support","Premises Development","Easthampstead Park Conference Centre","R&M - Reactive",09/05/2013 00:00:00,"6522501",604.96,"DSC SECURITY"
"Bracknell Forest Council","http://opendatacommunities.org/id/unitary-authority/bracknell-forest","Bracknell Forest Council","00MA","Parking Services","Off Street Parking","Off Street Parking","Electricity",23/07/2013 00:00:00,"6524209",1008,"DTZ"
"Bracknell Forest Council","http://opendatacommunities.org/id/unitary-authority/bracknell-forest","Bracknell Forest Council","00MA","Children Looked After","Residential care","Children's Home Placements","Contracted Services",30/06/2013 00:00:00,"6524109",2132.14,"DUDLEY LODGE"
"Bracknell Forest Council","http://opendatacommunities.org/id/unitary-authority/bracknell-forest","Bracknell Forest Council","00MA","Holding Accounts in Budget Book COF","Corporate Serv - Reprographics & Printing","Print Room","Printing and Design",12/07/2013 00:00:00,"6523889",2120,"DUNCAN PRINT GROUP"
"Bracknell Forest Council","http://opendatacommunities.org/id/unitary-authority/bracknell-forest","Bracknell Forest Council","00MA","Holding Accounts in Budget Book COF","Corporate Serv - Reprographics & Printing","Print Room","Printing and Design",18/07/2013 00:00:00,"6524177",643,"DUNCAN PRINT GROUP"
"Bracknell Forest Council","http://opendatacommunities.org/id/unitary-authority/bracknell-forest","Bracknell Forest Council","00MA","Physical Disability/Sensory Impairment","Residential Care Home Placements","Residential Placements-Phys Disab","Contracted Services",02/07/2013 00:00:00,"30222011",3170.32,"DUNRAVEN HOUSE"
"Bracknell Forest Council","http://opendatacommunities.org/id/unitary-authority/bracknell-forest","Bracknell Forest Council","00MA","Mental Health Needs (Under 65)","Residential Care Home Placements","Residential Placements-Mental Illness","Contracted Services",02/07/2013 00:00:00,"30222011",3400,"DUNRAVEN HOUSE"
"Bracknell Forest Council","http://opendatacommunities.org/id/unitary-authority/bracknell-forest","Bracknell Forest Council","00MA","Mental Health Needs (Under 65)","Residential Care Home Placements","Residential Placements-Mental Illness","Contracted Services",30/07/2013 00:00:00,"30223722",3400,"DUNRAVEN HOUSE"
"Bracknell Forest Council","http://opendatacommunities.org/id/unitary-authority/bracknell-forest","Bracknell Forest Council","00MA","Physical Disability/Sensory Impairment","Residential Care Home Placements","Residential Placements-Phys Disab","Contracted Services",30/07/2013 00:00:00,"30223722",3170.32,"DUNRAVEN HOUSE"
"Bracknell Forest Council","http://opendatacommunities.org/id/unitary-authority/bracknell-forest","Bracknell Forest Council","00MA","Environmental Initiatives","Sustainable Development Strategies","Energy Management","Contracted Services",31/07/2013 00:00:00,"6524953",600,"DURHAM PLUMBING AND HEATING"
"Bracknell Forest Council","http://opendatacommunities.org/id/unitary-authority/bracknell-forest","Bracknell Forest Council","00MA","Special Schools","Centrally managed Expenditure - Special","Youth Service Review","Consultants Fees",30/06/2013 00:00:00,"6522782",5600,"E H CONSULTANCY LTD"
"Bracknell Forest Council","http://opendatacommunities.org/id/unitary-authority/bracknell-forest","Bracknell Forest Council","00MA","Recreation, Sports and Leisure","Golf Courses","Golf Course Management & Administration","Office Stationery",16/07/2013 00:00:00,"6524420",839,"EAGLE PROMOTIONS LTD"
"Bracknell Forest Council","http://opendatacommunities.org/id/unitary-authority/bracknell-forest","Bracknell Forest Council","00MA","Recreation, Sports and Leisure","Sports Development & Community Recreations","Sports Development","Agency",20/06/2013 00:00:00,"6523152",840,"EAST BERKSHIRE CRICKET COACHING"
"Bracknell Forest Council","http://opendatacommunities.org/id/unitary-authority/bracknell-forest","Bracknell Forest Council","00MA","Older People (Aged 65 or Over)","Residential Care Home Placements","Residential EMI Placements - Elderly","Contracted Services",02/07/2013 00:00:00,"30222011",1993.4,"EAST DUNBARTONSHIRE COUNCIL"
"Bracknell Forest Council","http://opendatacommunities.org/id/unitary-authority/bracknell-forest","Bracknell Forest Council","00MA","Older People (Aged 65 or Over)","Residential Care Home Placements","Residential EMI Placements - Elderly","Contracted Services",30/07/2013 00:00:00,"30223722",1993.4,"EAST DUNBARTONSHIRE COUNCIL"
"Bracknell Forest Council","http://opendatacommunities.org/id/unitary-authority/bracknell-forest","Bracknell Forest Council","00MA","Management and Support Services - CYPL","Holding Codes - net nil","Childrens Improvement Board Regional Partnership Grant","Other Local Authorities",12/07/2013 00:00:00,"6523616",47095.6,"EAST SUSSEX COUNTY COUNCIL"
"Bracknell Forest Council","http://opendatacommunities.org/id/unitary-authority/bracknell-forest","Bracknell Forest Council","00MA","","","New SEN Buildings","Consultant Fees",21/06/2013 00:00:00,"6523833",16521.36,"EC HARRIS LLP"
"Bracknell Forest Council","http://opendatacommunities.org/id/unitary-authority/bracknell-forest","Bracknell Forest Council","00MA","","","Meadow Vale - Refurb","Consultant Fees",21/06/2013 00:00:00,"6523834",4015,"EC HARRIS LLP"
"Bracknell Forest Council","http://opendatacommunities.org/id/unitary-authority/bracknell-forest","Bracknell Forest Council","00MA","","","Brakenhale Science Block","Consultant Fees",21/06/2013 00:00:00,"6523835",3372.62,"EC HARRIS LLP"
"Bracknell Forest Council","http://opendatacommunities.org/id/unitary-authority/bracknell-forest","Bracknell Forest Council","00MA","","","Wildmoor Heath Primary","Consultant Fees",21/06/2013 00:00:00,"6523836",10029.69,"EC HARRIS LLP"
"Bracknell Forest Council","http://opendatacommunities.org/id/unitary-authority/bracknell-forest","Bracknell Forest Council","00MA","","","The Pines Primary","Consultant Fees",21/06/2013 00:00:00,"6523839",5930.83,"EC HARRIS LLP"
"Bracknell Forest Council","http://opendatacommunities.org/id/unitary-authority/bracknell-forest","Bracknell Forest Council","00MA","","","Meadow Vale - Refurb","Consultant Fees",21/06/2013 00:00:00,"6523840",3373.36,"EC HARRIS LLP"
"Bracknell Forest Council","http://opendatacommunities.org/id/unitary-authority/bracknell-forest","Bracknell Forest Council","00MA","","","Crown Wood Primary","Consultant Fees",21/06/2013 00:00:00,"6523841",7472.78,"EC HARRIS LLP"
"Bracknell Forest Council","http://opendatacommunities.org/id/unitary-authority/bracknell-forest","Bracknell Forest Council","00MA","Holding Accounts not in Budget Book - COF","General Holding Accounts","Certificated Contract Payments","Consultants Fees",24/06/2013 00:00:00,"6524030",9636.21,"EC HARRIS LLP"
"Bracknell Forest Council","http://opendatacommunities.org/id/unitary-authority/bracknell-forest","Bracknell Forest Council","00MA","","","Ascot Heath Junior-MTC","Building Construction Consultant",24/06/2013 00:00:00,"6524031",9240.77,"EC HARRIS LLP"
"Bracknell Forest Council","http://opendatacommunities.org/id/unitary-authority/bracknell-forest","Bracknell Forest Council","00MA","Holding Accounts not in Budget Book - COF","General Holding Accounts","Certificated Contract Payments","Consultants Fees",24/06/2013 00:00:00,"6524032",6325,"EC HARRIS LLP"
"Bracknell Forest Council","http://opendatacommunities.org/id/unitary-authority/bracknell-forest","Bracknell Forest Council","00MA","Holding Accounts not in Budget Book - COF","General Holding Accounts","Certificated Contract Payments","Consultants Fees",26/04/2013 00:00:00,"6524033",2568.12,"EC HARRIS LLP"
"Bracknell Forest Council","http://opendatacommunities.org/id/unitary-authority/bracknell-forest","Bracknell Forest Council","00MA","","","Wildmoor Heath Primary","Consultant Fees",21/06/2013 00:00:00,"6524101",621.63,"EC HARRIS LLP"
"Bracknell Forest Council","http://opendatacommunities.org/id/unitary-authority/bracknell-forest","Bracknell Forest Council","00MA","","","New SEN Buildings","Consultant Fees",21/06/2013 00:00:00,"6524101",1017.49,"EC HARRIS LLP"
"Bracknell Forest Council","http://opendatacommunities.org/id/unitary-authority/bracknell-forest","Bracknell Forest Council","00MA","","","Meadow Vale - Refurb","Consultant Fees",21/06/2013 00:00:00,"6524101",627.04,"EC HARRIS LLP"
"Bracknell Forest Council","http://opendatacommunities.org/id/unitary-authority/bracknell-forest","Bracknell Forest Council","00MA","","","Meadow Vale - Refurb","Consultant Fees",21/06/2013 00:00:00,"6524792",594.03,"EC HARRIS LLP"
"Bracknell Forest Council","http://opendatacommunities.org/id/unitary-authority/bracknell-forest","Bracknell Forest Council","00MA","","","New SEN Buildings","Consultant Fees",21/06/2013 00:00:00,"6524792",963.93,"EC HARRIS LLP"
"Bracknell Forest Council","http://opendatacommunities.org/id/unitary-authority/bracknell-forest","Bracknell Forest Council","00MA","","","Wildmoor Heath Primary","Consultant Fees",21/06/2013 00:00:00,"6524792",588.92,"EC HARRIS LLP"
"Bracknell Forest Council","http://opendatacommunities.org/id/unitary-authority/bracknell-forest","Bracknell Forest Council","00MA","Secondary Schools","Delegated Secondary Schools Budgets","Sandhurst - Secondary","Electricity",01/08/2013 00:00:00,"30224011",3623.2,"EDF Energy"
"Bracknell Forest Council","http://opendatacommunities.org/id/unitary-authority/bracknell-forest","Bracknell Forest Council","00MA","Secondary Schools","Delegated Secondary Schools Budgets","Sandhurst - Secondary","Electricity",01/08/2013 00:00:00,"30224011",3750.8,"EDF Energy"
"Bracknell Forest Council","http://opendatacommunities.org/id/unitary-authority/bracknell-forest","Bracknell Forest Council","00MA","Secondary Schools","Delegated Secondary Schools Budgets","Sandhurst - Secondary","Electricity",01/08/2013 00:00:00,"30224011",3712.17,"EDF Energy"
"Bracknell Forest Council","http://opendatacommunities.org/id/unitary-authority/bracknell-forest","Bracknell Forest Council","00MA","Secondary Schools","Delegated Secondary Schools Budgets","Brakenhale - Secondary","Electricity",01/08/2013 00:00:00,"30224011",4609.46,"EDF Energy"
"Bracknell Forest Council","http://opendatacommunities.org/id/unitary-authority/bracknell-forest","Bracknell Forest Council","00MA","Secondary Schools","Delegated Secondary Schools Budgets","Brakenhale - Secondary","Electricity",01/08/2013 00:00:00,"30224011",4406.89,"EDF Energy"
"Bracknell Forest Council","http://opendatacommunities.org/id/unitary-authority/bracknell-forest","Bracknell Forest Council","00MA","Secondary Schools","Delegated Secondary Schools Budgets","Brakenhale - Secondary","Electricity",01/08/2013 00:00:00,"30224011",4105.45,"EDF Energy"
"Bracknell Forest Council","http://opendatacommunities.org/id/unitary-authority/bracknell-forest","Bracknell Forest Council","00MA","Secondary Schools","Delegated Secondary Schools Budgets","Edgbarrow - Secondary","Electricity",01/08/2013 00:00:00,"30224011",3271.91,"EDF Energy"
"Bracknell Forest Council","http://opendatacommunities.org/id/unitary-authority/bracknell-forest","Bracknell Forest Council","00MA","Secondary Schools","Delegated Secondary Schools Budgets","Edgbarrow - Secondary","Electricity",01/08/2013 00:00:00,"30224011",3787.2,"EDF Energy"
"Bracknell Forest Council","http://opendatacommunities.org/id/unitary-authority/bracknell-forest","Bracknell Forest Council","00MA","Secondary Schools","Delegated Secondary Schools Budgets","Edgbarrow - Secondary","Electricity",01/08/2013 00:00:00,"30224011",3805.1,"EDF Energy"
"Bracknell Forest Council","http://opendatacommunities.org/id/unitary-authority/bracknell-forest","Bracknell Forest Council","00MA","Cemeteries, Crematoria & Mortuary Services","Cemeteries & Crematorium","Easthampstead Park Cemetery & Crematorium","Electricity",01/08/2013 00:00:00,"30224011",1142.85,"EDF Energy"
"Bracknell Forest Council","http://opendatacommunities.org/id/unitary-authority/bracknell-forest","Bracknell Forest Council","00MA","Cemeteries, Crematoria & Mortuary Services","Cemeteries & Crematorium","Easthampstead Park Cemetery & Crematorium","Electricity",01/08/2013 00:00:00,"30224011",1083.11,"EDF Energy"
"Bracknell Forest Council","http://opendatacommunities.org/id/unitary-authority/bracknell-forest","Bracknell Forest Council","00MA","Cemeteries, Crematoria & Mortuary Services","Cemeteries & Crematorium","Easthampstead Park Cemetery & Crematorium","Electricity",01/08/2013 00:00:00,"30224011",1031.67,"EDF Energy"
"Bracknell Forest Council","http://opendatacommunities.org/id/unitary-authority/bracknell-forest","Bracknell Forest Council","00MA","Recreation, Sports and Leisure","Indoor Sports & Recreation Facilities","Leisure DSO - Leisure Centre","Electricity",01/08/2013 00:00:00,"30224011",8599.47,"EDF Energy"
"Bracknell Forest Council","http://opendatacommunities.org/id/unitary-authority/bracknell-forest","Bracknell Forest Council","00MA","Recreation, Sports and Leisure","Indoor Sports & Recreation Facilities","Leisure DSO - Leisure Centre","Electricity",01/08/2013 00:00:00,"30224011",8865.2,"EDF Energy"
"Bracknell Forest Council","http://opendatacommunities.org/id/unitary-authority/bracknell-forest","Bracknell Forest Council","00MA","Business Support","Premises Development","Easthampstead Park Centre - Catering","Cost of Goods Sold",18/07/2013 00:00:00,"30223476",208.34,"3663"
"Bracknell Forest Council","http://opendatacommunities.org/id/unitary-authority/bracknell-forest","Bracknell Forest Council","00MA","Business Support","Premises Development","Easthampstead Park Centre - Catering","Cost of Goods Sold",19/07/2013 00:00:00,"30223476",291.19,"3663"
"Bracknell Forest Council","http://opendatacommunities.org/id/unitary-authority/bracknell-forest","Bracknell Forest Council","00MA","Business Support","Premises Development","Easthampstead Park Centre - Catering","Cost of Goods Sold",18/07/2013 00:00:00,"30223476",357.21,"3663"
"Bracknell Forest Council","http://opendatacommunities.org/id/unitary-authority/bracknell-forest","Bracknell Forest Council","00MA","Business Support","Premises Development","Easthampstead Park Centre - Catering","Cost of Goods Sold",23/07/2013 00:00:00,"30223476",432.24,"3663"
"Bracknell Forest Council","http://opendatacommunities.org/id/unitary-authority/bracknell-forest","Bracknell Forest Council","00MA","Older People (Aged 65 or Over)","Residential Care Home Placements","Heathlands EPH","Cost of Goods Sold",10/07/2013 00:00:00,"30223476",827.02,"3663"
"Bracknell Forest Council","http://opendatacommunities.org/id/unitary-authority/bracknell-forest","Bracknell Forest Council","00MA","Older People (Aged 65 or Over)","Assessment & Care Management","Short Term Services (S75 Funded)","Agency",31/07/2013 00:00:00,"30223810",1058.59,"3663"
"Bracknell Forest Council","http://opendatacommunities.org/id/unitary-authority/bracknell-forest","Bracknell Forest Council","00MA","Commissioning and Social Work","Commissioning and Social Work","Access to Records","Agency",31/07/2013 00:00:00,"30223810",1462.24,"3663"
"Bracknell Forest Council","http://opendatacommunities.org/id/unitary-authority/bracknell-forest","Bracknell Forest Council","00MA","Commissioning and Social Work","Commissioning and Social Work","Children Aged Over 11","Agency",31/07/2013 00:00:00,"30223810",242.73,"3663"
"Bracknell Forest Council","http://opendatacommunities.org/id/unitary-authority/bracknell-forest","Bracknell Forest Council","00MA","Commissioning and Social Work","Commissioning and Social Work","Children Aged Under 11","Agency",31/07/2013 00:00:00,"30223810",3.15,"3663"
"Bracknell Forest Council","http://opendatacommunities.org/id/unitary-authority/bracknell-forest","Bracknell Forest Council","00MA","Mental Health Needs (Under 65)","Assessment & Care Management","CMHT","Agency",31/07/2013 00:00:00,"30223810",1106.65,"3663"
"Bracknell Forest Council","http://opendatacommunities.org/id/unitary-authority/bracknell-forest","Bracknell Forest Council","00MA","Older People (Aged 65 or Over)","Other Services To Older People","Winter Pressures 12/13","Agency",31/07/2013 00:00:00,"30223810",760.74,"3663"
"Bracknell Forest Council","http://opendatacommunities.org/id/unitary-authority/bracknell-forest","Bracknell Forest Council","00MA","Older People (Aged 65 or Over)","Day Care","Heathlands Day Centre","Office Stationery",31/07/2013 00:00:00,"30223881",0.39,"3663"
"Bracknell Forest Council","http://opendatacommunities.org/id/unitary-authority/bracknell-forest","Bracknell Forest Council","00MA","Older People (Aged 65 or Over)","Day Care","Heathlands Day Centre","Office Stationery",31/07/2013 00:00:00,"30223881",-0.39,"3663"
"Bracknell Forest Council","http://opendatacommunities.org/id/unitary-authority/bracknell-forest","Bracknell Forest Council","00MA","Open Spaces","Countryside Recreation & Management","Countryside Sites General","Office Stationery",31/07/2013 00:00:00,"30223881",29.38,"3663"
"Bracknell Forest Council","http://opendatacommunities.org/id/unitary-authority/bracknell-forest","Bracknell Forest Council","00MA","Open Spaces","Countryside Recreation & Management","Countryside Sites General","Office Stationery",31/07/2013 00:00:00,"30223881",13.68,"3663"
"Bracknell Forest Council","http://opendatacommunities.org/id/unitary-authority/bracknell-forest","Bracknell Forest Council","00MA","Open Spaces","Countryside Recreation & Management","Countryside Sites General","Office Stationery",31/07/2013 00:00:00,"30223881",2.15,"3663"
"Bracknell Forest Council","http://opendatacommunities.org/id/unitary-authority/bracknell-forest","Bracknell Forest Council","00MA","Early Years","Children's Centres","The Oaks Children's Centre","Office Stationery",31/07/2013 00:00:00,"30223881",12.77,"3663"
"Bracknell Forest Council","http://opendatacommunities.org/id/unitary-authority/bracknell-forest","Bracknell Forest Council","00MA","Early Years","Children's Centres","The Oaks Children's Centre","Office Stationery",31/07/2013 00:00:00,"30223881",10.5,"3663"
"Bracknell Forest Council","http://opendatacommunities.org/id/unitary-authority/bracknell-forest","Bracknell Forest Council","00MA","Early Years","Children's Centres","The Oaks Children's Centre","Office Stationery",31/07/2013 00:00:00,"30223881",73.05,"3663"
"Bracknell Forest Council","http://opendatacommunities.org/id/unitary-authority/bracknell-forest","Bracknell Forest Council","00MA","Early Years","Children's Centres","The Oaks Children's Centre","Office Stationery",31/07/2013 00:00:00,"30223881",4.76,"3663"
"Bracknell Forest Council","http://opendatacommunities.org/id/unitary-authority/bracknell-forest","Bracknell Forest Council","00MA","Early Years","Children's Centres","The Oaks Children's Centre","Office Stationery",31/07/2013 00:00:00,"30223881",17.97,"3663"
"Bracknell Forest Council","http://opendatacommunities.org/id/unitary-authority/bracknell-forest","Bracknell Forest Council","00MA","Early Years","Children's Centres","The Willows Children's Centre","Office Stationery",31/07/2013 00:00:00,"30223881",13.94,"3663"
"Bracknell Forest Council","http://opendatacommunities.org/id/unitary-authority/bracknell-forest","Bracknell Forest Council","00MA","Primary Schools","Centrally Managed Expenditure - Primary","Primary Resource Centre","Office Stationery",31/07/2013 00:00:00,"30223881",1.04,"3663"
"Bracknell Forest Council","http://opendatacommunities.org/id/unitary-authority/bracknell-forest","Bracknell Forest Council","00MA","Registration Births, Deaths & Marriages","Registration births, deaths and marriages","Registration Marriages","Office Stationery",31/07/2013 00:00:00,"30223881",1.9,"3663"
"Bracknell Forest Council","http://opendatacommunities.org/id/unitary-authority/bracknell-forest","Bracknell Forest Council","00MA","Registration Births, Deaths & Marriages","Registration births, deaths and marriages","Registration Marriages","Office Stationery",31/07/2013 00:00:00,"30223881",139.46,"3663"
"Bracknell Forest Council","http://opendatacommunities.org/id/unitary-authority/bracknell-forest","Bracknell Forest Council","00MA","Registration Births, Deaths & Marriages","Registration births, deaths and marriages","Registration Marriages","Office Stationery",31/07/2013 00:00:00,"30223881",24.16,"3663"
"Bracknell Forest Council","http://opendatacommunities.org/id/unitary-authority/bracknell-forest","Bracknell Forest Council","00MA","Other Welfare Services","Other Welfare Services","Forestcare - Operational","Office Stationery",31/07/2013 00:00:00,"30223881",11.72,"3663"
"Bracknell Forest Council","http://opendatacommunities.org/id/unitary-authority/bracknell-forest","Bracknell Forest Council","00MA","Community Development","Community Development","EIF Project","Office Stationery",31/07/2013 00:00:00,"30223881",24.32,"3663"
"Bracknell Forest Council","http://opendatacommunities.org/id/unitary-authority/bracknell-forest","Bracknell Forest Council","00MA","Community Development","Community Development","EIF Project","Office Stationery",31/07/2013 00:00:00,"30223881",16.65,"3663"
"Bracknell Forest Council","http://opendatacommunities.org/id/unitary-authority/bracknell-forest","Bracknell Forest Council","00MA","Holding Accounts in Budget Book COF","Corporate Services - Office Services","Office Services - General Expenses","Office Stationery",31/07/2013 00:00:00,"30223881",6.6,"3663"
"Bracknell Forest Council","http://opendatacommunities.org/id/unitary-authority/bracknell-forest","Bracknell Forest Council","00MA","Holding Accounts in Budget Book COF","Corporate Services - Office Services","Office Services - General Expenses","Office Stationery",31/07/2013 00:00:00,"30223881",12.28,"3663"
"Bracknell Forest Council","http://opendatacommunities.org/id/unitary-authority/bracknell-forest","Bracknell Forest Council","00MA","Holding Accounts in Budget Book COF","Corporate Services - Office Services","Office Services - General Expenses","Office Stationery",31/07/2013 00:00:00,"30223881",7.68,"3663"
"Bracknell Forest Council","http://opendatacommunities.org/id/unitary-authority/bracknell-forest","Bracknell Forest Council","00MA","Recreation, Sports and Leisure","Indoor Sports & Recreation Facilities","Leisure DSO - Leisure Centre","Electricity",01/08/2013 00:00:00,"30224011",8768.56,"EDF Energy"
"Bracknell Forest Council","http://opendatacommunities.org/id/unitary-authority/bracknell-forest","Bracknell Forest Council","00MA","Business Support","Premises Development","Easthampstead Park Conference Centre","Electricity",01/08/2013 00:00:00,"30224011",4098.56,"EDF Energy"
"Bracknell Forest Council","http://opendatacommunities.org/id/unitary-authority/bracknell-forest","Bracknell Forest Council","00MA","Business Support","Premises Development","Easthampstead Park Conference Centre","Electricity",01/08/2013 00:00:00,"30224011",3817.79,"EDF Energy"
"Bracknell Forest Council","http://opendatacommunities.org/id/unitary-authority/bracknell-forest","Bracknell Forest Council","00MA","Business Support","Premises Development","Easthampstead Park Conference Centre","Electricity",01/08/2013 00:00:00,"30224011",3644.84,"EDF Energy"
"Bracknell Forest Council","http://opendatacommunities.org/id/unitary-authority/bracknell-forest","Bracknell Forest Council","00MA","Recreation, Sports and Leisure","Indoor Sports & Recreation Facilities","Leisure DSO - Coral Reef","Electricity",01/08/2013 00:00:00,"30224011",12781.8,"EDF Energy"
"Bracknell Forest Council","http://opendatacommunities.org/id/unitary-authority/bracknell-forest","Bracknell Forest Council","00MA","Recreation, Sports and Leisure","Indoor Sports & Recreation Facilities","Leisure DSO - Coral Reef","Electricity",01/08/2013 00:00:00,"30224011",17554.28,"EDF Energy"
"Bracknell Forest Council","http://opendatacommunities.org/id/unitary-authority/bracknell-forest","Bracknell Forest Council","00MA","Recreation, Sports and Leisure","Indoor Sports & Recreation Facilities","Leisure DSO - Coral Reef","Electricity",01/08/2013 00:00:00,"30224011",17231.02,"EDF Energy"
"Bracknell Forest Council","http://opendatacommunities.org/id/unitary-authority/bracknell-forest","Bracknell Forest Council","00MA","Environmental Initiatives","Sustainable Development Strategies","South Hill Park Energy","Electricity",01/08/2013 00:00:00,"30224011",6512.76,"EDF Energy"
"Bracknell Forest Council","http://opendatacommunities.org/id/unitary-authority/bracknell-forest","Bracknell Forest Council","00MA","Environmental Initiatives","Sustainable Development Strategies","South Hill Park Energy","Electricity",01/08/2013 00:00:00,"30224011",5448.27,"EDF Energy"
"Bracknell Forest Council","http://opendatacommunities.org/id/unitary-authority/bracknell-forest","Bracknell Forest Council","00MA","Environmental Initiatives","Sustainable Development Strategies","South Hill Park Energy","Electricity",01/08/2013 00:00:00,"30224011",4757.24,"EDF Energy"
"Bracknell Forest Council","http://opendatacommunities.org/id/unitary-authority/bracknell-forest","Bracknell Forest Council","00MA","Central Support Services - COF","Construction and Property","Time Square Office","Electricity",01/08/2013 00:00:00,"30224011",8479.48,"EDF Energy"
"Bracknell Forest Council","http://opendatacommunities.org/id/unitary-authority/bracknell-forest","Bracknell Forest Council","00MA","Central Support Services - COF","Construction and Property","Time Square Office","Electricity",01/08/2013 00:00:00,"30224011",8575.52,"EDF Energy"
"Bracknell Forest Council","http://opendatacommunities.org/id/unitary-authority/bracknell-forest","Bracknell Forest Council","00MA","Central Support Services - COF","Construction and Property","Time Square Office","Electricity",01/08/2013 00:00:00,"30224011",8212.42,"EDF Energy"
"Bracknell Forest Council","http://opendatacommunities.org/id/unitary-authority/bracknell-forest","Bracknell Forest Council","00MA","Central Support Services - COF","Construction and Property","Easthampstead House","Electricity",01/08/2013 00:00:00,"30224011",2531.16,"EDF Energy"
"Bracknell Forest Council","http://opendatacommunities.org/id/unitary-authority/bracknell-forest","Bracknell Forest Council","00MA","Central Support Services - COF","Construction and Property","Easthampstead House","Electricity",01/08/2013 00:00:00,"30224011",2390.61,"EDF Energy"
"Bracknell Forest Council","http://opendatacommunities.org/id/unitary-authority/bracknell-forest","Bracknell Forest Council","00MA","Central Support Services - COF","Construction and Property","Easthampstead House","Electricity",01/08/2013 00:00:00,"30224011",2102.12,"EDF Energy"
"Bracknell Forest Council","http://opendatacommunities.org/id/unitary-authority/bracknell-forest","Bracknell Forest Council","00MA","Recreation, Sports and Leisure","Dual Use Centres","Edgbarrow Sports Centre","Electricity",01/08/2013 00:00:00,"30224011",1683.71,"EDF Energy"
"Bracknell Forest Council","http://opendatacommunities.org/id/unitary-authority/bracknell-forest","Bracknell Forest Council","00MA","Recreation, Sports and Leisure","Dual Use Centres","Edgbarrow Sports Centre","Electricity",01/08/2013 00:00:00,"30224011",1581.53,"EDF Energy"
"Bracknell Forest Council","http://opendatacommunities.org/id/unitary-authority/bracknell-forest","Bracknell Forest Council","00MA","Recreation, Sports and Leisure","Dual Use Centres","Edgbarrow Sports Centre","Electricity",01/08/2013 00:00:00,"30224011",1480.04,"EDF Energy"
"Bracknell Forest Council","http://opendatacommunities.org/id/unitary-authority/bracknell-forest","Bracknell Forest Council","00MA","Primary Schools","Delegated Primary School Budgets","Holly Spring - Infant & Nursery","Electricity",01/08/2013 00:00:00,"30224011",1504.38,"EDF Energy"
"Bracknell Forest Council","http://opendatacommunities.org/id/unitary-authority/bracknell-forest","Bracknell Forest Council","00MA","Primary Schools","Delegated Primary School Budgets","Holly Spring - Infant & Nursery","Electricity",01/08/2013 00:00:00,"30224011",1542.96,"EDF Energy"
"Bracknell Forest Council","http://opendatacommunities.org/id/unitary-authority/bracknell-forest","Bracknell Forest Council","00MA","Primary Schools","Delegated Primary School Budgets","Holly Spring - Infant & Nursery","Electricity",01/08/2013 00:00:00,"30224011",1469.69,"EDF Energy"
"Bracknell Forest Council","http://opendatacommunities.org/id/unitary-authority/bracknell-forest","Bracknell Forest Council","00MA","Management and Support Services - CYPL","Holding Codes - net nil","Ranelagh Academy","Electricity",01/08/2013 00:00:00,"30224011",2062.59,"EDF Energy"
"Bracknell Forest Council","http://opendatacommunities.org/id/unitary-authority/bracknell-forest","Bracknell Forest Council","00MA","Management and Support Services - CYPL","Holding Codes - net nil","Ranelagh Academy","Electricity",01/08/2013 00:00:00,"30224011",2399.93,"EDF Energy"
"Bracknell Forest Council","http://opendatacommunities.org/id/unitary-authority/bracknell-forest","Bracknell Forest Council","00MA","Management and Support Services - CYPL","Holding Codes - net nil","Ranelagh Academy","Electricity",01/08/2013 00:00:00,"30224011",2443.52,"EDF Energy"
"Bracknell Forest Council","http://opendatacommunities.org/id/unitary-authority/bracknell-forest","Bracknell Forest Council","00MA","Secondary Schools","Delegated Secondary Schools Budgets","Garth Hill - Secondary","Electricity",01/08/2013 00:00:00,"30224011",10440.94,"EDF Energy"
"Bracknell Forest Council","http://opendatacommunities.org/id/unitary-authority/bracknell-forest","Bracknell Forest Council","00MA","Secondary Schools","Delegated Secondary Schools Budgets","Garth Hill - Secondary","Electricity",01/08/2013 00:00:00,"30224011",10411.97,"EDF Energy"
"Bracknell Forest Council","http://opendatacommunities.org/id/unitary-authority/bracknell-forest","Bracknell Forest Council","00MA","Secondary Schools","Delegated Secondary Schools Budgets","Garth Hill - Secondary","Electricity",01/08/2013 00:00:00,"30224011",10370.5,"EDF Energy"
"Bracknell Forest Council","http://opendatacommunities.org/id/unitary-authority/bracknell-forest","Bracknell Forest Council","00MA","Secondary Schools","Delegated Secondary Schools Budgets","Easthampstead Park Community - Secondary","Electricity",01/08/2013 00:00:00,"30224011",5003.32,"EDF Energy"
"Bracknell Forest Council","http://opendatacommunities.org/id/unitary-authority/bracknell-forest","Bracknell Forest Council","00MA","Secondary Schools","Delegated Secondary Schools Budgets","Easthampstead Park Community - Secondary","Electricity",01/08/2013 00:00:00,"30224011",5079.86,"EDF Energy"
"Bracknell Forest Council","http://opendatacommunities.org/id/unitary-authority/bracknell-forest","Bracknell Forest Council","00MA","Secondary Schools","Delegated Secondary Schools Budgets","Easthampstead Park Community - Secondary","Electricity",01/08/2013 00:00:00,"30224011",4924.14,"EDF Energy"
"Bracknell Forest Council","http://opendatacommunities.org/id/unitary-authority/bracknell-forest","Bracknell Forest Council","00MA","Learning Disability (under 65)","Assessment & Care Management","Learning Disability Team","Electricity",01/08/2013 00:00:00,"30224011",645.55,"EDF Energy"
"Bracknell Forest Council","http://opendatacommunities.org/id/unitary-authority/bracknell-forest","Bracknell Forest Council","00MA","Learning Disability (under 65)","Assessment & Care Management","Learning Disability Team","Electricity",01/08/2013 00:00:00,"30224011",634.62,"EDF Energy"
"Bracknell Forest Council","http://opendatacommunities.org/id/unitary-authority/bracknell-forest","Bracknell Forest Council","00MA","Learning Disability (under 65)","Assessment & Care Management","Learning Disability Team","Electricity",01/08/2013 00:00:00,"30224011",623.78,"EDF Energy"
"Bracknell Forest Council","http://opendatacommunities.org/id/unitary-authority/bracknell-forest","Bracknell Forest Council","00MA","Street Lighting (including Energy Costs)","Street Lighting","Lighting","Electricity",24/07/2013 00:00:00,"30223430",37601.17,"EDF Energy"
"Bracknell Forest Council","http://opendatacommunities.org/id/unitary-authority/bracknell-forest","Bracknell Forest Council","00MA","Street Lighting (including Energy Costs)","Street Lighting","Lighting","Electricity",24/07/2013 00:00:00,"30223430",32982.67,"EDF Energy"
"Bracknell Forest Council","http://opendatacommunities.org/id/unitary-authority/bracknell-forest","Bracknell Forest Council","00MA","Street Lighting (including Energy Costs)","Street Lighting","Lighting","Electricity",24/07/2013 00:00:00,"30223430",29140.07,"EDF Energy"
"Bracknell Forest Council","http://opendatacommunities.org/id/unitary-authority/bracknell-forest","Bracknell Forest Council","00MA","Commissioning and Social Work","Commissioning and Social Work","Administration Running Costs","Computer -Purchase",08/07/2013 00:00:00,"6523912",1503.2,"ELECTROMASTER TELECOMMUNICATIONS LTD"
"Bracknell Forest Council","http://opendatacommunities.org/id/unitary-authority/bracknell-forest","Bracknell Forest Council","00MA","Culture and Heritage","Heritage Museums & Galleries","The Look Out","Cost of Goods Sold",23/05/2013 00:00:00,"6524829",1489.36,"EMBLEM PRINT PRODUCTS LTD"
"Bracknell Forest Council","http://opendatacommunities.org/id/unitary-authority/bracknell-forest","Bracknell Forest Council","00MA","Culture and Heritage","Heritage Museums & Galleries","The Look Out","Cost of Goods Sold",23/05/2013 00:00:00,"6524830",1010.55,"EMBLEM PRINT PRODUCTS LTD"
"Bracknell Forest Council","http://opendatacommunities.org/id/unitary-authority/bracknell-forest","Bracknell Forest Council","00MA","Environmental Initiatives","Sustainable Development Strategies","Energy Management","Consultants Fees",12/06/2013 00:00:00,"6524196",2136,"ENERGY SAVING LIGHTING (UK) LTD"
"Bracknell Forest Council","http://opendatacommunities.org/id/unitary-authority/bracknell-forest","Bracknell Forest Council","00MA","Waste Disposal","Disposal of Waste","London Road Tip","Consultants Fees",28/06/2013 00:00:00,"6523466",6988.83,"ENITIAL"
"Bracknell Forest Council","http://opendatacommunities.org/id/unitary-authority/bracknell-forest","Bracknell Forest Council","00MA","Business Support","Premises Development","Longshot Lane Industrial Estate","Consultants Fees",28/06/2013 00:00:00,"6523466",1057.68,"ENITIAL"
"Bracknell Forest Council","http://opendatacommunities.org/id/unitary-authority/bracknell-forest","Bracknell Forest Council","00MA","Open Spaces","Countryside Recreation & Management","Longhill Gas Monitoring","Consultants Fees",28/06/2013 00:00:00,"6523466",629.36,"ENITIAL"
"Bracknell Forest Council","http://opendatacommunities.org/id/unitary-authority/bracknell-forest","Bracknell Forest Council","00MA","Waste Disposal","Disposal of Waste","London Road Tip","Contracted Services",30/04/2013 00:00:00,"6523713",1556.45,"ENITIAL"
"Bracknell Forest Council","http://opendatacommunities.org/id/unitary-authority/bracknell-forest","Bracknell Forest Council","00MA","Waste Disposal","Disposal of Waste","London Road Tip","Contracted Services",28/06/2013 00:00:00,"6523714",523.95,"ENITIAL"
"Bracknell Forest Council","http://opendatacommunities.org/id/unitary-authority/bracknell-forest","Bracknell Forest Council","00MA","","","Crown Wood Primary","Consultant Fees",15/07/2013 00:00:00,"6524599",1300,"ENVIROCHEM ANALYTICAL LABORATORIES LTD"
"Bracknell Forest Council","http://opendatacommunities.org/id/unitary-authority/bracknell-forest","Bracknell Forest Council","00MA","Other Children's & Families Services","Vacancy Factor - Other Children and Families","YPSM Young Peoples Involvement","Voluntary Sector Service Providers",01/07/2013 00:00:00,"6523095",1175,"ERA DEVELOPMENT"
"Bracknell Forest Council","http://opendatacommunities.org/id/unitary-authority/bracknell-forest","Bracknell Forest Council","00MA","Other Adult Services","Substance Abuse (Addictions)","Contracted Services","Contracted Services",24/07/2013 00:00:00,"6524738",1300,"ERA DEVELOPMENT"
"Bracknell Forest Council","http://opendatacommunities.org/id/unitary-authority/bracknell-forest","Bracknell Forest Council","00MA","Economic Development","Economic Development","Town Centre Redev Legal Costs","Legal Fees",27/06/2013 00:00:00,"6523036",4600,"ERNST & YOUNG"
"Bracknell Forest Council","http://opendatacommunities.org/id/unitary-authority/bracknell-forest","Bracknell Forest Council","00MA","","","Holly Spring Infant and Junior","Furniture & Fittings",21/05/2013 00:00:00,"6523029",506,"ESPO"
"Bracknell Forest Council","http://opendatacommunities.org/id/unitary-authority/bracknell-forest","Bracknell Forest Council","00MA","","","Crown Wood Primary","IT Hardware",26/06/2013 00:00:00,"6522929",1340.97,"EUROPEAN ELECTRONIQUE LIMITED"
"Bracknell Forest Council","http://opendatacommunities.org/id/unitary-authority/bracknell-forest","Bracknell Forest Council","00MA","Older People (Aged 65 or Over)","Home Care","PD Live-In Carers","Contracted Services",04/07/2013 00:00:00,"30222323",2983.32,"EUROPEAN NURSING AGENCY LTD"
"Bracknell Forest Council","http://opendatacommunities.org/id/unitary-authority/bracknell-forest","Bracknell Forest Council","00MA","Older People (Aged 65 or Over)","Day Care","Supported Living (Day Care) LD Over 65","Contracted Services",02/07/2013 00:00:00,"30222014",234.45,"EXCEL SUPPORT SERVICES"
"Bracknell Forest Council","http://opendatacommunities.org/id/unitary-authority/bracknell-forest","Bracknell Forest Council","00MA","Older People (Aged 65 or Over)","Home Care","Supported Living (Homecare) LD over 65","Contracted Services",02/07/2013 00:00:00,"30222014",23.45,"EXCEL SUPPORT SERVICES"
"Bracknell Forest Council","http://opendatacommunities.org/id/unitary-authority/bracknell-forest","Bracknell Forest Council","00MA","Learning Disability (under 65)","Day Care","Supported Living (Day Care) LD","Contracted Services",04/07/2013 00:00:00,"30222323",468,"EXCEL SUPPORT SERVICES"
"Bracknell Forest Council","http://opendatacommunities.org/id/unitary-authority/bracknell-forest","Bracknell Forest Council","00MA","Learning Disability (under 65)","Homecare","Supported Living (Homecare) LD","Contracted Services",04/07/2013 00:00:00,"30222323",159.5,"EXCEL SUPPORT SERVICES"
"Bracknell Forest Council","http://opendatacommunities.org/id/unitary-authority/bracknell-forest","Bracknell Forest Council","00MA","Learning Disability (under 65)","Homecare","Supported Living (Homecare) LD","Contracted Services",04/07/2013 00:00:00,"30222323",677,"EXCEL SUPPORT SERVICES"
"Bracknell Forest Council","http://opendatacommunities.org/id/unitary-authority/bracknell-forest","Bracknell Forest Council","00MA","Learning Disability (under 65)","Homecare","Supported Living (Homecare) LD","Contracted Services",04/07/2013 00:00:00,"30222323",-408,"EXCEL SUPPORT SERVICES"
"Bracknell Forest Council","http://opendatacommunities.org/id/unitary-authority/bracknell-forest","Bracknell Forest Council","00MA","Learning Disability (under 65)","Day Care","Day Centre Placements-Lrng Disab","Contracted Services",09/07/2013 00:00:00,"30222561",580,"EXCEL SUPPORT SERVICES"
"Bracknell Forest Council","http://opendatacommunities.org/id/unitary-authority/bracknell-forest","Bracknell Forest Council","00MA","Learning Disability (under 65)","Homecare","Supported Living (Homecare) LD","Contracted Services",09/07/2013 00:00:00,"30222561",3981.3,"EXCEL SUPPORT SERVICES"
"Bracknell Forest Council","http://opendatacommunities.org/id/unitary-authority/bracknell-forest","Bracknell Forest Council","00MA","Learning Disability (under 65)","Homecare","Supported Living (Homecare) LD","Contracted Services",09/07/2013 00:00:00,"30222561",2308.32,"EXCEL SUPPORT SERVICES"
"Bracknell Forest Council","http://opendatacommunities.org/id/unitary-authority/bracknell-forest","Bracknell Forest Council","00MA","Learning Disability (under 65)","Homecare","Supported Living (Homecare) LD","Contracted Services",09/07/2013 00:00:00,"30222561",3981.3,"EXCEL SUPPORT SERVICES"
"Bracknell Forest Council","http://opendatacommunities.org/id/unitary-authority/bracknell-forest","Bracknell Forest Council","00MA","Learning Disability (under 65)","Homecare","Supported Living (Homecare) LD","Contracted Services",09/07/2013 00:00:00,"30222561",5418.4,"EXCEL SUPPORT SERVICES"
"Bracknell Forest Council","http://opendatacommunities.org/id/unitary-authority/bracknell-forest","Bracknell Forest Council","00MA","Learning Disability (under 65)","Homecare","Supported Living (Homecare) LD","Contracted Services",09/07/2013 00:00:00,"30222561",2142,"EXCEL SUPPORT SERVICES"
"Bracknell Forest Council","http://opendatacommunities.org/id/unitary-authority/bracknell-forest","Bracknell Forest Council","00MA","Learning Disability (under 65)","Homecare","Supported Living (Homecare) LD","Contracted Services",09/07/2013 00:00:00,"30222561",6930,"EXCEL SUPPORT SERVICES"
"Bracknell Forest Council","http://opendatacommunities.org/id/unitary-authority/bracknell-forest","Bracknell Forest Council","00MA","Learning Disability (under 65)","Homecare","Supported Living (Homecare) LD","Contracted Services",09/07/2013 00:00:00,"30222561",1380,"EXCEL SUPPORT SERVICES"
"Bracknell Forest Council","http://opendatacommunities.org/id/unitary-authority/bracknell-forest","Bracknell Forest Council","00MA","Learning Disability (under 65)","Homecare","Supported Living (Homecare) LD","Contracted Services",09/07/2013 00:00:00,"30222561",3981.3,"EXCEL SUPPORT SERVICES"
"Bracknell Forest Council","http://opendatacommunities.org/id/unitary-authority/bracknell-forest","Bracknell Forest Council","00MA","Learning Disability (under 65)","Homecare","Supported Living (Homecare) LD","Contracted Services",09/07/2013 00:00:00,"30222561",4620,"EXCEL SUPPORT SERVICES"
"Bracknell Forest Council","http://opendatacommunities.org/id/unitary-authority/bracknell-forest","Bracknell Forest Council","00MA","Learning Disability (under 65)","Homecare","Supported Living (Homecare) LD","Contracted Services",09/07/2013 00:00:00,"30222561",7770,"EXCEL SUPPORT SERVICES"
"Bracknell Forest Council","http://opendatacommunities.org/id/unitary-authority/bracknell-forest","Bracknell Forest Council","00MA","Learning Disability (under 65)","Homecare","Supported Living (Homecare) LD","Contracted Services",09/07/2013 00:00:00,"30222561",5302.06,"EXCEL SUPPORT SERVICES"
"Bracknell Forest Council","http://opendatacommunities.org/id/unitary-authority/bracknell-forest","Bracknell Forest Council","00MA","Older People (Aged 65 or Over)","Home Care","Supported Living (Homecare) LD over 65","Contracted Services",09/07/2013 00:00:00,"30222561",6636.72,"EXCEL SUPPORT SERVICES"
"Bracknell Forest Council","http://opendatacommunities.org/id/unitary-authority/bracknell-forest","Bracknell Forest Council","00MA","Autistic Spectrum Condition (Under 65)","Homecare","Supported Living (Homecare) - Autistic Spectrum Condition","Contracted Services",09/07/2013 00:00:00,"30222561",1373.08,"EXCEL SUPPORT SERVICES"
"Bracknell Forest Council","http://opendatacommunities.org/id/unitary-authority/bracknell-forest","Bracknell Forest Council","00MA","Learning Disability (under 65)","Day Care","Supported Living (Day Care) LD","Contracted Services",09/07/2013 00:00:00,"30222561",468,"EXCEL SUPPORT SERVICES"
"Bracknell Forest Council","http://opendatacommunities.org/id/unitary-authority/bracknell-forest","Bracknell Forest Council","00MA","Learning Disability (under 65)","Day Care","Supported Living (Day Care) LD","Contracted Services",09/07/2013 00:00:00,"30222561",570,"EXCEL SUPPORT SERVICES"
"Bracknell Forest Council","http://opendatacommunities.org/id/unitary-authority/bracknell-forest","Bracknell Forest Council","00MA","Learning Disability (under 65)","Homecare","Supported Living (Homecare) LD","Contracted Services",11/07/2013 00:00:00,"30222750",2730,"EXCEL SUPPORT SERVICES"
"Bracknell Forest Council","http://opendatacommunities.org/id/unitary-authority/bracknell-forest","Bracknell Forest Council","00MA","Learning Disability (under 65)","Homecare","Supported Living (Homecare) LD","Contracted Services",11/07/2013 00:00:00,"30222750",720,"EXCEL SUPPORT SERVICES"
"Bracknell Forest Council","http://opendatacommunities.org/id/unitary-authority/bracknell-forest","Bracknell Forest Council","00MA","Learning Disability (under 65)","Homecare","Supported Living (Homecare) LD","Contracted Services",11/07/2013 00:00:00,"30222750",4894,"EXCEL SUPPORT SERVICES"
"Bracknell Forest Council","http://opendatacommunities.org/id/unitary-authority/bracknell-forest","Bracknell Forest Council","00MA","Learning Disability (under 65)","Homecare","Supported Living (Homecare) LD","Contracted Services",11/07/2013 00:00:00,"30222750",5670,"EXCEL SUPPORT SERVICES"
"Bracknell Forest Council","http://opendatacommunities.org/id/unitary-authority/bracknell-forest","Bracknell Forest Council","00MA","Learning Disability (under 65)","Homecare","Supported Living (Homecare) LD","Contracted Services",11/07/2013 00:00:00,"30222750",3885,"EXCEL SUPPORT SERVICES"
"Bracknell Forest Council","http://opendatacommunities.org/id/unitary-authority/bracknell-forest","Bracknell Forest Council","00MA","Learning Disability (under 65)","Homecare","Supported Living (Homecare) LD","Contracted Services",11/07/2013 00:00:00,"30222750",586.5,"EXCEL SUPPORT SERVICES"
"Bracknell Forest Council","http://opendatacommunities.org/id/unitary-authority/bracknell-forest","Bracknell Forest Council","00MA","Learning Disability (under 65)","Homecare","Supported Living (Homecare) LD","Contracted Services",11/07/2013 00:00:00,"30222750",7560,"EXCEL SUPPORT SERVICES"
"Bracknell Forest Council","http://opendatacommunities.org/id/unitary-authority/bracknell-forest","Bracknell Forest Council","00MA","Learning Disability (under 65)","Homecare","Supported Living (Homecare) LD","Contracted Services",11/07/2013 00:00:00,"30222750",1504,"EXCEL SUPPORT SERVICES"
"Bracknell Forest Council","http://opendatacommunities.org/id/unitary-authority/bracknell-forest","Bracknell Forest Council","00MA","Learning Disability (under 65)","Homecare","Supported Living (Homecare) LD","Contracted Services",11/07/2013 00:00:00,"30222750",3496.5,"EXCEL SUPPORT SERVICES"
"Bracknell Forest Council","http://opendatacommunities.org/id/unitary-authority/bracknell-forest","Bracknell Forest Council","00MA","Learning Disability (under 65)","Homecare","Supported Living (Homecare) LD","Contracted Services",11/07/2013 00:00:00,"30222750",7560,"EXCEL SUPPORT SERVICES"
"Bracknell Forest Council","http://opendatacommunities.org/id/unitary-authority/bracknell-forest","Bracknell Forest Council","00MA","Learning Disability (under 65)","Homecare","Supported Living (Homecare) LD","Contracted Services",11/07/2013 00:00:00,"30222750",4260,"EXCEL SUPPORT SERVICES"
"Bracknell Forest Council","http://opendatacommunities.org/id/unitary-authority/bracknell-forest","Bracknell Forest Council","00MA","Learning Disability (under 65)","Homecare","Supported Living (Homecare) LD","Contracted Services",11/07/2013 00:00:00,"30222750",5297.68,"EXCEL SUPPORT SERVICES"
"Bracknell Forest Council","http://opendatacommunities.org/id/unitary-authority/bracknell-forest","Bracknell Forest Council","00MA","Learning Disability (under 65)","Homecare","Supported Living (Homecare) LD","Contracted Services",11/07/2013 00:00:00,"30222750",2700,"EXCEL SUPPORT SERVICES"
"Bracknell Forest Council","http://opendatacommunities.org/id/unitary-authority/bracknell-forest","Bracknell Forest Council","00MA","Learning Disability (under 65)","Homecare","Supported Living (Homecare) LD","Contracted Services",11/07/2013 00:00:00,"30222750",2310,"EXCEL SUPPORT SERVICES"
"Bracknell Forest Council","http://opendatacommunities.org/id/unitary-authority/bracknell-forest","Bracknell Forest Council","00MA","Autistic Spectrum Condition (Under 65)","Homecare","Supported Living (Homecare) - Autistic Spectrum Condition","Contracted Services",11/07/2013 00:00:00,"30222750",992,"EXCEL SUPPORT SERVICES"
"Bracknell Forest Council","http://opendatacommunities.org/id/unitary-authority/bracknell-forest","Bracknell Forest Council","00MA","Autistic Spectrum Condition (Under 65)","Homecare","Supported Living (Homecare) - Autistic Spectrum Condition","Contracted Services",11/07/2013 00:00:00,"30222750",47.5,"EXCEL SUPPORT SERVICES"
"Bracknell Forest Council","http://opendatacommunities.org/id/unitary-authority/bracknell-forest","Bracknell Forest Council","00MA","Autistic Spectrum Condition (Under 65)","Homecare","Supported Living (Homecare) - Autistic Spectrum Condition","Contracted Services",11/07/2013 00:00:00,"30222750",2620,"EXCEL SUPPORT SERVICES"
"Bracknell Forest Council","http://opendatacommunities.org/id/unitary-authority/bracknell-forest","Bracknell Forest Council","00MA","Autistic Spectrum Condition (Under 65)","Homecare","Supported Living (Homecare) - Autistic Spectrum Condition","Contracted Services",11/07/2013 00:00:00,"30222750",2600,"EXCEL SUPPORT SERVICES"
"Bracknell Forest Council","http://opendatacommunities.org/id/unitary-authority/bracknell-forest","Bracknell Forest Council","00MA","Learning Disability (under 65)","Day Care","Supported Living (Day Care) LD","Contracted Services",11/07/2013 00:00:00,"30222750",1020,"EXCEL SUPPORT SERVICES"
"Bracknell Forest Council","http://opendatacommunities.org/id/unitary-authority/bracknell-forest","Bracknell Forest Council","00MA","Learning Disability (under 65)","Day Care","Supported Living (Day Care) LD","Contracted Services",11/07/2013 00:00:00,"30222750",484.8,"EXCEL SUPPORT SERVICES"
"Bracknell Forest Council","http://opendatacommunities.org/id/unitary-authority/bracknell-forest","Bracknell Forest Council","00MA","Learning Disability (under 65)","Day Care","Supported Living (Day Care) LD","Contracted Services",11/07/2013 00:00:00,"30222750",112,"EXCEL SUPPORT SERVICES"
"Bracknell Forest Council","http://opendatacommunities.org/id/unitary-authority/bracknell-forest","Bracknell Forest Council","00MA","Learning Disability (under 65)","Day Care","Supported Living (Day Care) LD","Contracted Services",11/07/2013 00:00:00,"30222750",5040,"EXCEL SUPPORT SERVICES"
"Bracknell Forest Council","http://opendatacommunities.org/id/unitary-authority/bracknell-forest","Bracknell Forest Council","00MA","Older People (Aged 65 or Over)","Direct Payments","Shopping & Housework Project","Contracted Services",09/05/2013 00:00:00,"6523977",3350.32,"FAMILY RESOURCE CENTRE UK"
"Bracknell Forest Council","http://opendatacommunities.org/id/unitary-authority/bracknell-forest","Bracknell Forest Council","00MA","Older People (Aged 65 or Over)","Direct Payments","Shopping & Housework Project","Contracted Services",12/06/2013 00:00:00,"6523978",3350.32,"FAMILY RESOURCE CENTRE UK"
"Bracknell Forest Council","http://opendatacommunities.org/id/unitary-authority/bracknell-forest","Bracknell Forest Council","00MA","Older People (Aged 65 or Over)","Direct Payments","Shopping & Housework Project","Contracted Services",18/07/2013 00:00:00,"6524860",3350.32,"FAMILY RESOURCE CENTRE UK"
"Bracknell Forest Council","http://opendatacommunities.org/id/unitary-authority/bracknell-forest","Bracknell Forest Council","00MA","Older People (Aged 65 or Over)","Residential Care Home Placements","Residential Placements-Elderly","Contracted Services",02/07/2013 00:00:00,"30222011",1901.88,"FAR END"
"Bracknell Forest Council","http://opendatacommunities.org/id/unitary-authority/bracknell-forest","Bracknell Forest Council","00MA","Older People (Aged 65 or Over)","Residential Care Home Placements","Residential Placements-Elderly","Contracted Services",30/07/2013 00:00:00,"30223722",1901.88,"FAR END"
"Bracknell Forest Council","http://opendatacommunities.org/id/unitary-authority/bracknell-forest","Bracknell Forest Council","00MA","Open Spaces","Community Parks & Open Spaces","Pitches/Courts/Pavilion","R&M - Planned",04/06/2013 00:00:00,"6522027",9944,"FARMURA LTD"
"Bracknell Forest Council","http://opendatacommunities.org/id/unitary-authority/bracknell-forest","Bracknell Forest Council","00MA","Special Schools","Centrally managed Expenditure - Special","Supporting Special Educational Needs","Voluntary Sector Service Providers",04/07/2013 00:00:00,"6524016",1273.57,"FARNEY CLOSE SCHOOL"
"Bracknell Forest Council","http://opendatacommunities.org/id/unitary-authority/bracknell-forest","Bracknell Forest Council","00MA","Recreation, Sports and Leisure","Indoor Sports & Recreation Facilities","Leisure DSO - Leisure Centre Maintenance","R&M - Reactive",01/07/2013 00:00:00,"6524192",2800,"FAST TRACK SERVICES (SOUTHERN)  LTD"
"Bracknell Forest Council","http://opendatacommunities.org/id/unitary-authority/bracknell-forest","Bracknell Forest Council","00MA","Open Spaces","Community Parks & Open Spaces","Pitches/Courts/Pavilion","R&M - Planned",13/06/2013 00:00:00,"6524669",813.27,"FAST TRACK SERVICES (SOUTHERN)  LTD"
"Bracknell Forest Council","http://opendatacommunities.org/id/unitary-authority/bracknell-forest","Bracknell Forest Council","00MA","Open Spaces","Community Parks & Open Spaces","Pitches/Courts/Pavilion","R&M - Planned",13/06/2013 00:00:00,"6524669",840,"FAST TRACK SERVICES (SOUTHERN)  LTD"
"Bracknell Forest Council","http://opendatacommunities.org/id/unitary-authority/bracknell-forest","Bracknell Forest Council","00MA","Special Schools","Centrally managed Expenditure - Special","Supporting Special Educational Needs","Contracted Services",30/06/2013 00:00:00,"6524085",2600,"FERNDEARLE CHILD CARE SERVICES"
"Bracknell Forest Council","http://opendatacommunities.org/id/unitary-authority/bracknell-forest","Bracknell Forest Council","00MA","Children Looked After","Residential care","Children's Home Placements","Contracted Services",30/06/2013 00:00:00,"6524085",9384,"FERNDEARLE CHILD CARE SERVICES"
"Bracknell Forest Council","http://opendatacommunities.org/id/unitary-authority/bracknell-forest","Bracknell Forest Council","00MA","Central Support Services - COF","Information Technology","Information Technology - Management","Training Costs",14/06/2013 00:00:00,"6523855",1572.5,"FIREBRAND TRAINING LTD"
"Bracknell Forest Council","http://opendatacommunities.org/id/unitary-authority/bracknell-forest","Bracknell Forest Council","00MA","Recreation, Sports and Leisure","Indoor Sports & Recreation Facilities","Leisure DSO - Leisure Centre Maintenance","Swimming Pool Chemicals",08/04/2013 00:00:00,"6523686",801.15,"FIRENZI LTD"
"Bracknell Forest Council","http://opendatacommunities.org/id/unitary-authority/bracknell-forest","Bracknell Forest Council","00MA","Public Transport","Concessionary Fares","Concessionary Fares","Contracted Services",05/07/2013 00:00:00,"6522990",35992.1,"FIRST BEELINE"
"Bracknell Forest Council","http://opendatacommunities.org/id/unitary-authority/bracknell-forest","Bracknell Forest Council","00MA","Older People (Aged 65 or Over)","Nursing Home Placements","Nursing Home Placements-Elderly","Contracted Services",02/07/2013 00:00:00,"30222011",2100,"FOREST CARE CEDAR LODGE"
"Bracknell Forest Council","http://opendatacommunities.org/id/unitary-authority/bracknell-forest","Bracknell Forest Council","00MA","Older People (Aged 65 or Over)","Nursing Home Placements","Nursing Home Placements-Elderly","Contracted Services",30/07/2013 00:00:00,"30223722",2100,"FOREST CARE CEDAR LODGE"
"Bracknell Forest Council","http://opendatacommunities.org/id/unitary-authority/bracknell-forest","Bracknell Forest Council","00MA","Recreation, Sports and Leisure","Indoor Sports & Recreation Facilities","Leisure Centre - Catering General","Equipment - Purchase",02/07/2013 00:00:00,"6522998",1922,"FOSTER REFRIGERATOR"
"Bracknell Forest Council","http://opendatacommunities.org/id/unitary-authority/bracknell-forest","Bracknell Forest Council","00MA","Children Looked After","Fostering services","Independent Fostering (Non BFBC)","Contracted Services",30/06/2013 00:00:00,"6524110",3079.85,"FOSTERING SOLUTIONS LTD"
"Bracknell Forest Council","http://opendatacommunities.org/id/unitary-authority/bracknell-forest","Bracknell Forest Council","00MA","Children Looked After","Fostering services","Independent Fostering (Non BFBC)","Contracted Services",30/06/2013 00:00:00,"6524111",3327.56,"FOSTERING SOLUTIONS LTD"
"Bracknell Forest Council","http://opendatacommunities.org/id/unitary-authority/bracknell-forest","Bracknell Forest Council","00MA","Older People (Aged 65 or Over)","Nursing Home Placements","Nursing Home Placements-Elderly","Contracted Services",02/07/2013 00:00:00,"30222011",2461.44,"FOUR SEASONS HEALTH CARE"
"Bracknell Forest Council","http://opendatacommunities.org/id/unitary-authority/bracknell-forest","Bracknell Forest Council","00MA","Older People (Aged 65 or Over)","Nursing Home Placements","Nursing Home Placements-Elderly","Contracted Services",02/07/2013 00:00:00,"30222011",2461.44,"FOUR SEASONS HEALTH CARE"
"Bracknell Forest Council","http://opendatacommunities.org/id/unitary-authority/bracknell-forest","Bracknell Forest Council","00MA","Older People (Aged 65 or Over)","Nursing Home Placements","Nursing Home Placements-Elderly","Contracted Services",02/07/2013 00:00:00,"30222011",2461.44,"FOUR SEASONS HEALTH CARE"
"Bracknell Forest Council","http://opendatacommunities.org/id/unitary-authority/bracknell-forest","Bracknell Forest Council","00MA","Older People (Aged 65 or Over)","Nursing Home Placements","Nursing Home Placements-Elderly","Contracted Services",02/07/2013 00:00:00,"30222011",7384.32,"FOUR SEASONS HEALTH CARE"
"Bracknell Forest Council","http://opendatacommunities.org/id/unitary-authority/bracknell-forest","Bracknell Forest Council","00MA","Older People (Aged 65 or Over)","Nursing Home Placements","Nursing Home Placements-Elderly","Contracted Services",02/07/2013 00:00:00,"30222011",2449.45,"FOUR SEASONS HEALTH CARE"
"Bracknell Forest Council","http://opendatacommunities.org/id/unitary-authority/bracknell-forest","Bracknell Forest Council","00MA","Older People (Aged 65 or Over)","Nursing Home Placements","Nursing Home Placements-Elderly","Contracted Services",02/07/2013 00:00:00,"30222011",2461.44,"FOUR SEASONS HEALTH CARE"
"Bracknell Forest Council","http://opendatacommunities.org/id/unitary-authority/bracknell-forest","Bracknell Forest Council","00MA","Older People (Aged 65 or Over)","Nursing Home Placements","Nursing Home Placements-Elderly","Contracted Services",02/07/2013 00:00:00,"30222011",10266.45,"FOUR SEASONS HEALTH CARE"
"Bracknell Forest Council","http://opendatacommunities.org/id/unitary-authority/bracknell-forest","Bracknell Forest Council","00MA","Older People (Aged 65 or Over)","Nursing Home Placements","Nursing Home Placements-Elderly","Contracted Services",02/07/2013 00:00:00,"30222011",2461.44,"FOUR SEASONS HEALTH CARE"
"Bracknell Forest Council","http://opendatacommunities.org/id/unitary-authority/bracknell-forest","Bracknell Forest Council","00MA","Older People (Aged 65 or Over)","Nursing Home Placements","Nursing Home Placements-Elderly","Contracted Services",02/07/2013 00:00:00,"30222011",4922.88,"FOUR SEASONS HEALTH CARE"
"Bracknell Forest Council","http://opendatacommunities.org/id/unitary-authority/bracknell-forest","Bracknell Forest Council","00MA","Older People (Aged 65 or Over)","Nursing Home Placements","Nursing Home Placements-Elderly","Contracted Services",02/07/2013 00:00:00,"30222011",2461.44,"FOUR SEASONS HEALTH CARE"
"Bracknell Forest Council","http://opendatacommunities.org/id/unitary-authority/bracknell-forest","Bracknell Forest Council","00MA","Older People (Aged 65 or Over)","Nursing Home Placements","Nursing Home Placements-Elderly","Contracted Services",02/07/2013 00:00:00,"30222011",2461.44,"FOUR SEASONS HEALTH CARE"
"Bracknell Forest Council","http://opendatacommunities.org/id/unitary-authority/bracknell-forest","Bracknell Forest Council","00MA","Older People (Aged 65 or Over)","Nursing Home Placements","Nursing Home Placements-Elderly","Contracted Services",02/07/2013 00:00:00,"30222011",2754.4,"FOUR SEASONS HEALTH CARE"
"Bracknell Forest Council","http://opendatacommunities.org/id/unitary-authority/bracknell-forest","Bracknell Forest Council","00MA","Physical Disability/Sensory Impairment","Nursing Home Placements","Nursing Home Placements-Physical Disabty","Contracted Services",02/07/2013 00:00:00,"30222011",2461.44,"FOUR SEASONS HEALTH CARE"
"Bracknell Forest Council","http://opendatacommunities.org/id/unitary-authority/bracknell-forest","Bracknell Forest Council","00MA","Physical Disability/Sensory Impairment","Nursing Home Placements","Nursing Home Placements-Physical Disabty","Contracted Services",02/07/2013 00:00:00,"30222011",2461.44,"FOUR SEASONS HEALTH CARE"
"Bracknell Forest Council","http://opendatacommunities.org/id/unitary-authority/bracknell-forest","Bracknell Forest Council","00MA","Older People (Aged 65 or Over)","Residential Care Home Placements","Residential Placements-Elderly","Contracted Services",02/07/2013 00:00:00,"30222011",1901.88,"FOUR SEASONS HEALTH CARE"
"Bracknell Forest Council","http://opendatacommunities.org/id/unitary-authority/bracknell-forest","Bracknell Forest Council","00MA","Older People (Aged 65 or Over)","Nursing Home Placements","Nursing Home Placements PD 65 & Over","Contracted Services",02/07/2013 00:00:00,"30222011",2461.44,"FOUR SEASONS HEALTH CARE"
"Bracknell Forest Council","http://opendatacommunities.org/id/unitary-authority/bracknell-forest","Bracknell Forest Council","00MA","Older People (Aged 65 or Over)","Residential Care Home Placements","Residential Placements-Elderly","Contracted Services",30/07/2013 00:00:00,"30223722",1901.88,"FOUR SEASONS HEALTH CARE"
"Bracknell Forest Council","http://opendatacommunities.org/id/unitary-authority/bracknell-forest","Bracknell Forest Council","00MA","Older People (Aged 65 or Over)","Nursing Home Placements","Nursing Home Placements PD 65 & Over","Contracted Services",30/07/2013 00:00:00,"30223722",2461.44,"FOUR SEASONS HEALTH CARE"
"Bracknell Forest Council","http://opendatacommunities.org/id/unitary-authority/bracknell-forest","Bracknell Forest Council","00MA","Physical Disability/Sensory Impairment","Nursing Home Placements","Nursing Home Placements-Physical Disabty","Contracted Services",30/07/2013 00:00:00,"30223722",2461.44,"FOUR SEASONS HEALTH CARE"
"Bracknell Forest Council","http://opendatacommunities.org/id/unitary-authority/bracknell-forest","Bracknell Forest Council","00MA","Physical Disability/Sensory Impairment","Nursing Home Placements","Nursing Home Placements-Physical Disabty","Contracted Services",30/07/2013 00:00:00,"30223722",2461.44,"FOUR SEASONS HEALTH CARE"
"Bracknell Forest Council","http://opendatacommunities.org/id/unitary-authority/bracknell-forest","Bracknell Forest Council","00MA","Older People (Aged 65 or Over)","Nursing Home Placements","Nursing Home Placements-Elderly","Contracted Services",30/07/2013 00:00:00,"30223722",7384.32,"FOUR SEASONS HEALTH CARE"
"Bracknell Forest Council","http://opendatacommunities.org/id/unitary-authority/bracknell-forest","Bracknell Forest Council","00MA","Older People (Aged 65 or Over)","Nursing Home Placements","Nursing Home Placements-Elderly","Contracted Services",30/07/2013 00:00:00,"30223722",2461.44,"FOUR SEASONS HEALTH CARE"
"Bracknell Forest Council","http://opendatacommunities.org/id/unitary-authority/bracknell-forest","Bracknell Forest Council","00MA","Older People (Aged 65 or Over)","Nursing Home Placements","Nursing Home Placements-Elderly","Contracted Services",30/07/2013 00:00:00,"30223722",2461.44,"FOUR SEASONS HEALTH CARE"
"Bracknell Forest Council","http://opendatacommunities.org/id/unitary-authority/bracknell-forest","Bracknell Forest Council","00MA","Older People (Aged 65 or Over)","Nursing Home Placements","Nursing Home Placements-Elderly","Contracted Services",30/07/2013 00:00:00,"30223722",2461.44,"FOUR SEASONS HEALTH CARE"
"Bracknell Forest Council","http://opendatacommunities.org/id/unitary-authority/bracknell-forest","Bracknell Forest Council","00MA","Older People (Aged 65 or Over)","Nursing Home Placements","Nursing Home Placements-Elderly","Contracted Services",30/07/2013 00:00:00,"30223722",4922.88,"FOUR SEASONS HEALTH CARE"
"Bracknell Forest Council","http://opendatacommunities.org/id/unitary-authority/bracknell-forest","Bracknell Forest Council","00MA","Older People (Aged 65 or Over)","Nursing Home Placements","Nursing Home Placements-Elderly","Contracted Services",30/07/2013 00:00:00,"30223722",2461.44,"FOUR SEASONS HEALTH CARE"
"Bracknell Forest Council","http://opendatacommunities.org/id/unitary-authority/bracknell-forest","Bracknell Forest Council","00MA","Older People (Aged 65 or Over)","Nursing Home Placements","Nursing Home Placements-Elderly","Contracted Services",30/07/2013 00:00:00,"30223722",2461.44,"FOUR SEASONS HEALTH CARE"
"Bracknell Forest Council","http://opendatacommunities.org/id/unitary-authority/bracknell-forest","Bracknell Forest Council","00MA","Older People (Aged 65 or Over)","Nursing Home Placements","Nursing Home Placements-Elderly","Contracted Services",30/07/2013 00:00:00,"30223722",5215.84,"FOUR SEASONS HEALTH CARE"
"Bracknell Forest Council","http://opendatacommunities.org/id/unitary-authority/bracknell-forest","Bracknell Forest Council","00MA","Older People (Aged 65 or Over)","Nursing Home Placements","Nursing Home Placements-Elderly","Contracted Services",30/07/2013 00:00:00,"30223722",4922.88,"FOUR SEASONS HEALTH CARE"
"Bracknell Forest Council","http://opendatacommunities.org/id/unitary-authority/bracknell-forest","Bracknell Forest Council","00MA","Older People (Aged 65 or Over)","Nursing Home Placements","Nursing Home Placements-Elderly","Contracted Services",30/07/2013 00:00:00,"30223722",-527.46,"FOUR SEASONS HEALTH CARE"
"Bracknell Forest Council","http://opendatacommunities.org/id/unitary-authority/bracknell-forest","Bracknell Forest Council","00MA","Older People (Aged 65 or Over)","Nursing Home Placements","Nursing Home Placements-Elderly","Contracted Services",30/07/2013 00:00:00,"30223722",4922.88,"FOUR SEASONS HEALTH CARE"
"Bracknell Forest Council","http://opendatacommunities.org/id/unitary-authority/bracknell-forest","Bracknell Forest Council","00MA","Older People (Aged 65 or Over)","Residential Care Home Placements","Residential Placements-Elderly","Contracted Services",02/07/2013 00:00:00,"30222011",2488.32,"FOUR SEASONS HEALTHCARE"
"Bracknell Forest Council","http://opendatacommunities.org/id/unitary-authority/bracknell-forest","Bracknell Forest Council","00MA","Older People (Aged 65 or Over)","Residential Care Home Placements","Residential Placements-Elderly","Contracted Services",30/07/2013 00:00:00,"30223723",2488.32,"FOUR SEASONS HEALTHCARE"
"Bracknell Forest Council","http://opendatacommunities.org/id/unitary-authority/bracknell-forest","Bracknell Forest Council","00MA","Older People (Aged 65 or Over)","Nursing Home Placements","Nursing Home Placements-Elderly","Contracted Services",02/07/2013 00:00:00,"30222011",2461.44,"FOUR SEASONS HEALTHCARE PLC"
"Bracknell Forest Council","http://opendatacommunities.org/id/unitary-authority/bracknell-forest","Bracknell Forest Council","00MA","Older People (Aged 65 or Over)","Nursing Home Placements","Nursing Home Placements-Elderly","Contracted Services",02/07/2013 00:00:00,"30222011",2022.28,"FOUR SEASONS HEALTHCARE PLC"
"Bracknell Forest Council","http://opendatacommunities.org/id/unitary-authority/bracknell-forest","Bracknell Forest Council","00MA","Older People (Aged 65 or Over)","Nursing Home Placements","Nursing Home Placements-Elderly","Contracted Services",02/07/2013 00:00:00,"30222011",2022.28,"FOUR SEASONS HEALTHCARE PLC"
"Bracknell Forest Council","http://opendatacommunities.org/id/unitary-authority/bracknell-forest","Bracknell Forest Council","00MA","Older People (Aged 65 or Over)","Nursing Home Placements","Nursing Home Placements-Elderly","Contracted Services",02/07/2013 00:00:00,"30222011",2022.28,"FOUR SEASONS HEALTHCARE PLC"
"Bracknell Forest Council","http://opendatacommunities.org/id/unitary-authority/bracknell-forest","Bracknell Forest Council","00MA","Older People (Aged 65 or Over)","Nursing Home Placements","Nursing Home Placements-Elderly","Contracted Services",02/07/2013 00:00:00,"30222011",2022.28,"FOUR SEASONS HEALTHCARE PLC"
"Bracknell Forest Council","http://opendatacommunities.org/id/unitary-authority/bracknell-forest","Bracknell Forest Council","00MA","Older People (Aged 65 or Over)","Nursing Home Placements","Nursing Home Placements-Elderly","Contracted Services",02/07/2013 00:00:00,"30222011",2754.4,"FOUR SEASONS HEALTHCARE PLC"
"Bracknell Forest Council","http://opendatacommunities.org/id/unitary-authority/bracknell-forest","Bracknell Forest Council","00MA","Older People (Aged 65 or Over)","Nursing Home Placements","Nursing Home Placements-Elderly","Contracted Services",02/07/2013 00:00:00,"30222011",2022.28,"FOUR SEASONS HEALTHCARE PLC"
"Bracknell Forest Council","http://opendatacommunities.org/id/unitary-authority/bracknell-forest","Bracknell Forest Council","00MA","Older People (Aged 65 or Over)","Nursing Home Placements","Nursing Home Placements-Elderly","Contracted Services",02/07/2013 00:00:00,"30222011",2022.28,"FOUR SEASONS HEALTHCARE PLC"
"Bracknell Forest Council","http://opendatacommunities.org/id/unitary-authority/bracknell-forest","Bracknell Forest Council","00MA","Older People (Aged 65 or Over)","Nursing Home Placements","Nursing Home Placements-Elderly","Contracted Services",02/07/2013 00:00:00,"30222011",2022.28,"FOUR SEASONS HEALTHCARE PLC"
"Bracknell Forest Council","http://opendatacommunities.org/id/unitary-authority/bracknell-forest","Bracknell Forest Council","00MA","Older People (Aged 65 or Over)","Nursing Home Placements","Nursing EMI Placements - Elderly","Contracted Services",02/07/2013 00:00:00,"30222011",2315.24,"FOUR SEASONS HEALTHCARE PLC"
"Bracknell Forest Council","http://opendatacommunities.org/id/unitary-authority/bracknell-forest","Bracknell Forest Council","00MA","Older People (Aged 65 or Over)","Nursing Home Placements","Nursing Home Placements MH 65 and Over","Contracted Services",02/07/2013 00:00:00,"30222011",2022.28,"FOUR SEASONS HEALTHCARE PLC"
"Bracknell Forest Council","http://opendatacommunities.org/id/unitary-authority/bracknell-forest","Bracknell Forest Council","00MA","Older People (Aged 65 or Over)","Nursing Home Placements","Nursing Home Placements MH 65 and Over","Contracted Services",30/07/2013 00:00:00,"30223722",2022.28,"FOUR SEASONS HEALTHCARE PLC"
"Bracknell Forest Council","http://opendatacommunities.org/id/unitary-authority/bracknell-forest","Bracknell Forest Council","00MA","Older People (Aged 65 or Over)","Nursing Home Placements","Nursing EMI Placements - Elderly","Contracted Services",30/07/2013 00:00:00,"30223722",2315.24,"FOUR SEASONS HEALTHCARE PLC"
"Bracknell Forest Council","http://opendatacommunities.org/id/unitary-authority/bracknell-forest","Bracknell Forest Council","00MA","Older People (Aged 65 or Over)","Nursing Home Placements","Nursing Home Placements-Elderly","Contracted Services",30/07/2013 00:00:00,"30223722",1758.18,"FOUR SEASONS HEALTHCARE PLC"
"Bracknell Forest Council","http://opendatacommunities.org/id/unitary-authority/bracknell-forest","Bracknell Forest Council","00MA","Older People (Aged 65 or Over)","Nursing Home Placements","Nursing Home Placements-Elderly","Contracted Services",30/07/2013 00:00:00,"30223722",2022.28,"FOUR SEASONS HEALTHCARE PLC"
"Bracknell Forest Council","http://opendatacommunities.org/id/unitary-authority/bracknell-forest","Bracknell Forest Council","00MA","Older People (Aged 65 or Over)","Nursing Home Placements","Nursing Home Placements-Elderly","Contracted Services",30/07/2013 00:00:00,"30223722",2022.28,"FOUR SEASONS HEALTHCARE PLC"
"Bracknell Forest Council","http://opendatacommunities.org/id/unitary-authority/bracknell-forest","Bracknell Forest Council","00MA","Holding Accounts in Budget Book COF","Corporate Services - Office Services","Office Services - General Expenses","Office Stationery",31/07/2013 00:00:00,"30223881",8.8,"3663"
"Bracknell Forest Council","http://opendatacommunities.org/id/unitary-authority/bracknell-forest","Bracknell Forest Council","00MA","Holding Accounts in Budget Book COF","Corporate Services - Office Services","Office Services - General Expenses","Office Stationery",31/07/2013 00:00:00,"30223881",3.19,"3663"
"Bracknell Forest Council","http://opendatacommunities.org/id/unitary-authority/bracknell-forest","Bracknell Forest Council","00MA","Holding Accounts in Budget Book COF","Corporate Services - Office Services","Office Services - General Expenses","Office Stationery",31/07/2013 00:00:00,"30223881",1.98,"3663"
"Bracknell Forest Council","http://opendatacommunities.org/id/unitary-authority/bracknell-forest","Bracknell Forest Council","00MA","Recreation, Sports and Leisure","Indoor Sports & Recreation Facilities","Leisure Centre - Catering General","Cost of Goods Sold",12/07/2013 00:00:00,"30223901",-46.78,"3663"
"Bracknell Forest Council","http://opendatacommunities.org/id/unitary-authority/bracknell-forest","Bracknell Forest Council","00MA","Recreation, Sports and Leisure","Indoor Sports & Recreation Facilities","Leisure Centre - Catering General","Cost of Goods Sold",12/07/2013 00:00:00,"30223901",-25.02,"3663"
"Bracknell Forest Council","http://opendatacommunities.org/id/unitary-authority/bracknell-forest","Bracknell Forest Council","00MA","Business Support","Premises Development","Easthampstead Park Centre - Catering","Cost of Goods Sold",29/07/2013 00:00:00,"30223901",-22.94,"3663"
"Bracknell Forest Council","http://opendatacommunities.org/id/unitary-authority/bracknell-forest","Bracknell Forest Council","00MA","Recreation, Sports and Leisure","Indoor Sports & Recreation Facilities","Leisure Centre - Catering General","Catering Consumables",12/07/2013 00:00:00,"30223901",-20.59,"3663"
"Bracknell Forest Council","http://opendatacommunities.org/id/unitary-authority/bracknell-forest","Bracknell Forest Council","00MA","Recreation, Sports and Leisure","Indoor Sports & Recreation Facilities","Leisure Centre - Catering General","Cost of Goods Sold",30/07/2013 00:00:00,"30223901",-12.33,"3663"
"Bracknell Forest Council","http://opendatacommunities.org/id/unitary-authority/bracknell-forest","Bracknell Forest Council","00MA","Recreation, Sports and Leisure","Indoor Sports & Recreation Facilities","Leisure Centre - Catering General","Cost of Goods Sold",12/07/2013 00:00:00,"30223901",-7.5,"3663"
"Bracknell Forest Council","http://opendatacommunities.org/id/unitary-authority/bracknell-forest","Bracknell Forest Council","00MA","Recreation, Sports and Leisure","Indoor Sports & Recreation Facilities","Leisure Centre - Catering General","Cost of Goods Sold",10/07/2013 00:00:00,"30223901",7.5,"3663"
"Bracknell Forest Council","http://opendatacommunities.org/id/unitary-authority/bracknell-forest","Bracknell Forest Council","00MA","Recreation, Sports and Leisure","Indoor Sports & Recreation Facilities","Leisure Centre - Catering General","Cost of Goods Sold",26/07/2013 00:00:00,"30223901",8.82,"3663"
"Bracknell Forest Council","http://opendatacommunities.org/id/unitary-authority/bracknell-forest","Bracknell Forest Council","00MA","Older People (Aged 65 or Over)","Residential Care Home Placements","Bridgewell Unit","Cost of Goods Sold",24/07/2013 00:00:00,"30223901",14.82,"3663"
"Bracknell Forest Council","http://opendatacommunities.org/id/unitary-authority/bracknell-forest","Bracknell Forest Council","00MA","Business Support","Premises Development","Easthampstead Park Centre - Catering","Cost of Goods Sold",25/07/2013 00:00:00,"30223901",17.65,"3663"
"Bracknell Forest Council","http://opendatacommunities.org/id/unitary-authority/bracknell-forest","Bracknell Forest Council","00MA","Older People (Aged 65 or Over)","Residential Care Home Placements","Bridgewell Unit","Catering Consumables",24/07/2013 00:00:00,"30223901",18.79,"3663"
"Bracknell Forest Council","http://opendatacommunities.org/id/unitary-authority/bracknell-forest","Bracknell Forest Council","00MA","Older People (Aged 65 or Over)","Nursing Home Placements","Nursing Home Placements-Elderly","Contracted Services",30/07/2013 00:00:00,"30223722",2022.28,"FOUR SEASONS HEALTHCARE PLC"
"Bracknell Forest Council","http://opendatacommunities.org/id/unitary-authority/bracknell-forest","Bracknell Forest Council","00MA","Older People (Aged 65 or Over)","Nursing Home Placements","Nursing Home Placements-Elderly","Contracted Services",30/07/2013 00:00:00,"30223722",2022.28,"FOUR SEASONS HEALTHCARE PLC"
"Bracknell Forest Council","http://opendatacommunities.org/id/unitary-authority/bracknell-forest","Bracknell Forest Council","00MA","Older People (Aged 65 or Over)","Nursing Home Placements","Nursing Home Placements-Elderly","Contracted Services",30/07/2013 00:00:00,"30223722",2022.28,"FOUR SEASONS HEALTHCARE PLC"
"Bracknell Forest Council","http://opendatacommunities.org/id/unitary-authority/bracknell-forest","Bracknell Forest Council","00MA","Older People (Aged 65 or Over)","Nursing Home Placements","Nursing Home Placements-Elderly","Contracted Services",30/07/2013 00:00:00,"30223722",2022.28,"FOUR SEASONS HEALTHCARE PLC"
"Bracknell Forest Council","http://opendatacommunities.org/id/unitary-authority/bracknell-forest","Bracknell Forest Council","00MA","Older People (Aged 65 or Over)","Nursing Home Placements","Nursing Home Placements-Elderly","Contracted Services",30/07/2013 00:00:00,"30223722",2754.4,"FOUR SEASONS HEALTHCARE PLC"
"Bracknell Forest Council","http://opendatacommunities.org/id/unitary-authority/bracknell-forest","Bracknell Forest Council","00MA","Older People (Aged 65 or Over)","Nursing Home Placements","Nursing Home Placements-Elderly","Contracted Services",30/07/2013 00:00:00,"30223722",2022.28,"FOUR SEASONS HEALTHCARE PLC"
"Bracknell Forest Council","http://opendatacommunities.org/id/unitary-authority/bracknell-forest","Bracknell Forest Council","00MA","Older People (Aged 65 or Over)","Residential Care Home Placements","Residential EMI Placements - Elderly","Contracted Services",02/07/2013 00:00:00,"30222011",2011.2,"FOURWAYS RESIDENTIAL HOME"
"Bracknell Forest Council","http://opendatacommunities.org/id/unitary-authority/bracknell-forest","Bracknell Forest Council","00MA","Older People (Aged 65 or Over)","Residential Care Home Placements","Residential EMI Placements - Elderly","Contracted Services",02/07/2013 00:00:00,"30222011",1901.88,"FOURWAYS RESIDENTIAL HOME"
"Bracknell Forest Council","http://opendatacommunities.org/id/unitary-authority/bracknell-forest","Bracknell Forest Council","00MA","Older People (Aged 65 or Over)","Residential Care Home Placements","Residential EMI Placements - Elderly","Contracted Services",02/07/2013 00:00:00,"30222011",2011.2,"FOURWAYS RESIDENTIAL HOME"
"Bracknell Forest Council","http://opendatacommunities.org/id/unitary-authority/bracknell-forest","Bracknell Forest Council","00MA","Older People (Aged 65 or Over)","Residential Care Home Placements","Residential EMI Placements - Elderly","Contracted Services",02/07/2013 00:00:00,"30222011",1901.88,"FOURWAYS RESIDENTIAL HOME"
"Bracknell Forest Council","http://opendatacommunities.org/id/unitary-authority/bracknell-forest","Bracknell Forest Council","00MA","Older People (Aged 65 or Over)","Residential Care Home Placements","Residential EMI Placements - Elderly","Contracted Services",02/07/2013 00:00:00,"30222011",2011.2,"FOURWAYS RESIDENTIAL HOME"
"Bracknell Forest Council","http://opendatacommunities.org/id/unitary-authority/bracknell-forest","Bracknell Forest Council","00MA","Older People (Aged 65 or Over)","Residential Care Home Placements","Residential Placements-Elderly","Contracted Services",02/07/2013 00:00:00,"30222011",1901.88,"FOURWAYS RESIDENTIAL HOME"
"Bracknell Forest Council","http://opendatacommunities.org/id/unitary-authority/bracknell-forest","Bracknell Forest Council","00MA","Recreation, Sports and Leisure","Indoor Sports & Recreation Facilities","Leisure Centre - Catering General","Catering Consumables",26/07/2013 00:00:00,"30223901",22.51,"3663"
"Bracknell Forest Council","http://opendatacommunities.org/id/unitary-authority/bracknell-forest","Bracknell Forest Council","00MA","Business Support","Premises Development","Easthampstead Park Centre - Catering","Catering Consumables",25/07/2013 00:00:00,"30223901",28.24,"3663"
"Bracknell Forest Council","http://opendatacommunities.org/id/unitary-authority/bracknell-forest","Bracknell Forest Council","00MA","Recreation, Sports and Leisure","Indoor Sports & Recreation Facilities","Leisure Centre - Catering General","Catering Consumables",10/07/2013 00:00:00,"30223901",39.79,"3663"
